Organisation Name,Organisation Code,Date Paid,Transaction Number,Amount,Supplier Name,Supplier ID,Supplier post code (first 4 digits),Directorate,Service Area,General Ledger code Description,BVACOP class,Revenue/ Capital Spend
Wiltshire,http://opendatacommunities.org/id/unitary-authority/wiltshire,22/01/2019,1902273860,3916,1st Choice Stairlifts ,113095,SN11,Wiltshire Council,Wiltshire Council,Other Contracts,Third Party Payments,CAPITAL
Wiltshire,http://opendatacommunities.org/id/unitary-authority/wiltshire,23/01/2019,1902275080,3781,1st Choice Stairlifts ,113095,SN11,Wiltshire Council,Wiltshire Council,Other Contracts,Third Party Payments,CAPITAL
Wiltshire,http://opendatacommunities.org/id/unitary-authority/wiltshire,25/01/2019,1902275810,1888.21,1st Choice Stairlifts ,113095,SN11,Wiltshire Council,Wiltshire Council,Other Contracts,Third Party Payments,CAPITAL
Wiltshire,http://opendatacommunities.org/id/unitary-authority/wiltshire,09/01/2019,5107300818,2424.2,2 Care UK Ltd ,110002,BH7 ,Community Services,MH AOWA South Locali,Supported Living,Third Party Payments,REVENUE
Wiltshire,http://opendatacommunities.org/id/unitary-authority/wiltshire,09/01/2019,5107300819,2424.2,2 Care UK Ltd ,110002,BH7 ,Community Services,MH AOWA South Locali,Supported Living,Third Party Payments,REVENUE
Wiltshire,http://opendatacommunities.org/id/unitary-authority/wiltshire,09/01/2019,5107300820,2424.2,2 Care UK Ltd ,110002,BH7 ,Community Services,MH AOWA South Locali,Supported Living,Third Party Payments,REVENUE
Wiltshire,http://opendatacommunities.org/id/unitary-authority/wiltshire,09/01/2019,5107300821,2424.2,2 Care UK Ltd ,110002,BH7 ,Community Services,MH AOWA South Locali,Supported Living,Third Party Payments,REVENUE
Wiltshire,http://opendatacommunities.org/id/unitary-authority/wiltshire,09/01/2019,5107300822,2424.2,2 Care UK Ltd ,110002,BH7 ,Community Services,MH AOWA South Locali,Supported Living,Third Party Payments,REVENUE
Wiltshire,http://opendatacommunities.org/id/unitary-authority/wiltshire,09/01/2019,5107299393,7625.76,22 Wingfield ,129621,BA14,Community Services,CTPLD Placements,Adult Residential Placements - Spot Purchase,Third Party Payments,REVENUE
Wiltshire,http://opendatacommunities.org/id/unitary-authority/wiltshire,09/01/2019,5107299621,6005.12,22 Wingfield ,129621,BA14,Community Services,CTPLD Placements,Adult Residential Placements - Spot Purchase,Third Party Payments,REVENUE
Wiltshire,http://opendatacommunities.org/id/unitary-authority/wiltshire,09/01/2019,5107300431,7394.88,22 Wingfield ,129621,BA14,Community Services,CTPLD Placements,Adult Residential Placements - Spot Purchase,Third Party Payments,REVENUE
Wiltshire,http://opendatacommunities.org/id/unitary-authority/wiltshire,09/01/2019,5107300630,7499.32,22 Wingfield ,129621,BA14,Community Services,West Care Packages,Adult Residential Placements - Spot Purchase,Third Party Payments,REVENUE
Wiltshire,http://opendatacommunities.org/id/unitary-authority/wiltshire,09/01/2019,5107300928,5791.16,22 Wingfield ,129621,BA14,Community Services,MH AOWA West Localit,Adult Residential Placements - Spot Purchase,Third Party Payments,REVENUE
Wiltshire,http://opendatacommunities.org/id/unitary-authority/wiltshire,02/01/2019,5107297533,1730.71,24-7 Staffing ,140662,SN15,Community Services,CTPLD Staff Team,Agency Staff,Employee Related,REVENUE
Wiltshire,http://opendatacommunities.org/id/unitary-authority/wiltshire,02/01/2019,5107297535,1727.64,24-7 Staffing ,140662,SN15,Community Services,CTPLD Staff Team,Agency Staff,Employee Related,REVENUE
Wiltshire,http://opendatacommunities.org/id/unitary-authority/wiltshire,02/01/2019,5107297536,1719,24-7 Staffing ,140662,SN15,Community Services,CTPLD Staff Team,Agency Staff,Employee Related,REVENUE
Wiltshire,http://opendatacommunities.org/id/unitary-authority/wiltshire,02/01/2019,5107297537,1631.4,24-7 Staffing ,140662,SN15,Community Services,CTPLD Staff Team,Agency Staff,Employee Related,REVENUE
Wiltshire,http://opendatacommunities.org/id/unitary-authority/wiltshire,02/01/2019,5107297538,1908.16,24-7 Staffing ,140662,SN15,Community Services,CTPLD Staff Team,Agency Staff,Employee Related,REVENUE
Wiltshire,http://opendatacommunities.org/id/unitary-authority/wiltshire,02/01/2019,5107297539,960.68,24-7 Staffing ,140662,SN15,Community Services,Bradbury Manor Resp,Agency Staff,Employee Related,REVENUE
Wiltshire,http://opendatacommunities.org/id/unitary-authority/wiltshire,02/01/2019,5107297734,2976.42,24-7 Staffing ,140662,SN15,Community Services,MH AOWA South Locali,Adult Domiciliary Care,Third Party Payments,REVENUE
Wiltshire,http://opendatacommunities.org/id/unitary-authority/wiltshire,23/01/2019,1902275259,650,2get2 Taxi Services Ltd ,101102,SP4 ,Neighbourhood & Planning,SEN Primary,Transport Contracts,Third Party Payments,REVENUE
Wiltshire,http://opendatacommunities.org/id/unitary-authority/wiltshire,23/01/2019,1902275259,1300,2get2 Taxi Services Ltd ,101102,SP4 ,Neighbourhood & Planning,SEN Secondary,Transport Contracts,Third Party Payments,REVENUE
Wiltshire,http://opendatacommunities.org/id/unitary-authority/wiltshire,23/01/2019,1902275260,1350,2get2 Taxi Services Ltd ,101102,SP4 ,Neighbourhood & Planning,SEN Primary,Transport Contracts,Third Party Payments,REVENUE
Wiltshire,http://opendatacommunities.org/id/unitary-authority/wiltshire,08/01/2019,1902262224,5455,3MS Gold Services ,144873,B19 ,Wiltshire Council,Wiltshire Council,Other Contracts,Third Party Payments,CAPITAL
Wiltshire,http://opendatacommunities.org/id/unitary-authority/wiltshire,18/01/2019,1902272830,1950,4K Travel ,146614,SN2 ,Neighbourhood & Planning,Mainstream Secondary,Transport Contracts,Third Party Payments,REVENUE
Wiltshire,http://opendatacommunities.org/id/unitary-authority/wiltshire,23/01/2019,1902275266,2801.46,4K Travel ,146614,SN2 ,Neighbourhood & Planning,Mainstream Secondary,Transport Contracts,Third Party Payments,REVENUE
Wiltshire,http://opendatacommunities.org/id/unitary-authority/wiltshire,09/01/2019,1902263502,308,A & T Salisbury (Ltd) ,134373,SP1 ,Community Services,South Care Packages,Adult Domiciliary Care,Third Party Payments,REVENUE
Wiltshire,http://opendatacommunities.org/id/unitary-authority/wiltshire,09/01/2019,1902263503,876.88,A & T Salisbury (Ltd) ,134373,SP1 ,Community Services,South Care Packages,Adult Domiciliary Care Contribution,Income,REVENUE
Wiltshire,http://opendatacommunities.org/id/unitary-authority/wiltshire,09/01/2019,1902263504,616,A & T Salisbury (Ltd) ,134373,SP1 ,Community Services,South Care Packages,Adult Domiciliary Care,Third Party Payments,REVENUE
Wiltshire,http://opendatacommunities.org/id/unitary-authority/wiltshire,30/01/2019,1902277868,876.88,A & T Salisbury (Ltd) ,134373,SP1 ,Community Services,South Care Packages,Adult Domiciliary Care Contribution,Income,REVENUE
Wiltshire,http://opendatacommunities.org/id/unitary-authority/wiltshire,30/01/2019,1902277869,616,A & T Salisbury (Ltd) ,134373,SP1 ,Community Services,South Care Packages,Adult Domiciliary Care,Third Party Payments,REVENUE
Wiltshire,http://opendatacommunities.org/id/unitary-authority/wiltshire,31/01/2019,1902278561,786,A & T Salisbury (Ltd) ,134373,SP1 ,Community Services,HTLAH - Neighbourhoo,Interim Support Plan - HTLAH,Third Party Payments,REVENUE
Wiltshire,http://opendatacommunities.org/id/unitary-authority/wiltshire,15/01/2019,1902265253,598.5,A G Minibuses Ltd ,100878,BA12,Neighbourhood & Planning,SEN Secondary,Transport Contracts,Third Party Payments,REVENUE
Wiltshire,http://opendatacommunities.org/id/unitary-authority/wiltshire,15/01/2019,1902265253,598.5,A G Minibuses Ltd ,100878,BA12,Neighbourhood & Planning,SEN 16+ Secondary,Transport Contracts,Third Party Payments,REVENUE
Wiltshire,http://opendatacommunities.org/id/unitary-authority/wiltshire,15/01/2019,1902265253,1197,A G Minibuses Ltd ,100878,BA12,Neighbourhood & Planning,SEN Primary,Transport Contracts,Third Party Payments,REVENUE
Wiltshire,http://opendatacommunities.org/id/unitary-authority/wiltshire,15/01/2019,1902265254,679.81,A G Minibuses Ltd ,100878,BA12,Community Services,West Care Packages,Transport Contracts,Third Party Payments,REVENUE
Wiltshire,http://opendatacommunities.org/id/unitary-authority/wiltshire,15/01/2019,1902265254,2356.69,A G Minibuses Ltd ,100878,BA12,Community Services,CTPLD Placements,Transport Contracts,Third Party Payments,REVENUE
Wiltshire,http://opendatacommunities.org/id/unitary-authority/wiltshire,15/01/2019,1902265255,1384.29,A G Minibuses Ltd ,100878,BA12,Community Services,CTPLD Placements,Transport Contracts,Third Party Payments,REVENUE
Wiltshire,http://opendatacommunities.org/id/unitary-authority/wiltshire,15/01/2019,1902265256,297.5,A G Minibuses Ltd ,100878,BA12,Neighbourhood & Planning,SEN Primary,Transport Contracts,Third Party Payments,REVENUE
Wiltshire,http://opendatacommunities.org/id/unitary-authority/wiltshire,15/01/2019,1902265256,1487.5,A G Minibuses Ltd ,100878,BA12,Neighbourhood & Planning,SEN Secondary,Transport Contracts,Third Party Payments,REVENUE
Wiltshire,http://opendatacommunities.org/id/unitary-authority/wiltshire,15/01/2019,1902265257,2085,A G Minibuses Ltd ,100878,BA12,Neighbourhood & Planning,SEN Secondary,Transport Contracts,Third Party Payments,REVENUE
Wiltshire,http://opendatacommunities.org/id/unitary-authority/wiltshire,15/01/2019,1902265258,336.67,A G Minibuses Ltd ,100878,BA12,Neighbourhood & Planning,SEN Primary,Transport Contracts,Third Party Payments,REVENUE
Wiltshire,http://opendatacommunities.org/id/unitary-authority/wiltshire,15/01/2019,1902265258,1683.33,A G Minibuses Ltd ,100878,BA12,Neighbourhood & Planning,SEN Secondary,Transport Contracts,Third Party Payments,REVENUE
Wiltshire,http://opendatacommunities.org/id/unitary-authority/wiltshire,15/01/2019,1902265268,618,A G Minibuses Ltd ,100878,BA12,Community Services,West Care Packages,Transport Contracts,Third Party Payments,REVENUE
Wiltshire,http://opendatacommunities.org/id/unitary-authority/wiltshire,15/01/2019,1902265271,1980,A G Minibuses Ltd ,100878,BA12,Neighbourhood & Planning,Mainstream Primary,Transport Contracts,Third Party Payments,REVENUE
Wiltshire,http://opendatacommunities.org/id/unitary-authority/wiltshire,15/01/2019,1902265272,1498,A G Minibuses Ltd ,100878,BA12,Neighbourhood & Planning,SEN Secondary,Transport Contracts,Third Party Payments,REVENUE
Wiltshire,http://opendatacommunities.org/id/unitary-authority/wiltshire,15/01/2019,1902265273,672.9,A G Minibuses Ltd ,100878,BA12,Neighbourhood & Planning,SEN Secondary,Transport Contracts,Third Party Payments,REVENUE
Wiltshire,http://opendatacommunities.org/id/unitary-authority/wiltshire,15/01/2019,1902265273,897.2,A G Minibuses Ltd ,100878,BA12,Neighbourhood & Planning,SEN Primary,Transport Contracts,Third Party Payments,REVENUE
Wiltshire,http://opendatacommunities.org/id/unitary-authority/wiltshire,15/01/2019,1902265275,1907.56,A G Minibuses Ltd ,100878,BA12,Neighbourhood & Planning,Mainstream Primary,Transport Contracts,Third Party Payments,REVENUE
Wiltshire,http://opendatacommunities.org/id/unitary-authority/wiltshire,15/01/2019,1902265276,594,A G Minibuses Ltd ,100878,BA12,Neighbourhood & Planning,SEN Primary,Transport Contracts,Third Party Payments,REVENUE
Wiltshire,http://opendatacommunities.org/id/unitary-authority/wiltshire,15/01/2019,1902265276,594,A G Minibuses Ltd ,100878,BA12,Neighbourhood & Planning,SEN Secondary,Transport Contracts,Third Party Payments,REVENUE
Wiltshire,http://opendatacommunities.org/id/unitary-authority/wiltshire,15/01/2019,1902265276,594,A G Minibuses Ltd ,100878,BA12,Neighbourhood & Planning,SEN 16+ Secondary,Transport Contracts,Third Party Payments,REVENUE
Wiltshire,http://opendatacommunities.org/id/unitary-authority/wiltshire,15/01/2019,1902265277,280,A G Minibuses Ltd ,100878,BA12,Neighbourhood & Planning,SEN Primary,Transport Contracts,Third Party Payments,REVENUE
Wiltshire,http://opendatacommunities.org/id/unitary-authority/wiltshire,15/01/2019,1902265277,840,A G Minibuses Ltd ,100878,BA12,Neighbourhood & Planning,SEN Secondary,Transport Contracts,Third Party Payments,REVENUE
Wiltshire,http://opendatacommunities.org/id/unitary-authority/wiltshire,15/01/2019,1902265277,840,A G Minibuses Ltd ,100878,BA12,Neighbourhood & Planning,SEN 16+ Secondary,Transport Contracts,Third Party Payments,REVENUE
Wiltshire,http://opendatacommunities.org/id/unitary-authority/wiltshire,15/01/2019,1902265278,1150.8,A G Minibuses Ltd ,100878,BA12,Neighbourhood & Planning,SEN Secondary,Transport Contracts,Third Party Payments,REVENUE
Wiltshire,http://opendatacommunities.org/id/unitary-authority/wiltshire,15/01/2019,1902265279,1313.1,A G Minibuses Ltd ,100878,BA12,Neighbourhood & Planning,SEN Primary,Transport Contracts,Third Party Payments,REVENUE
Wiltshire,http://opendatacommunities.org/id/unitary-authority/wiltshire,17/01/2019,1902272497,990,A G Minibuses Ltd ,100878,BA12,Community Services,CTPLD Placements,Transport Contracts,Third Party Payments,REVENUE
Wiltshire,http://opendatacommunities.org/id/unitary-authority/wiltshire,17/01/2019,1902272507,1912,A G Minibuses Ltd ,100878,BA12,Neighbourhood & Planning,Mainstream Secondary,Transport Contracts,Third Party Payments,REVENUE
Wiltshire,http://opendatacommunities.org/id/unitary-authority/wiltshire,17/01/2019,1902272508,345,A G Minibuses Ltd ,100878,BA12,Neighbourhood & Planning,SEN Secondary,Transport Contracts,Third Party Payments,REVENUE
Wiltshire,http://opendatacommunities.org/id/unitary-authority/wiltshire,17/01/2019,1902272508,345,A G Minibuses Ltd ,100878,BA12,Neighbourhood & Planning,SEN 16+ Secondary,Transport Contracts,Third Party Payments,REVENUE
Wiltshire,http://opendatacommunities.org/id/unitary-authority/wiltshire,17/01/2019,1902272508,1035,A G Minibuses Ltd ,100878,BA12,Neighbourhood & Planning,SEN Primary,Transport Contracts,Third Party Payments,REVENUE
Wiltshire,http://opendatacommunities.org/id/unitary-authority/wiltshire,23/01/2019,1902275246,997.5,A G Minibuses Ltd ,100878,BA12,Neighbourhood & Planning,Mainstream Primary,Transport Contracts,Third Party Payments,REVENUE
Wiltshire,http://opendatacommunities.org/id/unitary-authority/wiltshire,23/01/2019,1902275246,3379.53,A G Minibuses Ltd ,100878,BA12,Neighbourhood & Planning,Public Transport,Transport Contracts,Third Party Payments,REVENUE
Wiltshire,http://opendatacommunities.org/id/unitary-authority/wiltshire,23/01/2019,1902275247,1583.33,A G Minibuses Ltd ,100878,BA12,Neighbourhood & Planning,Mainstream Secondary,Transport Contracts,Third Party Payments,REVENUE
Wiltshire,http://opendatacommunities.org/id/unitary-authority/wiltshire,23/01/2019,1902275247,3422.44,A G Minibuses Ltd ,100878,BA12,Neighbourhood & Planning,Public Transport,Transport Contracts,Third Party Payments,REVENUE
Wiltshire,http://opendatacommunities.org/id/unitary-authority/wiltshire,25/01/2019,1902275878,431.06,A G Minibuses Ltd ,100878,BA12,Neighbourhood & Planning,SEN Primary,Transport Contracts,Third Party Payments,REVENUE
Wiltshire,http://opendatacommunities.org/id/unitary-authority/wiltshire,25/01/2019,1902275878,1724.24,A G Minibuses Ltd ,100878,BA12,Neighbourhood & Planning,SEN Secondary,Transport Contracts,Third Party Payments,REVENUE
Wiltshire,http://opendatacommunities.org/id/unitary-authority/wiltshire,15/01/2019,1902265243,1125,A1 Cab Company ,101233,SP4 ,Neighbourhood & Planning,SEN Primary,Transport Contracts,Third Party Payments,REVENUE
Wiltshire,http://opendatacommunities.org/id/unitary-authority/wiltshire,15/01/2019,1902265244,1077.92,A1 Cab Company ,101233,SP4 ,Neighbourhood & Planning,Mainstream Secondary,Transport Contracts,Third Party Payments,REVENUE
Wiltshire,http://opendatacommunities.org/id/unitary-authority/wiltshire,15/01/2019,1902265246,820,A1 Cab Company ,101233,SP4 ,Neighbourhood & Planning,SEN 16+ Secondary,Transport Contracts,Third Party Payments,REVENUE
Wiltshire,http://opendatacommunities.org/id/unitary-authority/wiltshire,15/01/2019,1902263083,50544,A2 Dominion ,129151,NW1 ,Neighbourhood & Planning,Hsg Strat & Enabling,Other Contracts,Third Party Payments,REVENUE
Wiltshire,http://opendatacommunities.org/id/unitary-authority/wiltshire,08/01/2019,1902263009,306,A2B Taxis (Dorset) ,143353,SP8 ,Community Services,CTPLD Placements,Transport Contracts,Third Party Payments,REVENUE
Wiltshire,http://opendatacommunities.org/id/unitary-authority/wiltshire,08/01/2019,1902263013,540,A2B Taxis (Dorset) ,143353,SP8 ,Community Services,West Care Packages,Transport Contracts,Third Party Payments,REVENUE
Wiltshire,http://opendatacommunities.org/id/unitary-authority/wiltshire,30/01/2019,1902277136,943,AA Media Ltd ,132360,RG21,Resources,Salisbury Xmas Mrket,Marketing and Promotions,Supplies and Services,REVENUE
Wiltshire,http://opendatacommunities.org/id/unitary-authority/wiltshire,10/01/2019,1902264098,1440,AAP Taxis and Private Hire Ltd ,143342,SN12,Neighbourhood & Planning,SEN Primary,Transport Contracts,Third Party Payments,REVENUE
Wiltshire,http://opendatacommunities.org/id/unitary-authority/wiltshire,10/01/2019,1902264098,1920,AAP Taxis and Private Hire Ltd ,143342,SN12,Neighbourhood & Planning,SEN Secondary,Transport Contracts,Third Party Payments,REVENUE
Wiltshire,http://opendatacommunities.org/id/unitary-authority/wiltshire,10/01/2019,1902264099,1050,AAP Taxis and Private Hire Ltd ,143342,SN12,Neighbourhood & Planning,SEN Secondary,Transport Contracts,Third Party Payments,REVENUE
Wiltshire,http://opendatacommunities.org/id/unitary-authority/wiltshire,10/01/2019,1902264110,1650,AAP Taxis and Private Hire Ltd ,143342,SN12,Neighbourhood & Planning,SEN 16+ Secondary,Transport Contracts,Third Party Payments,REVENUE
Wiltshire,http://opendatacommunities.org/id/unitary-authority/wiltshire,10/01/2019,1902264121,300,AAP Taxis and Private Hire Ltd ,143342,SN12,Neighbourhood & Planning,Mainstream Primary,Transport Contracts,Third Party Payments,REVENUE
Wiltshire,http://opendatacommunities.org/id/unitary-authority/wiltshire,28/01/2019,1902276143,280,AAP Taxis and Private Hire Ltd ,143342,SN12,Neighbourhood & Planning,SEN Primary,Transport Contracts,Third Party Payments,REVENUE
Wiltshire,http://opendatacommunities.org/id/unitary-authority/wiltshire,15/01/2019,1902265709,8503.6,AB Learning and Education ,125864,SN8 ,Children & Education,Free Enttlmnt 3 & 4y,Childcare Free Entitlement Early Years,Supplies and Services,REVENUE
Wiltshire,http://opendatacommunities.org/id/unitary-authority/wiltshire,15/01/2019,1902265710,292.6,AB Learning and Education ,125864,SN8 ,Children & Education,Free Entitlement 2 Y,Childcare Free Entitlement Early Years,Supplies and Services,REVENUE
Wiltshire,http://opendatacommunities.org/id/unitary-authority/wiltshire,09/01/2019,1902263594,1020,Abbey Taxis (Swindon) Ltd ,100920,SN2 ,Community Services,CTPLD Placements,Transport Contracts,Third Party Payments,REVENUE
Wiltshire,http://opendatacommunities.org/id/unitary-authority/wiltshire,09/01/2019,1902263595,437.5,Abbey Taxis (Swindon) Ltd ,100920,SN2 ,Neighbourhood & Planning,SEN Primary,Transport Contracts,Third Party Payments,REVENUE
Wiltshire,http://opendatacommunities.org/id/unitary-authority/wiltshire,09/01/2019,1902263595,2187.5,Abbey Taxis (Swindon) Ltd ,100920,SN2 ,Neighbourhood & Planning,SEN Secondary,Transport Contracts,Third Party Payments,REVENUE
Wiltshire,http://opendatacommunities.org/id/unitary-authority/wiltshire,09/01/2019,1902263596,321.43,Abbey Taxis (Swindon) Ltd ,100920,SN2 ,Neighbourhood & Planning,SEN Primary,Transport Contracts,Third Party Payments,REVENUE
Wiltshire,http://opendatacommunities.org/id/unitary-authority/wiltshire,09/01/2019,1902263596,1928.57,Abbey Taxis (Swindon) Ltd ,100920,SN2 ,Neighbourhood & Planning,SEN Secondary,Transport Contracts,Third Party Payments,REVENUE
Wiltshire,http://opendatacommunities.org/id/unitary-authority/wiltshire,09/01/2019,1902263597,1500,Abbey Taxis (Swindon) Ltd ,100920,SN2 ,Neighbourhood & Planning,SEN Secondary,Transport Contracts,Third Party Payments,REVENUE
Wiltshire,http://opendatacommunities.org/id/unitary-authority/wiltshire,09/01/2019,1902263598,915,Abbey Taxis (Swindon) Ltd ,100920,SN2 ,Neighbourhood & Planning,Mainstream Secondary,Transport Contracts,Third Party Payments,REVENUE
Wiltshire,http://opendatacommunities.org/id/unitary-authority/wiltshire,09/01/2019,1902263599,1790,Abbey Taxis (Swindon) Ltd ,100920,SN2 ,Neighbourhood & Planning,SEN Secondary,Transport Contracts,Third Party Payments,REVENUE
Wiltshire,http://opendatacommunities.org/id/unitary-authority/wiltshire,09/01/2019,1902263600,562.5,Abbey Taxis (Swindon) Ltd ,100920,SN2 ,Neighbourhood & Planning,Mainstream Primary,Transport Contracts,Third Party Payments,REVENUE
Wiltshire,http://opendatacommunities.org/id/unitary-authority/wiltshire,09/01/2019,1902263600,1687.5,Abbey Taxis (Swindon) Ltd ,100920,SN2 ,Neighbourhood & Planning,SEN Primary,Transport Contracts,Third Party Payments,REVENUE
Wiltshire,http://opendatacommunities.org/id/unitary-authority/wiltshire,09/01/2019,1902263601,1410,Abbey Taxis (Swindon) Ltd ,100920,SN2 ,Neighbourhood & Planning,SEN Primary,Transport Contracts,Third Party Payments,REVENUE
Wiltshire,http://opendatacommunities.org/id/unitary-authority/wiltshire,09/01/2019,1902263602,327,Abbey Taxis (Swindon) Ltd ,100920,SN2 ,Neighbourhood & Planning,SEN Secondary,Transport Contracts,Third Party Payments,REVENUE
Wiltshire,http://opendatacommunities.org/id/unitary-authority/wiltshire,09/01/2019,1902263602,1308,Abbey Taxis (Swindon) Ltd ,100920,SN2 ,Neighbourhood & Planning,SEN Primary,Transport Contracts,Third Party Payments,REVENUE
Wiltshire,http://opendatacommunities.org/id/unitary-authority/wiltshire,09/01/2019,1902263603,825,Abbey Taxis (Swindon) Ltd ,100920,SN2 ,Neighbourhood & Planning,SEN Primary,Transport Contracts,Third Party Payments,REVENUE
Wiltshire,http://opendatacommunities.org/id/unitary-authority/wiltshire,09/01/2019,1902263603,825,Abbey Taxis (Swindon) Ltd ,100920,SN2 ,Neighbourhood & Planning,SEN Secondary,Transport Contracts,Third Party Payments,REVENUE
Wiltshire,http://opendatacommunities.org/id/unitary-authority/wiltshire,09/01/2019,1902263604,1500,Abbey Taxis (Swindon) Ltd ,100920,SN2 ,Neighbourhood & Planning,SEN Secondary,Transport Contracts,Third Party Payments,REVENUE
Wiltshire,http://opendatacommunities.org/id/unitary-authority/wiltshire,09/01/2019,1902263605,1470,Abbey Taxis (Swindon) Ltd ,100920,SN2 ,Neighbourhood & Planning,SEN Secondary,Transport Contracts,Third Party Payments,REVENUE
Wiltshire,http://opendatacommunities.org/id/unitary-authority/wiltshire,09/01/2019,1902263606,287.5,Abbey Taxis (Swindon) Ltd ,100920,SN2 ,Neighbourhood & Planning,SEN Secondary,Transport Contracts,Third Party Payments,REVENUE
Wiltshire,http://opendatacommunities.org/id/unitary-authority/wiltshire,09/01/2019,1902263606,1437.5,Abbey Taxis (Swindon) Ltd ,100920,SN2 ,Neighbourhood & Planning,Mainstream Secondary,Transport Contracts,Third Party Payments,REVENUE
Wiltshire,http://opendatacommunities.org/id/unitary-authority/wiltshire,09/01/2019,1902263607,909,Abbey Taxis (Swindon) Ltd ,100920,SN2 ,Neighbourhood & Planning,SEN 16+ Secondary,Transport Contracts,Third Party Payments,REVENUE
Wiltshire,http://opendatacommunities.org/id/unitary-authority/wiltshire,09/01/2019,1902263608,2250,Abbey Taxis (Swindon) Ltd ,100920,SN2 ,Neighbourhood & Planning,SEN Primary,Transport Contracts,Third Party Payments,REVENUE
Wiltshire,http://opendatacommunities.org/id/unitary-authority/wiltshire,10/01/2019,1902264071,425,Abbey Taxis (Swindon) Ltd ,100920,SN2 ,Neighbourhood & Planning,SEN Secondary,Transport Contracts,Third Party Payments,REVENUE
Wiltshire,http://opendatacommunities.org/id/unitary-authority/wiltshire,10/01/2019,1902264075,1820,Abbey Taxis (Swindon) Ltd ,100920,SN2 ,Neighbourhood & Planning,SEN Secondary,Transport Contracts,Third Party Payments,REVENUE
Wiltshire,http://opendatacommunities.org/id/unitary-authority/wiltshire,10/01/2019,1902264076,1400,Abbey Taxis (Swindon) Ltd ,100920,SN2 ,Neighbourhood & Planning,SEN Secondary,Transport Contracts,Third Party Payments,REVENUE
Wiltshire,http://opendatacommunities.org/id/unitary-authority/wiltshire,10/01/2019,1902264076,2100,Abbey Taxis (Swindon) Ltd ,100920,SN2 ,Neighbourhood & Planning,SEN Primary,Transport Contracts,Third Party Payments,REVENUE
Wiltshire,http://opendatacommunities.org/id/unitary-authority/wiltshire,10/01/2019,1902264077,792,Abbey Taxis (Swindon) Ltd ,100920,SN2 ,Neighbourhood & Planning,SEN Primary,Transport Contracts,Third Party Payments,REVENUE
Wiltshire,http://opendatacommunities.org/id/unitary-authority/wiltshire,10/01/2019,1902264078,663,Abbey Taxis (Swindon) Ltd ,100920,SN2 ,Neighbourhood & Planning,SEN Secondary,Transport Contracts,Third Party Payments,REVENUE
Wiltshire,http://opendatacommunities.org/id/unitary-authority/wiltshire,10/01/2019,1902264078,663,Abbey Taxis (Swindon) Ltd ,100920,SN2 ,Neighbourhood & Planning,SEN 16+ Secondary,Transport Contracts,Third Party Payments,REVENUE
Wiltshire,http://opendatacommunities.org/id/unitary-authority/wiltshire,10/01/2019,1902264080,3220,Abbey Taxis (Swindon) Ltd ,100920,SN2 ,Neighbourhood & Planning,SEN Secondary,Transport Contracts,Third Party Payments,REVENUE
Wiltshire,http://opendatacommunities.org/id/unitary-authority/wiltshire,10/01/2019,1902264083,1785,Abbey Taxis (Swindon) Ltd ,100920,SN2 ,Neighbourhood & Planning,SEN Primary,Transport Contracts,Third Party Payments,REVENUE
Wiltshire,http://opendatacommunities.org/id/unitary-authority/wiltshire,10/01/2019,1902264084,1848,Abbey Taxis (Swindon) Ltd ,100920,SN2 ,Neighbourhood & Planning,SEN Secondary,Transport Contracts,Third Party Payments,REVENUE
Wiltshire,http://opendatacommunities.org/id/unitary-authority/wiltshire,10/01/2019,1902264085,1950,Abbey Taxis (Swindon) Ltd ,100920,SN2 ,Neighbourhood & Planning,SEN 16+ Secondary,Transport Contracts,Third Party Payments,REVENUE
Wiltshire,http://opendatacommunities.org/id/unitary-authority/wiltshire,15/01/2019,1902265865,10217.73,ABC Day Nursery 1027 ,110028,SN12,Children & Education,Free Enttlmnt 3 & 4y,Childcare Free Entitlement Early Years,Supplies and Services,REVENUE
Wiltshire,http://opendatacommunities.org/id/unitary-authority/wiltshire,15/01/2019,1902265866,1170.4,ABC Day Nursery 1027 ,110028,SN12,Children & Education,Free Entitlement 2 Y,Childcare Free Entitlement Early Years,Supplies and Services,REVENUE
Wiltshire,http://opendatacommunities.org/id/unitary-authority/wiltshire,30/01/2019,1902278057,1436.4,ABC Day Nursery 1027 ,110028,SN12,Children & Education,Free Entitlement 2 Y,Childcare Free Entitlement Early Years,Supplies and Services,REVENUE
Wiltshire,http://opendatacommunities.org/id/unitary-authority/wiltshire,15/01/2019,1902265931,4870.46,ABC Nursery ,143051,SN13,Children & Education,Free Enttlmnt 3 & 4y,Childcare Free Entitlement Early Years,Supplies and Services,REVENUE
Wiltshire,http://opendatacommunities.org/id/unitary-authority/wiltshire,15/01/2019,1902265932,4681.6,ABC Nursery ,143051,SN13,Children & Education,Free Entitlement 2 Y,Childcare Free Entitlement Early Years,Supplies and Services,REVENUE
Wiltshire,http://opendatacommunities.org/id/unitary-authority/wiltshire,30/01/2019,1902278067,478.8,ABC Nursery ,143051,SN13,Children & Education,Free Entitlement 2 Y,Childcare Free Entitlement Early Years,Supplies and Services,REVENUE
Wiltshire,http://opendatacommunities.org/id/unitary-authority/wiltshire,10/01/2019,1902264039,500,Abicare Services Ltd (Shopping) ,147979,SP2 ,Community Services,Adult Care Gross Loa,Adult Domiciliary Care,Third Party Payments,REVENUE
Wiltshire,http://opendatacommunities.org/id/unitary-authority/wiltshire,09/01/2019,1902263244,353.2,Abicare Services Ltd Homecare ,110031,SP2 ,Community Services,South Care Packages,Adult Domiciliary Care Contribution,Income,REVENUE
Wiltshire,http://opendatacommunities.org/id/unitary-authority/wiltshire,09/01/2019,1902263245,706.09,Abicare Services Ltd Homecare ,110031,SP2 ,Community Services,South Care Packages,Adult Domiciliary Care,Third Party Payments,REVENUE
Wiltshire,http://opendatacommunities.org/id/unitary-authority/wiltshire,09/01/2019,1902263248,312.28,Abicare Services Ltd Homecare ,110031,SP2 ,Community Services,West Care Packages,Adult Domiciliary Care Contribution,Income,REVENUE
Wiltshire,http://opendatacommunities.org/id/unitary-authority/wiltshire,09/01/2019,1902263252,477.44,Abicare Services Ltd Homecare ,110031,SP2 ,Community Services,South Care Packages,Adult Domiciliary Care Contribution,Income,REVENUE
Wiltshire,http://opendatacommunities.org/id/unitary-authority/wiltshire,09/01/2019,1902263254,267.26,Abicare Services Ltd Homecare ,110031,SP2 ,Community Services,MH AOWA West Localit,Adult Domiciliary Care,Third Party Payments,REVENUE
Wiltshire,http://opendatacommunities.org/id/unitary-authority/wiltshire,09/01/2019,1902263256,267.24,Abicare Services Ltd Homecare ,110031,SP2 ,Community Services,South Care Packages,Adult Domiciliary Care Contribution,Income,REVENUE
Wiltshire,http://opendatacommunities.org/id/unitary-authority/wiltshire,09/01/2019,1902263259,267.26,Abicare Services Ltd Homecare ,110031,SP2 ,Community Services,MH AOWA West Localit,Adult Domiciliary Care,Third Party Payments,REVENUE
Wiltshire,http://opendatacommunities.org/id/unitary-authority/wiltshire,09/01/2019,1902263260,378.23,Abicare Services Ltd Homecare ,110031,SP2 ,Community Services,MH AOWA West Localit,Adult Domiciliary Care Contribution,Income,REVENUE
Wiltshire,http://opendatacommunities.org/id/unitary-authority/wiltshire,09/01/2019,1902263264,428.29,Abicare Services Ltd Homecare ,110031,SP2 ,Community Services,South Care Packages,Adult Domiciliary Care,Third Party Payments,REVENUE
Wiltshire,http://opendatacommunities.org/id/unitary-authority/wiltshire,09/01/2019,1902263267,367.78,Abicare Services Ltd Homecare ,110031,SP2 ,Community Services,South Care Packages,Adult Domiciliary Care Contribution,Income,REVENUE
Wiltshire,http://opendatacommunities.org/id/unitary-authority/wiltshire,09/01/2019,1902263268,313.6,Abicare Services Ltd Homecare ,110031,SP2 ,Community Services,South Care Packages,Adult Domiciliary Care,Third Party Payments,REVENUE
Wiltshire,http://opendatacommunities.org/id/unitary-authority/wiltshire,09/01/2019,1902263271,271.46,Abicare Services Ltd Homecare ,110031,SP2 ,Community Services,South Care Packages,Adult Domiciliary Care,Third Party Payments,REVENUE
Wiltshire,http://opendatacommunities.org/id/unitary-authority/wiltshire,09/01/2019,1902263272,673.57,Abicare Services Ltd Homecare ,110031,SP2 ,Community Services,South Care Packages,Adult Domiciliary Care Contribution,Income,REVENUE
Wiltshire,http://opendatacommunities.org/id/unitary-authority/wiltshire,09/01/2019,1902263339,1212.28,Abicare Services Ltd Homecare ,110031,SP2 ,Community Services,West Care Packages,Adult Domiciliary Care Contribution,Income,REVENUE
Wiltshire,http://opendatacommunities.org/id/unitary-authority/wiltshire,16/01/2019,1902271559,298.45,Abicare Services Ltd Homecare ,110031,SP2 ,Community Services,South Care Packages,Adult Domiciliary Care Contribution,Income,REVENUE
Wiltshire,http://opendatacommunities.org/id/unitary-authority/wiltshire,16/01/2019,1902271560,706.09,Abicare Services Ltd Homecare ,110031,SP2 ,Community Services,South Care Packages,Adult Domiciliary Care,Third Party Payments,REVENUE
Wiltshire,http://opendatacommunities.org/id/unitary-authority/wiltshire,16/01/2019,1902271564,312.28,Abicare Services Ltd Homecare ,110031,SP2 ,Community Services,West Care Packages,Adult Domiciliary Care,Third Party Payments,REVENUE
Wiltshire,http://opendatacommunities.org/id/unitary-authority/wiltshire,16/01/2019,1902271566,378.23,Abicare Services Ltd Homecare ,110031,SP2 ,Community Services,MH AOWA West Localit,Adult Domiciliary Care,Third Party Payments,REVENUE
Wiltshire,http://opendatacommunities.org/id/unitary-authority/wiltshire,16/01/2019,1902271568,267.26,Abicare Services Ltd Homecare ,110031,SP2 ,Community Services,MH AOWA West Localit,Adult Domiciliary Care,Third Party Payments,REVENUE
Wiltshire,http://opendatacommunities.org/id/unitary-authority/wiltshire,16/01/2019,1902271573,313.91,Abicare Services Ltd Homecare ,110031,SP2 ,Community Services,West Care Packages,Adult Domiciliary Care,Third Party Payments,REVENUE
Wiltshire,http://opendatacommunities.org/id/unitary-authority/wiltshire,16/01/2019,1902271576,597.73,Abicare Services Ltd Homecare ,110031,SP2 ,Community Services,South Care Packages,Adult Domiciliary Care,Third Party Payments,REVENUE
Wiltshire,http://opendatacommunities.org/id/unitary-authority/wiltshire,16/01/2019,1902271577,349.8,Abicare Services Ltd Homecare ,110031,SP2 ,Community Services,South Care Packages,Adult Domiciliary Care,Third Party Payments,REVENUE
Wiltshire,http://opendatacommunities.org/id/unitary-authority/wiltshire,16/01/2019,1902271578,713.51,Abicare Services Ltd Homecare ,110031,SP2 ,Community Services,South Care Packages,Adult Domiciliary Care,Third Party Payments,REVENUE
Wiltshire,http://opendatacommunities.org/id/unitary-authority/wiltshire,16/01/2019,1902271579,367.78,Abicare Services Ltd Homecare ,110031,SP2 ,Community Services,South Care Packages,Adult Domiciliary Care,Third Party Payments,REVENUE
Wiltshire,http://opendatacommunities.org/id/unitary-authority/wiltshire,16/01/2019,1902271580,267.24,Abicare Services Ltd Homecare ,110031,SP2 ,Community Services,South Care Packages,Adult Domiciliary Care,Third Party Payments,REVENUE
Wiltshire,http://opendatacommunities.org/id/unitary-authority/wiltshire,16/01/2019,1902271582,428.29,Abicare Services Ltd Homecare ,110031,SP2 ,Community Services,South Care Packages,Adult Domiciliary Care,Third Party Payments,REVENUE
Wiltshire,http://opendatacommunities.org/id/unitary-authority/wiltshire,16/01/2019,1902271584,402.56,Abicare Services Ltd Homecare ,110031,SP2 ,Community Services,West Care Packages,Adult Domiciliary Care,Third Party Payments,REVENUE
Wiltshire,http://opendatacommunities.org/id/unitary-authority/wiltshire,16/01/2019,1902271585,402.56,Abicare Services Ltd Homecare ,110031,SP2 ,Community Services,West Care Packages,Adult Domiciliary Care,Third Party Payments,REVENUE
Wiltshire,http://opendatacommunities.org/id/unitary-authority/wiltshire,16/01/2019,1902271586,345.94,Abicare Services Ltd Homecare ,110031,SP2 ,Community Services,West Care Packages,Adult Domiciliary Care,Third Party Payments,REVENUE
Wiltshire,http://opendatacommunities.org/id/unitary-authority/wiltshire,16/01/2019,1902271587,794.58,Abicare Services Ltd Homecare ,110031,SP2 ,Community Services,North Care Packages,Adult Domiciliary Care Contribution,Income,REVENUE
Wiltshire,http://opendatacommunities.org/id/unitary-authority/wiltshire,22/01/2019,1902274225,706.09,Abicare Services Ltd Homecare ,110031,SP2 ,Community Services,South Care Packages,Adult Domiciliary Care,Third Party Payments,REVENUE
Wiltshire,http://opendatacommunities.org/id/unitary-authority/wiltshire,22/01/2019,1902274226,515.98,Abicare Services Ltd Homecare ,110031,SP2 ,Community Services,West Care Packages,Adult Domiciliary Care Contribution,Income,REVENUE
Wiltshire,http://opendatacommunities.org/id/unitary-authority/wiltshire,22/01/2019,1902274229,312.28,Abicare Services Ltd Homecare ,110031,SP2 ,Community Services,West Care Packages,Adult Domiciliary Care Contribution,Income,REVENUE
Wiltshire,http://opendatacommunities.org/id/unitary-authority/wiltshire,22/01/2019,1902274232,477.44,Abicare Services Ltd Homecare ,110031,SP2 ,Community Services,South Care Packages,Adult Domiciliary Care Contribution,Income,REVENUE
Wiltshire,http://opendatacommunities.org/id/unitary-authority/wiltshire,22/01/2019,1902274234,267.26,Abicare Services Ltd Homecare ,110031,SP2 ,Community Services,MH AOWA West Localit,Adult Domiciliary Care,Third Party Payments,REVENUE
Wiltshire,http://opendatacommunities.org/id/unitary-authority/wiltshire,22/01/2019,1902274239,286.35,Abicare Services Ltd Homecare ,110031,SP2 ,Community Services,MH AOWA West Localit,Adult Domiciliary Care,Third Party Payments,REVENUE
Wiltshire,http://opendatacommunities.org/id/unitary-authority/wiltshire,22/01/2019,1902274240,378.23,Abicare Services Ltd Homecare ,110031,SP2 ,Community Services,MH AOWA West Localit,Adult Domiciliary Care Contribution,Income,REVENUE
Wiltshire,http://opendatacommunities.org/id/unitary-authority/wiltshire,22/01/2019,1902274243,428.29,Abicare Services Ltd Homecare ,110031,SP2 ,Community Services,South Care Packages,Adult Domiciliary Care,Third Party Payments,REVENUE
Wiltshire,http://opendatacommunities.org/id/unitary-authority/wiltshire,22/01/2019,1902274245,268.72,Abicare Services Ltd Homecare ,110031,SP2 ,Community Services,South Care Packages,Adult Domiciliary Care Contribution,Income,REVENUE
Wiltshire,http://opendatacommunities.org/id/unitary-authority/wiltshire,22/01/2019,1902274247,367.78,Abicare Services Ltd Homecare ,110031,SP2 ,Community Services,South Care Packages,Adult Domiciliary Care Contribution,Income,REVENUE
Wiltshire,http://opendatacommunities.org/id/unitary-authority/wiltshire,22/01/2019,1902274248,313.6,Abicare Services Ltd Homecare ,110031,SP2 ,Community Services,South Care Packages,Adult Domiciliary Care,Third Party Payments,REVENUE
Wiltshire,http://opendatacommunities.org/id/unitary-authority/wiltshire,22/01/2019,1902274250,650.67,Abicare Services Ltd Homecare ,110031,SP2 ,Community Services,South Care Packages,Adult Domiciliary Care Contribution,Income,REVENUE
Wiltshire,http://opendatacommunities.org/id/unitary-authority/wiltshire,30/01/2019,1902277236,706.09,Abicare Services Ltd Homecare ,110031,SP2 ,Community Services,South Care Packages,Adult Domiciliary Care,Third Party Payments,REVENUE
Wiltshire,http://opendatacommunities.org/id/unitary-authority/wiltshire,30/01/2019,1902277237,485.34,Abicare Services Ltd Homecare ,110031,SP2 ,Community Services,West Care Packages,Adult Domiciliary Care Contribution,Income,REVENUE
Wiltshire,http://opendatacommunities.org/id/unitary-authority/wiltshire,30/01/2019,1902277240,312.28,Abicare Services Ltd Homecare ,110031,SP2 ,Community Services,West Care Packages,Adult Domiciliary Care Contribution,Income,REVENUE
Wiltshire,http://opendatacommunities.org/id/unitary-authority/wiltshire,30/01/2019,1902277242,428.68,Abicare Services Ltd Homecare ,110031,SP2 ,Community Services,South Care Packages,Adult Domiciliary Care Contribution,Income,REVENUE
Wiltshire,http://opendatacommunities.org/id/unitary-authority/wiltshire,30/01/2019,1902277244,267.26,Abicare Services Ltd Homecare ,110031,SP2 ,Community Services,MH AOWA West Localit,Adult Domiciliary Care,Third Party Payments,REVENUE
Wiltshire,http://opendatacommunities.org/id/unitary-authority/wiltshire,30/01/2019,1902277252,406.39,Abicare Services Ltd Homecare ,110031,SP2 ,Community Services,South Care Packages,Adult Domiciliary Care,Third Party Payments,REVENUE
Wiltshire,http://opendatacommunities.org/id/unitary-authority/wiltshire,30/01/2019,1902277255,367.78,Abicare Services Ltd Homecare ,110031,SP2 ,Community Services,South Care Packages,Adult Domiciliary Care Contribution,Income,REVENUE
Wiltshire,http://opendatacommunities.org/id/unitary-authority/wiltshire,30/01/2019,1902277257,340.48,Abicare Services Ltd Homecare ,110031,SP2 ,Community Services,South Care Packages,Adult Domiciliary Care,Third Party Payments,REVENUE
Wiltshire,http://opendatacommunities.org/id/unitary-authority/wiltshire,30/01/2019,1902277258,638.55,Abicare Services Ltd Homecare ,110031,SP2 ,Community Services,South Care Packages,Adult Domiciliary Care Contribution,Income,REVENUE
Wiltshire,http://opendatacommunities.org/id/unitary-authority/wiltshire,30/01/2019,1902277287,706.09,Abicare Services Ltd Homecare ,110031,SP2 ,Community Services,South Care Packages,Adult Domiciliary Care,Third Party Payments,REVENUE
Wiltshire,http://opendatacommunities.org/id/unitary-authority/wiltshire,30/01/2019,1902277288,515.98,Abicare Services Ltd Homecare ,110031,SP2 ,Community Services,West Care Packages,Adult Domiciliary Care Contribution,Income,REVENUE
Wiltshire,http://opendatacommunities.org/id/unitary-authority/wiltshire,30/01/2019,1902277292,474.48,Abicare Services Ltd Homecare ,110031,SP2 ,Community Services,South Care Packages,Adult Domiciliary Care Contribution,Income,REVENUE
Wiltshire,http://opendatacommunities.org/id/unitary-authority/wiltshire,30/01/2019,1902277294,267.26,Abicare Services Ltd Homecare ,110031,SP2 ,Community Services,MH AOWA West Localit,Adult Domiciliary Care,Third Party Payments,REVENUE
Wiltshire,http://opendatacommunities.org/id/unitary-authority/wiltshire,30/01/2019,1902277295,255.79,Abicare Services Ltd Homecare ,110031,SP2 ,Community Services,South Care Packages,Adult Domiciliary Care Contribution,Income,REVENUE
Wiltshire,http://opendatacommunities.org/id/unitary-authority/wiltshire,30/01/2019,1902277298,267.26,Abicare Services Ltd Homecare ,110031,SP2 ,Community Services,MH AOWA West Localit,Adult Domiciliary Care,Third Party Payments,REVENUE
Wiltshire,http://opendatacommunities.org/id/unitary-authority/wiltshire,30/01/2019,1902277299,378.23,Abicare Services Ltd Homecare ,110031,SP2 ,Community Services,MH AOWA West Localit,Adult Domiciliary Care Contribution,Income,REVENUE
Wiltshire,http://opendatacommunities.org/id/unitary-authority/wiltshire,30/01/2019,1902277302,428.29,Abicare Services Ltd Homecare ,110031,SP2 ,Community Services,South Care Packages,Adult Domiciliary Care,Third Party Payments,REVENUE
Wiltshire,http://opendatacommunities.org/id/unitary-authority/wiltshire,30/01/2019,1902277305,367.78,Abicare Services Ltd Homecare ,110031,SP2 ,Community Services,South Care Packages,Adult Domiciliary Care Contribution,Income,REVENUE
Wiltshire,http://opendatacommunities.org/id/unitary-authority/wiltshire,30/01/2019,1902277306,313.6,Abicare Services Ltd Homecare ,110031,SP2 ,Community Services,South Care Packages,Adult Domiciliary Care,Third Party Payments,REVENUE
Wiltshire,http://opendatacommunities.org/id/unitary-authority/wiltshire,30/01/2019,1902277308,349.44,Abicare Services Ltd Homecare ,110031,SP2 ,Community Services,South Care Packages,Adult Domiciliary Care,Third Party Payments,REVENUE
Wiltshire,http://opendatacommunities.org/id/unitary-authority/wiltshire,30/01/2019,1902277309,685.02,Abicare Services Ltd Homecare ,110031,SP2 ,Community Services,South Care Packages,Adult Domiciliary Care Contribution,Income,REVENUE
Wiltshire,http://opendatacommunities.org/id/unitary-authority/wiltshire,09/01/2019,1902263246,515.98,Abicare Services Ltd Live in Care. ,113071,SP2 ,Community Services,West Care Packages,Adult Domiciliary Care Contribution,Income,REVENUE
Wiltshire,http://opendatacommunities.org/id/unitary-authority/wiltshire,09/01/2019,1902263247,269.65,Abicare Services Ltd Live in Care. ,113071,SP2 ,Community Services,South Care Packages,Adult Domiciliary Care,Third Party Payments,REVENUE
Wiltshire,http://opendatacommunities.org/id/unitary-authority/wiltshire,09/01/2019,1902263255,267.26,Abicare Services Ltd Live in Care. ,113071,SP2 ,Community Services,West Care Packages,Adult Domiciliary Care,Third Party Payments,REVENUE
Wiltshire,http://opendatacommunities.org/id/unitary-authority/wiltshire,09/01/2019,1902263274,1241.41,Abicare Services Ltd Live in Care. ,113071,SP2 ,Community Services,South Care Packages,Adult Domiciliary Care Contribution,Income,REVENUE
Wiltshire,http://opendatacommunities.org/id/unitary-authority/wiltshire,09/01/2019,1902263275,822.63,Abicare Services Ltd Live in Care. ,113071,SP2 ,Community Services,West Care Packages,Adult Domiciliary Care Contribution,Income,REVENUE
Wiltshire,http://opendatacommunities.org/id/unitary-authority/wiltshire,09/01/2019,1902263276,782.5,Abicare Services Ltd Live in Care. ,113071,SP2 ,Community Services,South Care Packages,Adult Domiciliary Care Contribution,Income,REVENUE
Wiltshire,http://opendatacommunities.org/id/unitary-authority/wiltshire,09/01/2019,1902263277,767.5,Abicare Services Ltd Live in Care. ,113071,SP2 ,Community Services,South Care Packages,Adult Domiciliary Care Contribution,Income,REVENUE
Wiltshire,http://opendatacommunities.org/id/unitary-authority/wiltshire,09/01/2019,1902263278,864.16,Abicare Services Ltd Live in Care. ,113071,SP2 ,Community Services,South Care Packages,Adult Domiciliary Care Contribution,Income,REVENUE
Wiltshire,http://opendatacommunities.org/id/unitary-authority/wiltshire,09/01/2019,1902263279,928.2,Abicare Services Ltd Live in Care. ,113071,SP2 ,Community Services,North Care Packages,Adult Domiciliary Care,Third Party Payments,REVENUE
Wiltshire,http://opendatacommunities.org/id/unitary-authority/wiltshire,09/01/2019,1902263280,928.2,Abicare Services Ltd Live in Care. ,113071,SP2 ,Community Services,MH OP West Locality,Adult Domiciliary Care,Third Party Payments,REVENUE
Wiltshire,http://opendatacommunities.org/id/unitary-authority/wiltshire,09/01/2019,1902263281,881.86,Abicare Services Ltd Live in Care. ,113071,SP2 ,Community Services,West Care Packages,Adult Domiciliary Care,Third Party Payments,REVENUE
Wiltshire,http://opendatacommunities.org/id/unitary-authority/wiltshire,09/01/2019,1902263282,881.86,Abicare Services Ltd Live in Care. ,113071,SP2 ,Community Services,MH AOWA West Localit,Adult Domiciliary Care,Third Party Payments,REVENUE
Wiltshire,http://opendatacommunities.org/id/unitary-authority/wiltshire,09/01/2019,1902263283,842.99,Abicare Services Ltd Live in Care. ,113071,SP2 ,Community Services,South Care Packages,Adult Domiciliary Care Contribution,Income,REVENUE
Wiltshire,http://opendatacommunities.org/id/unitary-authority/wiltshire,09/01/2019,1902263284,928.2,Abicare Services Ltd Live in Care. ,113071,SP2 ,Community Services,West Care Packages,Adult Domiciliary Care,Third Party Payments,REVENUE
Wiltshire,http://opendatacommunities.org/id/unitary-authority/wiltshire,09/01/2019,1902263285,877.56,Abicare Services Ltd Live in Care. ,113071,SP2 ,Community Services,West Care Packages,Adult Domiciliary Care Contribution,Income,REVENUE
Wiltshire,http://opendatacommunities.org/id/unitary-authority/wiltshire,09/01/2019,1902263286,881.86,Abicare Services Ltd Live in Care. ,113071,SP2 ,Community Services,West Care Packages,Adult Domiciliary Care,Third Party Payments,REVENUE
Wiltshire,http://opendatacommunities.org/id/unitary-authority/wiltshire,09/01/2019,1902263287,478.83,Abicare Services Ltd Live in Care. ,113071,SP2 ,Community Services,South Care Packages,Adult Domiciliary Care,Third Party Payments,REVENUE
Wiltshire,http://opendatacommunities.org/id/unitary-authority/wiltshire,09/01/2019,1902263289,928.2,Abicare Services Ltd Live in Care. ,113071,SP2 ,Community Services,West Care Packages,Adult Domiciliary Care,Third Party Payments,REVENUE
Wiltshire,http://opendatacommunities.org/id/unitary-authority/wiltshire,09/01/2019,1902263290,794.58,Abicare Services Ltd Live in Care. ,113071,SP2 ,Community Services,West Care Packages,Adult Domiciliary Care Contribution,Income,REVENUE
Wiltshire,http://opendatacommunities.org/id/unitary-authority/wiltshire,09/01/2019,1902263291,881.86,Abicare Services Ltd Live in Care. ,113071,SP2 ,Community Services,South Care Packages,Adult Domiciliary Care,Third Party Payments,REVENUE
Wiltshire,http://opendatacommunities.org/id/unitary-authority/wiltshire,09/01/2019,1902263292,1003.69,Abicare Services Ltd Live in Care. ,113071,SP2 ,Community Services,South Care Packages,Adult Domiciliary Care Contribution,Income,REVENUE
Wiltshire,http://opendatacommunities.org/id/unitary-authority/wiltshire,09/01/2019,1902263293,881.86,Abicare Services Ltd Live in Care. ,113071,SP2 ,Community Services,South Care Packages,Adult Domiciliary Care,Third Party Payments,REVENUE
Wiltshire,http://opendatacommunities.org/id/unitary-authority/wiltshire,09/01/2019,1902263294,854.63,Abicare Services Ltd Live in Care. ,113071,SP2 ,Community Services,South Care Packages,Adult Domiciliary Care Contribution,Income,REVENUE
Wiltshire,http://opendatacommunities.org/id/unitary-authority/wiltshire,09/01/2019,1902263295,852.12,Abicare Services Ltd Live in Care. ,113071,SP2 ,Community Services,South Care Packages,Adult Domiciliary Care Contribution,Income,REVENUE
Wiltshire,http://opendatacommunities.org/id/unitary-authority/wiltshire,16/01/2019,1902271575,271.46,Abicare Services Ltd Live in Care. ,113071,SP2 ,Community Services,South Care Packages,Adult Domiciliary Care,Third Party Payments,REVENUE
Wiltshire,http://opendatacommunities.org/id/unitary-authority/wiltshire,16/01/2019,1902271588,827.28,Abicare Services Ltd Live in Care. ,113071,SP2 ,Community Services,West Care Packages,Adult Domiciliary Care Contribution,Income,REVENUE
Wiltshire,http://opendatacommunities.org/id/unitary-authority/wiltshire,16/01/2019,1902271589,881.86,Abicare Services Ltd Live in Care. ,113071,SP2 ,Community Services,West Care Packages,Adult Domiciliary Care,Third Party Payments,REVENUE
Wiltshire,http://opendatacommunities.org/id/unitary-authority/wiltshire,16/01/2019,1902271590,928.2,Abicare Services Ltd Live in Care. ,113071,SP2 ,Community Services,West Care Packages,Adult Domiciliary Care,Third Party Payments,REVENUE
Wiltshire,http://opendatacommunities.org/id/unitary-authority/wiltshire,16/01/2019,1902271591,1241.41,Abicare Services Ltd Live in Care. ,113071,SP2 ,Community Services,South Care Packages,Adult Domiciliary Care Contribution,Income,REVENUE
Wiltshire,http://opendatacommunities.org/id/unitary-authority/wiltshire,16/01/2019,1902271592,881.86,Abicare Services Ltd Live in Care. ,113071,SP2 ,Community Services,South Care Packages,Adult Domiciliary Care,Third Party Payments,REVENUE
Wiltshire,http://opendatacommunities.org/id/unitary-authority/wiltshire,16/01/2019,1902271593,782.5,Abicare Services Ltd Live in Care. ,113071,SP2 ,Community Services,South Care Packages,Adult Domiciliary Care Contribution,Income,REVENUE
Wiltshire,http://opendatacommunities.org/id/unitary-authority/wiltshire,16/01/2019,1902271594,864.16,Abicare Services Ltd Live in Care. ,113071,SP2 ,Community Services,South Care Packages,Adult Domiciliary Care Contribution,Income,REVENUE
Wiltshire,http://opendatacommunities.org/id/unitary-authority/wiltshire,16/01/2019,1902271595,928.2,Abicare Services Ltd Live in Care. ,113071,SP2 ,Community Services,North Care Packages,Adult Domiciliary Care,Third Party Payments,REVENUE
Wiltshire,http://opendatacommunities.org/id/unitary-authority/wiltshire,16/01/2019,1902271596,928.2,Abicare Services Ltd Live in Care. ,113071,SP2 ,Community Services,MH OP West Locality,Adult Domiciliary Care,Third Party Payments,REVENUE
Wiltshire,http://opendatacommunities.org/id/unitary-authority/wiltshire,16/01/2019,1902271597,922.31,Abicare Services Ltd Live in Care. ,113071,SP2 ,Community Services,North Care Packages,Adult Domiciliary Care Contribution,Income,REVENUE
Wiltshire,http://opendatacommunities.org/id/unitary-authority/wiltshire,16/01/2019,1902271598,842.99,Abicare Services Ltd Live in Care. ,113071,SP2 ,Community Services,South Care Packages,Adult Domiciliary Care Contribution,Income,REVENUE
Wiltshire,http://opendatacommunities.org/id/unitary-authority/wiltshire,16/01/2019,1902271599,928.2,Abicare Services Ltd Live in Care. ,113071,SP2 ,Community Services,West Care Packages,Adult Domiciliary Care,Third Party Payments,REVENUE
Wiltshire,http://opendatacommunities.org/id/unitary-authority/wiltshire,16/01/2019,1902271600,881.86,Abicare Services Ltd Live in Care. ,113071,SP2 ,Community Services,West Care Packages,Adult Domiciliary Care,Third Party Payments,REVENUE
Wiltshire,http://opendatacommunities.org/id/unitary-authority/wiltshire,16/01/2019,1902271601,478.83,Abicare Services Ltd Live in Care. ,113071,SP2 ,Community Services,South Care Packages,Adult Domiciliary Care,Third Party Payments,REVENUE
Wiltshire,http://opendatacommunities.org/id/unitary-authority/wiltshire,16/01/2019,1902271603,794.58,Abicare Services Ltd Live in Care. ,113071,SP2 ,Community Services,West Care Packages,Adult Domiciliary Care Contribution,Income,REVENUE
Wiltshire,http://opendatacommunities.org/id/unitary-authority/wiltshire,16/01/2019,1902271604,424.05,Abicare Services Ltd Live in Care. ,113071,SP2 ,Community Services,South Care Packages,Adult Domiciliary Care Contribution,Income,REVENUE
Wiltshire,http://opendatacommunities.org/id/unitary-authority/wiltshire,16/01/2019,1902271605,881.86,Abicare Services Ltd Live in Care. ,113071,SP2 ,Community Services,South Care Packages,Adult Domiciliary Care,Third Party Payments,REVENUE
Wiltshire,http://opendatacommunities.org/id/unitary-authority/wiltshire,16/01/2019,1902271606,1003.69,Abicare Services Ltd Live in Care. ,113071,SP2 ,Community Services,South Care Packages,Adult Domiciliary Care Contribution,Income,REVENUE
Wiltshire,http://opendatacommunities.org/id/unitary-authority/wiltshire,16/01/2019,1902271607,854.63,Abicare Services Ltd Live in Care. ,113071,SP2 ,Community Services,South Care Packages,Adult Domiciliary Care Contribution,Income,REVENUE
Wiltshire,http://opendatacommunities.org/id/unitary-authority/wiltshire,16/01/2019,1902271608,922.59,Abicare Services Ltd Live in Care. ,113071,SP2 ,Community Services,South Care Packages,Adult Domiciliary Care Contribution,Income,REVENUE
Wiltshire,http://opendatacommunities.org/id/unitary-authority/wiltshire,16/01/2019,1902271609,881.86,Abicare Services Ltd Live in Care. ,113071,SP2 ,Community Services,South Care Packages,Adult Domiciliary Care,Third Party Payments,REVENUE
Wiltshire,http://opendatacommunities.org/id/unitary-authority/wiltshire,16/01/2019,1902271610,928.2,Abicare Services Ltd Live in Care. ,113071,SP2 ,Community Services,North Care Packages,Adult Domiciliary Care,Third Party Payments,REVENUE
Wiltshire,http://opendatacommunities.org/id/unitary-authority/wiltshire,16/01/2019,1902271611,928.2,Abicare Services Ltd Live in Care. ,113071,SP2 ,Community Services,MH OP West Locality,Adult Domiciliary Care,Third Party Payments,REVENUE
Wiltshire,http://opendatacommunities.org/id/unitary-authority/wiltshire,16/01/2019,1902271612,818.87,Abicare Services Ltd Live in Care. ,113071,SP2 ,Community Services,West Care Packages,Adult Domiciliary Care,Third Party Payments,REVENUE
Wiltshire,http://opendatacommunities.org/id/unitary-authority/wiltshire,16/01/2019,1902271613,881.86,Abicare Services Ltd Live in Care. ,113071,SP2 ,Community Services,MH AOWA West Localit,Adult Domiciliary Care,Third Party Payments,REVENUE
Wiltshire,http://opendatacommunities.org/id/unitary-authority/wiltshire,16/01/2019,1902271614,842.99,Abicare Services Ltd Live in Care. ,113071,SP2 ,Community Services,South Care Packages,Adult Domiciliary Care Contribution,Income,REVENUE
Wiltshire,http://opendatacommunities.org/id/unitary-authority/wiltshire,16/01/2019,1902271615,827.28,Abicare Services Ltd Live in Care. ,113071,SP2 ,Community Services,West Care Packages,Adult Domiciliary Care Contribution,Income,REVENUE
Wiltshire,http://opendatacommunities.org/id/unitary-authority/wiltshire,16/01/2019,1902271616,478.83,Abicare Services Ltd Live in Care. ,113071,SP2 ,Community Services,South Care Packages,Adult Domiciliary Care,Third Party Payments,REVENUE
Wiltshire,http://opendatacommunities.org/id/unitary-authority/wiltshire,16/01/2019,1902271618,928.2,Abicare Services Ltd Live in Care. ,113071,SP2 ,Community Services,West Care Packages,Adult Domiciliary Care,Third Party Payments,REVENUE
Wiltshire,http://opendatacommunities.org/id/unitary-authority/wiltshire,16/01/2019,1902271619,881.86,Abicare Services Ltd Live in Care. ,113071,SP2 ,Community Services,South Care Packages,Adult Domiciliary Care,Third Party Payments,REVENUE
Wiltshire,http://opendatacommunities.org/id/unitary-authority/wiltshire,16/01/2019,1902271620,1003.69,Abicare Services Ltd Live in Care. ,113071,SP2 ,Community Services,South Care Packages,Adult Domiciliary Care Contribution,Income,REVENUE
Wiltshire,http://opendatacommunities.org/id/unitary-authority/wiltshire,16/01/2019,1902271621,854.63,Abicare Services Ltd Live in Care. ,113071,SP2 ,Community Services,South Care Packages,Adult Domiciliary Care Contribution,Income,REVENUE
Wiltshire,http://opendatacommunities.org/id/unitary-authority/wiltshire,16/01/2019,1902271622,852.12,Abicare Services Ltd Live in Care. ,113071,SP2 ,Community Services,South Care Packages,Adult Domiciliary Care Contribution,Income,REVENUE
Wiltshire,http://opendatacommunities.org/id/unitary-authority/wiltshire,16/01/2019,1902271623,641.52,Abicare Services Ltd Live in Care. ,113071,SP2 ,Community Services,South Care Packages,Adult Domiciliary Care Contribution,Income,REVENUE
Wiltshire,http://opendatacommunities.org/id/unitary-authority/wiltshire,16/01/2019,1902271624,881.86,Abicare Services Ltd Live in Care. ,113071,SP2 ,Community Services,South Care Packages,Adult Domiciliary Care,Third Party Payments,REVENUE
Wiltshire,http://opendatacommunities.org/id/unitary-authority/wiltshire,16/01/2019,1902271625,782.5,Abicare Services Ltd Live in Care. ,113071,SP2 ,Community Services,South Care Packages,Adult Domiciliary Care Contribution,Income,REVENUE
Wiltshire,http://opendatacommunities.org/id/unitary-authority/wiltshire,16/01/2019,1902271626,566.91,Abicare Services Ltd Live in Care. ,113071,SP2 ,Community Services,South Care Packages,Adult Domiciliary Care,Third Party Payments,REVENUE
Wiltshire,http://opendatacommunities.org/id/unitary-authority/wiltshire,16/01/2019,1902271627,782.5,Abicare Services Ltd Live in Care. ,113071,SP2 ,Community Services,South Care Packages,Adult Domiciliary Care Contribution,Income,REVENUE
Wiltshire,http://opendatacommunities.org/id/unitary-authority/wiltshire,16/01/2019,1902271628,822.63,Abicare Services Ltd Live in Care. ,113071,SP2 ,Community Services,West Care Packages,Adult Domiciliary Care Contribution,Income,REVENUE
Wiltshire,http://opendatacommunities.org/id/unitary-authority/wiltshire,16/01/2019,1902271637,269.65,Abicare Services Ltd Live in Care. ,113071,SP2 ,Community Services,South Care Packages,Adult Domiciliary Care,Third Party Payments,REVENUE
Wiltshire,http://opendatacommunities.org/id/unitary-authority/wiltshire,16/01/2019,1902271638,269.65,Abicare Services Ltd Live in Care. ,113071,SP2 ,Community Services,South Care Packages,Adult Domiciliary Care,Third Party Payments,REVENUE
Wiltshire,http://opendatacommunities.org/id/unitary-authority/wiltshire,22/01/2019,1902274227,269.65,Abicare Services Ltd Live in Care. ,113071,SP2 ,Community Services,South Care Packages,Adult Domiciliary Care,Third Party Payments,REVENUE
Wiltshire,http://opendatacommunities.org/id/unitary-authority/wiltshire,22/01/2019,1902274251,1241.41,Abicare Services Ltd Live in Care. ,113071,SP2 ,Community Services,South Care Packages,Adult Domiciliary Care Contribution,Income,REVENUE
Wiltshire,http://opendatacommunities.org/id/unitary-authority/wiltshire,22/01/2019,1902274252,822.63,Abicare Services Ltd Live in Care. ,113071,SP2 ,Community Services,West Care Packages,Adult Domiciliary Care Contribution,Income,REVENUE
Wiltshire,http://opendatacommunities.org/id/unitary-authority/wiltshire,22/01/2019,1902274253,782.5,Abicare Services Ltd Live in Care. ,113071,SP2 ,Community Services,South Care Packages,Adult Domiciliary Care Contribution,Income,REVENUE
Wiltshire,http://opendatacommunities.org/id/unitary-authority/wiltshire,22/01/2019,1902274254,767.5,Abicare Services Ltd Live in Care. ,113071,SP2 ,Community Services,South Care Packages,Adult Domiciliary Care Contribution,Income,REVENUE
Wiltshire,http://opendatacommunities.org/id/unitary-authority/wiltshire,22/01/2019,1902274256,864.16,Abicare Services Ltd Live in Care. ,113071,SP2 ,Community Services,South Care Packages,Adult Domiciliary Care Contribution,Income,REVENUE
Wiltshire,http://opendatacommunities.org/id/unitary-authority/wiltshire,22/01/2019,1902274258,928.2,Abicare Services Ltd Live in Care. ,113071,SP2 ,Community Services,North Care Packages,Adult Domiciliary Care,Third Party Payments,REVENUE
Wiltshire,http://opendatacommunities.org/id/unitary-authority/wiltshire,22/01/2019,1902274259,928.2,Abicare Services Ltd Live in Care. ,113071,SP2 ,Community Services,MH OP West Locality,Adult Domiciliary Care,Third Party Payments,REVENUE
Wiltshire,http://opendatacommunities.org/id/unitary-authority/wiltshire,22/01/2019,1902274261,881.86,Abicare Services Ltd Live in Care. ,113071,SP2 ,Community Services,MH AOWA West Localit,Adult Domiciliary Care,Third Party Payments,REVENUE
Wiltshire,http://opendatacommunities.org/id/unitary-authority/wiltshire,22/01/2019,1902274262,842.99,Abicare Services Ltd Live in Care. ,113071,SP2 ,Community Services,South Care Packages,Adult Domiciliary Care Contribution,Income,REVENUE
Wiltshire,http://opendatacommunities.org/id/unitary-authority/wiltshire,22/01/2019,1902274263,928.2,Abicare Services Ltd Live in Care. ,113071,SP2 ,Community Services,West Care Packages,Adult Domiciliary Care,Third Party Payments,REVENUE
Wiltshire,http://opendatacommunities.org/id/unitary-authority/wiltshire,22/01/2019,1902274264,877.56,Abicare Services Ltd Live in Care. ,113071,SP2 ,Community Services,West Care Packages,Adult Domiciliary Care Contribution,Income,REVENUE
Wiltshire,http://opendatacommunities.org/id/unitary-authority/wiltshire,22/01/2019,1902274265,881.86,Abicare Services Ltd Live in Care. ,113071,SP2 ,Community Services,West Care Packages,Adult Domiciliary Care,Third Party Payments,REVENUE
Wiltshire,http://opendatacommunities.org/id/unitary-authority/wiltshire,22/01/2019,1902274266,478.83,Abicare Services Ltd Live in Care. ,113071,SP2 ,Community Services,South Care Packages,Adult Domiciliary Care,Third Party Payments,REVENUE
Wiltshire,http://opendatacommunities.org/id/unitary-authority/wiltshire,22/01/2019,1902274268,928.2,Abicare Services Ltd Live in Care. ,113071,SP2 ,Community Services,West Care Packages,Adult Domiciliary Care,Third Party Payments,REVENUE
Wiltshire,http://opendatacommunities.org/id/unitary-authority/wiltshire,22/01/2019,1902274269,794.58,Abicare Services Ltd Live in Care. ,113071,SP2 ,Community Services,West Care Packages,Adult Domiciliary Care Contribution,Income,REVENUE
Wiltshire,http://opendatacommunities.org/id/unitary-authority/wiltshire,22/01/2019,1902274270,881.86,Abicare Services Ltd Live in Care. ,113071,SP2 ,Community Services,South Care Packages,Adult Domiciliary Care,Third Party Payments,REVENUE
Wiltshire,http://opendatacommunities.org/id/unitary-authority/wiltshire,22/01/2019,1902274271,1003.69,Abicare Services Ltd Live in Care. ,113071,SP2 ,Community Services,South Care Packages,Adult Domiciliary Care Contribution,Income,REVENUE
Wiltshire,http://opendatacommunities.org/id/unitary-authority/wiltshire,22/01/2019,1902274272,292.79,Abicare Services Ltd Live in Care. ,113071,SP2 ,Community Services,South Care Packages,Adult Domiciliary Care,Third Party Payments,REVENUE
Wiltshire,http://opendatacommunities.org/id/unitary-authority/wiltshire,22/01/2019,1902274273,881.86,Abicare Services Ltd Live in Care. ,113071,SP2 ,Community Services,South Care Packages,Adult Domiciliary Care,Third Party Payments,REVENUE
Wiltshire,http://opendatacommunities.org/id/unitary-authority/wiltshire,22/01/2019,1902274274,271.46,Abicare Services Ltd Live in Care. ,113071,SP2 ,Community Services,South Care Packages,Adult Domiciliary Care,Third Party Payments,REVENUE
Wiltshire,http://opendatacommunities.org/id/unitary-authority/wiltshire,22/01/2019,1902274275,854.63,Abicare Services Ltd Live in Care. ,113071,SP2 ,Community Services,South Care Packages,Adult Domiciliary Care Contribution,Income,REVENUE
Wiltshire,http://opendatacommunities.org/id/unitary-authority/wiltshire,22/01/2019,1902274276,861.36,Abicare Services Ltd Live in Care. ,113071,SP2 ,Community Services,South Care Packages,Adult Domiciliary Care Contribution,Income,REVENUE
Wiltshire,http://opendatacommunities.org/id/unitary-authority/wiltshire,30/01/2019,1902277238,269.65,Abicare Services Ltd Live in Care. ,113071,SP2 ,Community Services,South Care Packages,Adult Domiciliary Care,Third Party Payments,REVENUE
Wiltshire,http://opendatacommunities.org/id/unitary-authority/wiltshire,30/01/2019,1902277259,1241.41,Abicare Services Ltd Live in Care. ,113071,SP2 ,Community Services,South Care Packages,Adult Domiciliary Care Contribution,Income,REVENUE
Wiltshire,http://opendatacommunities.org/id/unitary-authority/wiltshire,30/01/2019,1902277260,822.63,Abicare Services Ltd Live in Care. ,113071,SP2 ,Community Services,West Care Packages,Adult Domiciliary Care Contribution,Income,REVENUE
Wiltshire,http://opendatacommunities.org/id/unitary-authority/wiltshire,30/01/2019,1902277261,782.5,Abicare Services Ltd Live in Care. ,113071,SP2 ,Community Services,South Care Packages,Adult Domiciliary Care Contribution,Income,REVENUE
Wiltshire,http://opendatacommunities.org/id/unitary-authority/wiltshire,30/01/2019,1902277262,767.5,Abicare Services Ltd Live in Care. ,113071,SP2 ,Community Services,South Care Packages,Adult Domiciliary Care Contribution,Income,REVENUE
Wiltshire,http://opendatacommunities.org/id/unitary-authority/wiltshire,30/01/2019,1902277264,864.16,Abicare Services Ltd Live in Care. ,113071,SP2 ,Community Services,South Care Packages,Adult Domiciliary Care Contribution,Income,REVENUE
Wiltshire,http://opendatacommunities.org/id/unitary-authority/wiltshire,30/01/2019,1902277265,928.2,Abicare Services Ltd Live in Care. ,113071,SP2 ,Community Services,North Care Packages,Adult Domiciliary Care,Third Party Payments,REVENUE
Wiltshire,http://opendatacommunities.org/id/unitary-authority/wiltshire,30/01/2019,1902277266,928.2,Abicare Services Ltd Live in Care. ,113071,SP2 ,Community Services,MH OP West Locality,Adult Domiciliary Care,Third Party Payments,REVENUE
Wiltshire,http://opendatacommunities.org/id/unitary-authority/wiltshire,30/01/2019,1902277267,881.86,Abicare Services Ltd Live in Care. ,113071,SP2 ,Community Services,MH AOWA West Localit,Adult Domiciliary Care,Third Party Payments,REVENUE
Wiltshire,http://opendatacommunities.org/id/unitary-authority/wiltshire,30/01/2019,1902277268,1763.72,Abicare Services Ltd Live in Care. ,113071,SP2 ,Community Services,South Care Packages,Adult Domiciliary Care,Third Party Payments,REVENUE
Wiltshire,http://opendatacommunities.org/id/unitary-authority/wiltshire,30/01/2019,1902277269,842.99,Abicare Services Ltd Live in Care. ,113071,SP2 ,Community Services,South Care Packages,Adult Domiciliary Care Contribution,Income,REVENUE
Wiltshire,http://opendatacommunities.org/id/unitary-authority/wiltshire,30/01/2019,1902277270,928.2,Abicare Services Ltd Live in Care. ,113071,SP2 ,Community Services,West Care Packages,Adult Domiciliary Care,Third Party Payments,REVENUE
Wiltshire,http://opendatacommunities.org/id/unitary-authority/wiltshire,30/01/2019,1902277271,877.56,Abicare Services Ltd Live in Care. ,113071,SP2 ,Community Services,West Care Packages,Adult Domiciliary Care Contribution,Income,REVENUE
Wiltshire,http://opendatacommunities.org/id/unitary-authority/wiltshire,30/01/2019,1902277272,881.86,Abicare Services Ltd Live in Care. ,113071,SP2 ,Community Services,West Care Packages,Adult Domiciliary Care,Third Party Payments,REVENUE
Wiltshire,http://opendatacommunities.org/id/unitary-authority/wiltshire,30/01/2019,1902277273,478.83,Abicare Services Ltd Live in Care. ,113071,SP2 ,Community Services,South Care Packages,Adult Domiciliary Care,Third Party Payments,REVENUE
Wiltshire,http://opendatacommunities.org/id/unitary-authority/wiltshire,30/01/2019,1902277275,928.2,Abicare Services Ltd Live in Care. ,113071,SP2 ,Community Services,West Care Packages,Adult Domiciliary Care,Third Party Payments,REVENUE
Wiltshire,http://opendatacommunities.org/id/unitary-authority/wiltshire,30/01/2019,1902277276,819.91,Abicare Services Ltd Live in Care. ,113071,SP2 ,Community Services,West Care Packages,Adult Domiciliary Care,Third Party Payments,REVENUE
Wiltshire,http://opendatacommunities.org/id/unitary-authority/wiltshire,30/01/2019,1902277277,881.86,Abicare Services Ltd Live in Care. ,113071,SP2 ,Community Services,South Care Packages,Adult Domiciliary Care,Third Party Payments,REVENUE
Wiltshire,http://opendatacommunities.org/id/unitary-authority/wiltshire,30/01/2019,1902277278,1003.69,Abicare Services Ltd Live in Care. ,113071,SP2 ,Community Services,South Care Packages,Adult Domiciliary Care Contribution,Income,REVENUE
Wiltshire,http://opendatacommunities.org/id/unitary-authority/wiltshire,30/01/2019,1902277280,881.86,Abicare Services Ltd Live in Care. ,113071,SP2 ,Community Services,South Care Packages,Adult Domiciliary Care,Third Party Payments,REVENUE
Wiltshire,http://opendatacommunities.org/id/unitary-authority/wiltshire,30/01/2019,1902277281,271.46,Abicare Services Ltd Live in Care. ,113071,SP2 ,Community Services,South Care Packages,Adult Domiciliary Care,Third Party Payments,REVENUE
Wiltshire,http://opendatacommunities.org/id/unitary-authority/wiltshire,30/01/2019,1902277282,854.63,Abicare Services Ltd Live in Care. ,113071,SP2 ,Community Services,South Care Packages,Adult Domiciliary Care Contribution,Income,REVENUE
Wiltshire,http://opendatacommunities.org/id/unitary-authority/wiltshire,30/01/2019,1902277283,861.36,Abicare Services Ltd Live in Care. ,113071,SP2 ,Community Services,South Care Packages,Adult Domiciliary Care Contribution,Income,REVENUE
Wiltshire,http://opendatacommunities.org/id/unitary-authority/wiltshire,30/01/2019,1902277289,269.65,Abicare Services Ltd Live in Care. ,113071,SP2 ,Community Services,South Care Packages,Adult Domiciliary Care,Third Party Payments,REVENUE
Wiltshire,http://opendatacommunities.org/id/unitary-authority/wiltshire,30/01/2019,1902277312,704.29,Abicare Services Ltd Live in Care. ,113071,SP2 ,Community Services,South Care Packages,Adult Domiciliary Care Contribution,Income,REVENUE
Wiltshire,http://opendatacommunities.org/id/unitary-authority/wiltshire,30/01/2019,1902277313,822.63,Abicare Services Ltd Live in Care. ,113071,SP2 ,Community Services,West Care Packages,Adult Domiciliary Care Contribution,Income,REVENUE
Wiltshire,http://opendatacommunities.org/id/unitary-authority/wiltshire,30/01/2019,1902277314,782.5,Abicare Services Ltd Live in Care. ,113071,SP2 ,Community Services,South Care Packages,Adult Domiciliary Care Contribution,Income,REVENUE
Wiltshire,http://opendatacommunities.org/id/unitary-authority/wiltshire,30/01/2019,1902277315,767.5,Abicare Services Ltd Live in Care. ,113071,SP2 ,Community Services,South Care Packages,Adult Domiciliary Care Contribution,Income,REVENUE
Wiltshire,http://opendatacommunities.org/id/unitary-authority/wiltshire,30/01/2019,1902277317,864.16,Abicare Services Ltd Live in Care. ,113071,SP2 ,Community Services,South Care Packages,Adult Domiciliary Care Contribution,Income,REVENUE
Wiltshire,http://opendatacommunities.org/id/unitary-authority/wiltshire,30/01/2019,1902277318,928.2,Abicare Services Ltd Live in Care. ,113071,SP2 ,Community Services,North Care Packages,Adult Domiciliary Care,Third Party Payments,REVENUE
Wiltshire,http://opendatacommunities.org/id/unitary-authority/wiltshire,30/01/2019,1902277319,928.2,Abicare Services Ltd Live in Care. ,113071,SP2 ,Community Services,MH OP West Locality,Adult Domiciliary Care,Third Party Payments,REVENUE
Wiltshire,http://opendatacommunities.org/id/unitary-authority/wiltshire,30/01/2019,1902277320,881.86,Abicare Services Ltd Live in Care. ,113071,SP2 ,Community Services,MH AOWA West Localit,Adult Domiciliary Care,Third Party Payments,REVENUE
Wiltshire,http://opendatacommunities.org/id/unitary-authority/wiltshire,30/01/2019,1902277321,1763.72,Abicare Services Ltd Live in Care. ,113071,SP2 ,Community Services,South Care Packages,Adult Domiciliary Care,Third Party Payments,REVENUE
Wiltshire,http://opendatacommunities.org/id/unitary-authority/wiltshire,30/01/2019,1902277322,842.99,Abicare Services Ltd Live in Care. ,113071,SP2 ,Community Services,South Care Packages,Adult Domiciliary Care Contribution,Income,REVENUE
Wiltshire,http://opendatacommunities.org/id/unitary-authority/wiltshire,30/01/2019,1902277323,928.2,Abicare Services Ltd Live in Care. ,113071,SP2 ,Community Services,West Care Packages,Adult Domiciliary Care,Third Party Payments,REVENUE
Wiltshire,http://opendatacommunities.org/id/unitary-authority/wiltshire,30/01/2019,1902277324,877.56,Abicare Services Ltd Live in Care. ,113071,SP2 ,Community Services,West Care Packages,Adult Domiciliary Care Contribution,Income,REVENUE
Wiltshire,http://opendatacommunities.org/id/unitary-authority/wiltshire,30/01/2019,1902277325,881.86,Abicare Services Ltd Live in Care. ,113071,SP2 ,Community Services,West Care Packages,Adult Domiciliary Care,Third Party Payments,REVENUE
Wiltshire,http://opendatacommunities.org/id/unitary-authority/wiltshire,30/01/2019,1902277326,478.83,Abicare Services Ltd Live in Care. ,113071,SP2 ,Community Services,South Care Packages,Adult Domiciliary Care,Third Party Payments,REVENUE
Wiltshire,http://opendatacommunities.org/id/unitary-authority/wiltshire,30/01/2019,1902277328,928.2,Abicare Services Ltd Live in Care. ,113071,SP2 ,Community Services,West Care Packages,Adult Domiciliary Care,Third Party Payments,REVENUE
Wiltshire,http://opendatacommunities.org/id/unitary-authority/wiltshire,30/01/2019,1902277329,819.91,Abicare Services Ltd Live in Care. ,113071,SP2 ,Community Services,West Care Packages,Adult Domiciliary Care,Third Party Payments,REVENUE
Wiltshire,http://opendatacommunities.org/id/unitary-authority/wiltshire,30/01/2019,1902277330,881.86,Abicare Services Ltd Live in Care. ,113071,SP2 ,Community Services,South Care Packages,Adult Domiciliary Care,Third Party Payments,REVENUE
Wiltshire,http://opendatacommunities.org/id/unitary-authority/wiltshire,30/01/2019,1902277331,1003.69,Abicare Services Ltd Live in Care. ,113071,SP2 ,Community Services,South Care Packages,Adult Domiciliary Care Contribution,Income,REVENUE
Wiltshire,http://opendatacommunities.org/id/unitary-authority/wiltshire,30/01/2019,1902277333,881.86,Abicare Services Ltd Live in Care. ,113071,SP2 ,Community Services,South Care Packages,Adult Domiciliary Care,Third Party Payments,REVENUE
Wiltshire,http://opendatacommunities.org/id/unitary-authority/wiltshire,30/01/2019,1902277334,271.46,Abicare Services Ltd Live in Care. ,113071,SP2 ,Community Services,South Care Packages,Adult Domiciliary Care,Third Party Payments,REVENUE
Wiltshire,http://opendatacommunities.org/id/unitary-authority/wiltshire,30/01/2019,1902277335,854.63,Abicare Services Ltd Live in Care. ,113071,SP2 ,Community Services,South Care Packages,Adult Domiciliary Care Contribution,Income,REVENUE
Wiltshire,http://opendatacommunities.org/id/unitary-authority/wiltshire,30/01/2019,1902277336,861.36,Abicare Services Ltd Live in Care. ,113071,SP2 ,Community Services,South Care Packages,Adult Domiciliary Care Contribution,Income,REVENUE
Wiltshire,http://opendatacommunities.org/id/unitary-authority/wiltshire,04/01/2019,5107299112,10247.67,Ability Supported Living Ltd ,146183,GL10,Children & Education,Ext Placement & IFA,Childrens Agency Placement,Third Party Payments,REVENUE
Wiltshire,http://opendatacommunities.org/id/unitary-authority/wiltshire,08/01/2019,5107301428,7933.72,Ability Supported Living Ltd ,146183,GL10,Children & Education,Ext Placement & IFA,Childrens Agency Placement,Third Party Payments,REVENUE
Wiltshire,http://opendatacommunities.org/id/unitary-authority/wiltshire,09/01/2019,5107299426,3779.8,Abingdon Court ,132515,OX14,Community Services,North Care Packages,Adult Care Nursing Placements - Spot,Third Party Payments,REVENUE
Wiltshire,http://opendatacommunities.org/id/unitary-authority/wiltshire,09/01/2019,5107300851,1051.72,ABLE ,101029,BA14,Community Services,MH AOWA N&E Locality,Supported Living,Third Party Payments,REVENUE
Wiltshire,http://opendatacommunities.org/id/unitary-authority/wiltshire,09/01/2019,5107301210,436.88,ABLE ,101029,BA14,Community Services,MH AOWA N&E Locality,Supported Living,Third Party Payments,REVENUE
Wiltshire,http://opendatacommunities.org/id/unitary-authority/wiltshire,09/01/2019,5107301930,436.88,ABLE ,101029,BA14,Community Services,MH AOWA N&E Locality,Supported Living,Third Party Payments,REVENUE
Wiltshire,http://opendatacommunities.org/id/unitary-authority/wiltshire,09/01/2019,5107301937,436.88,ABLE ,101029,BA14,Community Services,MH AOWA N&E Locality,Supported Living,Third Party Payments,REVENUE
Wiltshire,http://opendatacommunities.org/id/unitary-authority/wiltshire,09/01/2019,5107301946,436.88,ABLE ,101029,BA14,Community Services,MH AOWA N&E Locality,Supported Living,Third Party Payments,REVENUE
Wiltshire,http://opendatacommunities.org/id/unitary-authority/wiltshire,08/01/2019,5107302127,1926.6,ABLE ,101029,BA14,Community Services,MH Commissioned Cont,Grants Expenditure,Supplies and Services,REVENUE
Wiltshire,http://opendatacommunities.org/id/unitary-authority/wiltshire,08/01/2019,5107302128,1169.23,ABLE ,101029,BA14,Community Services,MH Commissioned Cont,Grants Expenditure,Supplies and Services,REVENUE
Wiltshire,http://opendatacommunities.org/id/unitary-authority/wiltshire,09/01/2019,5107302142,436.88,ABLE ,101029,BA14,Community Services,MH AOWA N&E Locality,Supported Living,Third Party Payments,REVENUE
Wiltshire,http://opendatacommunities.org/id/unitary-authority/wiltshire,09/01/2019,5107300028,3432,ABLE ,110034,BA14,Community Services,MH AOWA West Localit,Adult Residential Placements - Spot Purchase,Third Party Payments,REVENUE
Wiltshire,http://opendatacommunities.org/id/unitary-authority/wiltshire,09/01/2019,5107300568,3120,ABLE ,110034,BA14,Community Services,MH OP West Locality,Adult Residential Placements - Spot Purchase,Third Party Payments,REVENUE
Wiltshire,http://opendatacommunities.org/id/unitary-authority/wiltshire,09/01/2019,5107300572,2904.4,ABLE ,110034,BA14,Community Services,MH AOWA West Localit,Adult Residential Placements - Spot Purchase,Third Party Payments,REVENUE
Wiltshire,http://opendatacommunities.org/id/unitary-authority/wiltshire,09/01/2019,5107300575,3472.08,ABLE ,110034,BA14,Community Services,MH AOWA West Localit,Adult Residential Placements - Spot Purchase,Third Party Payments,REVENUE
Wiltshire,http://opendatacommunities.org/id/unitary-authority/wiltshire,09/01/2019,5107300583,2830.96,ABLE ,110034,BA14,Community Services,MH AOWA West Localit,Adult Residential Placements - Spot Purchase,Third Party Payments,REVENUE
Wiltshire,http://opendatacommunities.org/id/unitary-authority/wiltshire,09/01/2019,5107300684,3400,ABLE ,110034,BA14,Community Services,MH AOWA West Localit,Adult Residential Placements - Spot Purchase,Third Party Payments,REVENUE
Wiltshire,http://opendatacommunities.org/id/unitary-authority/wiltshire,16/01/2019,1902271757,360,Able Hands Together CIC ,144783,SP11,Community Services,CTPLD Placements,Adult Day Care Contracts,Third Party Payments,REVENUE
Wiltshire,http://opendatacommunities.org/id/unitary-authority/wiltshire,16/01/2019,1902271758,360,Able Hands Together CIC ,144783,SP11,Community Services,CTPLD Placements,Adult Day Care Contracts,Third Party Payments,REVENUE
Wiltshire,http://opendatacommunities.org/id/unitary-authority/wiltshire,16/01/2019,1902271759,405,Able Hands Together CIC ,144783,SP11,Community Services,CTPLD Placements,Adult Day Care Contracts,Third Party Payments,REVENUE
Wiltshire,http://opendatacommunities.org/id/unitary-authority/wiltshire,16/01/2019,1902271760,405,Able Hands Together CIC ,144783,SP11,Community Services,CTPLD Placements,Adult Day Care Contracts,Third Party Payments,REVENUE
Wiltshire,http://opendatacommunities.org/id/unitary-authority/wiltshire,16/01/2019,1902271761,405,Able Hands Together CIC ,144783,SP11,Community Services,South Care Packages,Adult Day Care Contracts,Third Party Payments,REVENUE
Wiltshire,http://opendatacommunities.org/id/unitary-authority/wiltshire,30/01/2019,1902277389,990,Able Hands Together CIC ,144783,SP11,Community Services,CTPLD Placements,Adult Day Care Contracts,Third Party Payments,REVENUE
Wiltshire,http://opendatacommunities.org/id/unitary-authority/wiltshire,09/01/2019,1902263505,260.68,Abney & Baker (Bath) Ltd ,146229,BA1 ,Community Services,West Care Packages,Adult Domiciliary Care Contribution,Income,REVENUE
Wiltshire,http://opendatacommunities.org/id/unitary-authority/wiltshire,09/01/2019,1902263506,485.6,Abney & Baker (Bath) Ltd ,146229,BA1 ,Community Services,West Care Packages,Adult Domiciliary Care,Third Party Payments,REVENUE
Wiltshire,http://opendatacommunities.org/id/unitary-authority/wiltshire,09/01/2019,1902263507,325.95,Abney & Baker (Bath) Ltd ,146229,BA1 ,Community Services,West Care Packages,Adult Domiciliary Care,Third Party Payments,REVENUE
Wiltshire,http://opendatacommunities.org/id/unitary-authority/wiltshire,09/01/2019,1902263511,340.31,Abney & Baker (Bath) Ltd ,146229,BA1 ,Community Services,North Care Packages,Adult Domiciliary Care Contribution,Income,REVENUE
Wiltshire,http://opendatacommunities.org/id/unitary-authority/wiltshire,09/01/2019,1902263512,972.96,Abney & Baker (Bath) Ltd ,146229,BA1 ,Community Services,North Care Packages,Adult Domiciliary Care Contribution,Income,REVENUE
Wiltshire,http://opendatacommunities.org/id/unitary-authority/wiltshire,09/01/2019,1902263514,311,Abney & Baker (Bath) Ltd ,146229,BA1 ,Community Services,West Care Packages,Adult Domiciliary Care,Third Party Payments,REVENUE
Wiltshire,http://opendatacommunities.org/id/unitary-authority/wiltshire,09/01/2019,1902263515,257.2,Abney & Baker (Bath) Ltd ,146229,BA1 ,Community Services,North Care Packages,Adult Domiciliary Care Contribution,Income,REVENUE
Wiltshire,http://opendatacommunities.org/id/unitary-authority/wiltshire,09/01/2019,1902263518,304.15,Abney & Baker (Bath) Ltd ,146229,BA1 ,Community Services,West Care Packages,Adult Domiciliary Care,Third Party Payments,REVENUE
Wiltshire,http://opendatacommunities.org/id/unitary-authority/wiltshire,09/01/2019,1902263519,434.41,Abney & Baker (Bath) Ltd ,146229,BA1 ,Community Services,North Care Packages,Adult Domiciliary Care Contribution,Income,REVENUE
Wiltshire,http://opendatacommunities.org/id/unitary-authority/wiltshire,09/01/2019,1902263521,281.1,Abney & Baker (Bath) Ltd ,146229,BA1 ,Community Services,West Care Packages,Adult Domiciliary Care,Third Party Payments,REVENUE
Wiltshire,http://opendatacommunities.org/id/unitary-authority/wiltshire,09/01/2019,1902263522,621.65,Abney & Baker (Bath) Ltd ,146229,BA1 ,Community Services,West Care Packages,Adult Domiciliary Care,Third Party Payments,REVENUE
Wiltshire,http://opendatacommunities.org/id/unitary-authority/wiltshire,09/01/2019,1902263523,270.35,Abney & Baker (Bath) Ltd ,146229,BA1 ,Community Services,North Care Packages,Adult Domiciliary Care Contribution,Income,REVENUE
Wiltshire,http://opendatacommunities.org/id/unitary-authority/wiltshire,09/01/2019,1902263525,388.73,Abney & Baker (Bath) Ltd ,146229,BA1 ,Community Services,West Care Packages,Adult Domiciliary Care Contribution,Income,REVENUE
Wiltshire,http://opendatacommunities.org/id/unitary-authority/wiltshire,09/01/2019,1902263527,1328.96,Abney & Baker (Bath) Ltd ,146229,BA1 ,Community Services,North Care Packages,Adult Domiciliary Care Contribution,Income,REVENUE
Wiltshire,http://opendatacommunities.org/id/unitary-authority/wiltshire,16/01/2019,1902271800,311,Abney & Baker (Bath) Ltd ,146229,BA1 ,Community Services,West Care Packages,Adult Domiciliary Care,Third Party Payments,REVENUE
Wiltshire,http://opendatacommunities.org/id/unitary-authority/wiltshire,16/01/2019,1902271802,1150.96,Abney & Baker (Bath) Ltd ,146229,BA1 ,Community Services,North Care Packages,Adult Domiciliary Care Contribution,Income,REVENUE
Wiltshire,http://opendatacommunities.org/id/unitary-authority/wiltshire,16/01/2019,1902271804,570.6,Abney & Baker (Bath) Ltd ,146229,BA1 ,Community Services,West Care Packages,Adult Domiciliary Care,Third Party Payments,REVENUE
Wiltshire,http://opendatacommunities.org/id/unitary-authority/wiltshire,16/01/2019,1902271806,421.31,Abney & Baker (Bath) Ltd ,146229,BA1 ,Community Services,North Care Packages,Adult Domiciliary Care Contribution,Income,REVENUE
Wiltshire,http://opendatacommunities.org/id/unitary-authority/wiltshire,16/01/2019,1902271807,315.05,Abney & Baker (Bath) Ltd ,146229,BA1 ,Community Services,West Care Packages,Adult Domiciliary Care,Third Party Payments,REVENUE
Wiltshire,http://opendatacommunities.org/id/unitary-authority/wiltshire,16/01/2019,1902271808,319.2,Abney & Baker (Bath) Ltd ,146229,BA1 ,Community Services,North Care Packages,Adult Domiciliary Care Contribution,Income,REVENUE
Wiltshire,http://opendatacommunities.org/id/unitary-authority/wiltshire,16/01/2019,1902271809,341.68,Abney & Baker (Bath) Ltd ,146229,BA1 ,Community Services,West Care Packages,Adult Domiciliary Care Contribution,Income,REVENUE
Wiltshire,http://opendatacommunities.org/id/unitary-authority/wiltshire,23/01/2019,1902274546,991.91,Abney & Baker (Bath) Ltd ,146229,BA1 ,Community Services,North Care Packages,Adult Domiciliary Care Contribution,Income,REVENUE
Wiltshire,http://opendatacommunities.org/id/unitary-authority/wiltshire,23/01/2019,1902274547,485.6,Abney & Baker (Bath) Ltd ,146229,BA1 ,Community Services,West Care Packages,Adult Domiciliary Care,Third Party Payments,REVENUE
Wiltshire,http://opendatacommunities.org/id/unitary-authority/wiltshire,23/01/2019,1902274548,257.2,Abney & Baker (Bath) Ltd ,146229,BA1 ,Community Services,North Care Packages,Adult Domiciliary Care Contribution,Income,REVENUE
Wiltshire,http://opendatacommunities.org/id/unitary-authority/wiltshire,23/01/2019,1902274549,311,Abney & Baker (Bath) Ltd ,146229,BA1 ,Community Services,West Care Packages,Adult Domiciliary Care,Third Party Payments,REVENUE
Wiltshire,http://opendatacommunities.org/id/unitary-authority/wiltshire,23/01/2019,1902274551,340.31,Abney & Baker (Bath) Ltd ,146229,BA1 ,Community Services,North Care Packages,Adult Domiciliary Care Contribution,Income,REVENUE
Wiltshire,http://opendatacommunities.org/id/unitary-authority/wiltshire,23/01/2019,1902274552,325.95,Abney & Baker (Bath) Ltd ,146229,BA1 ,Community Services,West Care Packages,Adult Domiciliary Care,Third Party Payments,REVENUE
Wiltshire,http://opendatacommunities.org/id/unitary-authority/wiltshire,23/01/2019,1902274554,260.68,Abney & Baker (Bath) Ltd ,146229,BA1 ,Community Services,West Care Packages,Adult Domiciliary Care Contribution,Income,REVENUE
Wiltshire,http://opendatacommunities.org/id/unitary-authority/wiltshire,30/01/2019,1902277871,325.95,Abney & Baker (Bath) Ltd ,146229,BA1 ,Community Services,West Care Packages,Adult Domiciliary Care,Third Party Payments,REVENUE
Wiltshire,http://opendatacommunities.org/id/unitary-authority/wiltshire,30/01/2019,1902277874,353.95,Abney & Baker (Bath) Ltd ,146229,BA1 ,Community Services,North Care Packages,Adult Domiciliary Care,Third Party Payments,REVENUE
Wiltshire,http://opendatacommunities.org/id/unitary-authority/wiltshire,30/01/2019,1902277876,1038.57,Abney & Baker (Bath) Ltd ,146229,BA1 ,Community Services,North Care Packages,Adult Domiciliary Care,Third Party Payments,REVENUE
Wiltshire,http://opendatacommunities.org/id/unitary-authority/wiltshire,30/01/2019,1902277877,462.6,Abney & Baker (Bath) Ltd ,146229,BA1 ,Community Services,West Care Packages,Adult Domiciliary Care,Third Party Payments,REVENUE
Wiltshire,http://opendatacommunities.org/id/unitary-authority/wiltshire,30/01/2019,1902277878,311,Abney & Baker (Bath) Ltd ,146229,BA1 ,Community Services,West Care Packages,Adult Domiciliary Care,Third Party Payments,REVENUE
Wiltshire,http://opendatacommunities.org/id/unitary-authority/wiltshire,30/01/2019,1902277879,485.6,Abney & Baker (Bath) Ltd ,146229,BA1 ,Community Services,West Care Packages,Adult Domiciliary Care,Third Party Payments,REVENUE
Wiltshire,http://opendatacommunities.org/id/unitary-authority/wiltshire,30/01/2019,1902277880,462.6,Abney & Baker (Bath) Ltd ,146229,BA1 ,Community Services,North Care Packages,Adult Domiciliary Care,Third Party Payments,REVENUE
Wiltshire,http://opendatacommunities.org/id/unitary-authority/wiltshire,09/01/2019,5107300972,2367.36,Acacia London Residential Healthcar ,147333,KT6 ,Community Services,North Care Packages,Adult Care Nursing Placements - Spot,Third Party Payments,REVENUE
Wiltshire,http://opendatacommunities.org/id/unitary-authority/wiltshire,10/01/2019,5107303107,288,Academy21 Ltd ,136859,NP8 ,Children & Education,EOTAS Service,Educational Fees,Supplies and Services,REVENUE
Wiltshire,http://opendatacommunities.org/id/unitary-authority/wiltshire,23/01/2019,1902274543,4755.24,Access Care Ltd ,110037,SP10,Community Services,West Care Packages,Adult Domiciliary Care,Third Party Payments,REVENUE
Wiltshire,http://opendatacommunities.org/id/unitary-authority/wiltshire,23/01/2019,1902274544,2844,Access Care Ltd ,110037,SP10,Community Services,North Care Packages,Adult Domiciliary Care,Third Party Payments,REVENUE
Wiltshire,http://opendatacommunities.org/id/unitary-authority/wiltshire,09/01/2019,5107299245,7775.04,Accomplish Group Limited ,112775,SA1 ,Community Services,CTPLD Placements,Adult Residential Placements - Spot Purchase,Third Party Payments,REVENUE
Wiltshire,http://opendatacommunities.org/id/unitary-authority/wiltshire,09/01/2019,5107299247,385,Accomplish Group Limited ,112775,SA1 ,Community Services,CTPLD Placements,Adult Residential Placements - Spot Purchase,Third Party Payments,REVENUE
Wiltshire,http://opendatacommunities.org/id/unitary-authority/wiltshire,09/01/2019,5107299312,7984.72,Accomplish Group Limited ,112775,SA1 ,Community Services,MH AOWA South Locali,Adult Residential Placements - Spot Purchase,Third Party Payments,REVENUE
Wiltshire,http://opendatacommunities.org/id/unitary-authority/wiltshire,09/01/2019,5107299313,389.55,Accomplish Group Limited ,112775,SA1 ,Community Services,MH AOWA South Locali,Adult Residential Placements - Spot Purchase,Third Party Payments,REVENUE
Wiltshire,http://opendatacommunities.org/id/unitary-authority/wiltshire,09/01/2019,5107299726,6111.56,Accomplish Group Limited ,112775,SA1 ,Community Services,CTPLD Placements,Adult Residential Placements - Spot Purchase,Third Party Payments,REVENUE
Wiltshire,http://opendatacommunities.org/id/unitary-authority/wiltshire,09/01/2019,5107300338,8266,Accomplish Group Limited ,112775,SA1 ,Community Services,CTPLD Placements,Adult Residential Placements - Spot Purchase,Third Party Payments,REVENUE
Wiltshire,http://opendatacommunities.org/id/unitary-authority/wiltshire,09/01/2019,5107300340,409.2,Accomplish Group Limited ,112775,SA1 ,Community Services,CTPLD Placements,Adult Residential Placements - Spot Purchase,Third Party Payments,REVENUE
Wiltshire,http://opendatacommunities.org/id/unitary-authority/wiltshire,08/01/2019,1902263052,1995,Ace Cabs ,139613,SP4 ,Neighbourhood & Planning,SEN Secondary,Transport Contracts,Third Party Payments,REVENUE
Wiltshire,http://opendatacommunities.org/id/unitary-authority/wiltshire,08/01/2019,1902263057,480,Ace Cabs ,139613,SP4 ,Community Services,CTPLD Placements,Transport Contracts,Third Party Payments,REVENUE
Wiltshire,http://opendatacommunities.org/id/unitary-authority/wiltshire,08/01/2019,1902263062,1625,Ace Cabs ,139613,SP4 ,Neighbourhood & Planning,SEN 16+ Secondary,Transport Contracts,Third Party Payments,REVENUE
Wiltshire,http://opendatacommunities.org/id/unitary-authority/wiltshire,14/01/2019,5107301477,275,ACE Education Training LLP ,141474,N11 ,Resources,HR Central Training,Staff Training - General,Employee Related,REVENUE
Wiltshire,http://opendatacommunities.org/id/unitary-authority/wiltshire,07/01/2019,1902262068,500,Ace Taxis Warminster Ace Taxis,131208,BA12,Community Services,CTPLD Placements,Transport Contracts,Third Party Payments,REVENUE
Wiltshire,http://opendatacommunities.org/id/unitary-authority/wiltshire,07/01/2019,1902262071,2498.8,Ace Taxis Warminster Ace Taxis,131208,BA12,Neighbourhood & Planning,SEN Secondary,Transport Contracts,Third Party Payments,REVENUE
Wiltshire,http://opendatacommunities.org/id/unitary-authority/wiltshire,07/01/2019,1902262072,630,Ace Taxis Warminster Ace Taxis,131208,BA12,Children & Education,BehaviourSuppService,Transport Contracts,Third Party Payments,REVENUE
Wiltshire,http://opendatacommunities.org/id/unitary-authority/wiltshire,07/01/2019,1902262074,320,Ace Taxis Warminster Ace Taxis,131208,BA12,Community Services,MH OP South Locality,Transport Contracts,Third Party Payments,REVENUE
Wiltshire,http://opendatacommunities.org/id/unitary-authority/wiltshire,07/01/2019,1902262079,1295.04,Ace Taxis Warminster Ace Taxis,131208,BA12,Neighbourhood & Planning,SEN Primary,Transport Contracts,Third Party Payments,REVENUE
Wiltshire,http://opendatacommunities.org/id/unitary-authority/wiltshire,07/01/2019,1902262081,2107.1,Ace Taxis Warminster Ace Taxis,131208,BA12,Neighbourhood & Planning,SEN 16+ Secondary,Transport Contracts,Third Party Payments,REVENUE
Wiltshire,http://opendatacommunities.org/id/unitary-authority/wiltshire,18/01/2019,1902272809,375,Ace Taxis Warminster Ace Taxis,131208,BA12,Community Services,CTPLD Placements,Transport Contracts,Third Party Payments,REVENUE
Wiltshire,http://opendatacommunities.org/id/unitary-authority/wiltshire,18/01/2019,1902272810,1749.16,Ace Taxis Warminster Ace Taxis,131208,BA12,Neighbourhood & Planning,SEN Secondary,Transport Contracts,Third Party Payments,REVENUE
Wiltshire,http://opendatacommunities.org/id/unitary-authority/wiltshire,18/01/2019,1902272811,360,Ace Taxis Warminster Ace Taxis,131208,BA12,Community Services,MH OP South Locality,Transport Contracts,Third Party Payments,REVENUE
Wiltshire,http://opendatacommunities.org/id/unitary-authority/wiltshire,18/01/2019,1902272813,971.28,Ace Taxis Warminster Ace Taxis,131208,BA12,Neighbourhood & Planning,SEN Primary,Transport Contracts,Third Party Payments,REVENUE
Wiltshire,http://opendatacommunities.org/id/unitary-authority/wiltshire,18/01/2019,1902272816,1557.2,Ace Taxis Warminster Ace Taxis,131208,BA12,Neighbourhood & Planning,SEN 16+ Secondary,Transport Contracts,Third Party Payments,REVENUE
Wiltshire,http://opendatacommunities.org/id/unitary-authority/wiltshire,02/01/2019,5107297774,12537.34,Acivico ,135971,B2 2,Neighbourhood & Planning,Building Control Asp,Consultants Fees,Supplies and Services,REVENUE
Wiltshire,http://opendatacommunities.org/id/unitary-authority/wiltshire,02/01/2019,5107297653,19723.45,ACS Business Supplies ,141475,BD16,Wiltshire Council,Wiltshire Council,IT Hardware Purchases,Supplies and Services,CAPITAL
Wiltshire,http://opendatacommunities.org/id/unitary-authority/wiltshire,23/01/2019,1902274629,1573.78,Action on Hearing Loss ,112215,N1 1,Community Services,North Care Packages,Adult Day Care Contracts,Third Party Payments,REVENUE
Wiltshire,http://opendatacommunities.org/id/unitary-authority/wiltshire,09/01/2019,5107299266,5536.8,Action on Hearing Loss ,112215,N1 1,Community Services,North Care Packages,Adult Residential Placements - Spot Purchase,Third Party Payments,REVENUE
Wiltshire,http://opendatacommunities.org/id/unitary-authority/wiltshire,09/01/2019,5107299597,6403.36,Action on Hearing Loss ,112215,N1 1,Community Services,South Care Packages,Adult Residential Placements - Spot Purchase,Third Party Payments,REVENUE
Wiltshire,http://opendatacommunities.org/id/unitary-authority/wiltshire,09/01/2019,5107299851,3880.56,Action on Hearing Loss ,112215,N1 1,Community Services,North Care Packages,Adult Residential Placements - Spot Purchase,Third Party Payments,REVENUE
Wiltshire,http://opendatacommunities.org/id/unitary-authority/wiltshire,24/01/2019,5107302465,352.64,Adams Morey Ltd ,110053,SP2 ,Neighbourhood & Planning,Fleet,Vehicle Parts,Transport Related,REVENUE
Wiltshire,http://opendatacommunities.org/id/unitary-authority/wiltshire,24/01/2019,5107303137,443,Adams Morey Ltd ,110053,SP2 ,Neighbourhood & Planning,Fleet,Vehicle Parts,Transport Related,REVENUE
Wiltshire,http://opendatacommunities.org/id/unitary-authority/wiltshire,16/01/2019,1902271192,379.98,Adrains Engineering Psv ,100848,SN15,Neighbourhood & Planning,Mainstream 16+ Sec,Transport Contracts,Third Party Payments,REVENUE
Wiltshire,http://opendatacommunities.org/id/unitary-authority/wiltshire,16/01/2019,1902271192,2850.02,Adrains Engineering Psv ,100848,SN15,Neighbourhood & Planning,Mainstream Secondary,Transport Contracts,Third Party Payments,REVENUE
Wiltshire,http://opendatacommunities.org/id/unitary-authority/wiltshire,16/01/2019,1902271193,3891.99,Adrains Engineering Psv ,100848,SN15,Neighbourhood & Planning,Mainstream Secondary,Transport Contracts,Third Party Payments,REVENUE
Wiltshire,http://opendatacommunities.org/id/unitary-authority/wiltshire,16/01/2019,1902271194,2867.75,Adrains Engineering Psv ,100848,SN15,Neighbourhood & Planning,Mainstream Secondary,Transport Contracts,Third Party Payments,REVENUE
Wiltshire,http://opendatacommunities.org/id/unitary-authority/wiltshire,16/01/2019,1902271195,310.73,Adrains Engineering Psv ,100848,SN15,Neighbourhood & Planning,Mainstream 16+ Sec,Transport Contracts,Third Party Payments,REVENUE
Wiltshire,http://opendatacommunities.org/id/unitary-authority/wiltshire,16/01/2019,1902271195,2766.95,Adrains Engineering Psv ,100848,SN15,Neighbourhood & Planning,Mainstream Secondary,Transport Contracts,Third Party Payments,REVENUE
Wiltshire,http://opendatacommunities.org/id/unitary-authority/wiltshire,16/01/2019,1902271196,352.35,Adrains Engineering Psv ,100848,SN15,Neighbourhood & Planning,Public Transport,Transport Contracts,Third Party Payments,REVENUE
Wiltshire,http://opendatacommunities.org/id/unitary-authority/wiltshire,16/01/2019,1902271196,3333.33,Adrains Engineering Psv ,100848,SN15,Neighbourhood & Planning,Mainstream Primary,Transport Contracts,Third Party Payments,REVENUE
Wiltshire,http://opendatacommunities.org/id/unitary-authority/wiltshire,16/01/2019,1902271197,3333.33,Adrains Engineering Psv ,100848,SN15,Neighbourhood & Planning,Mainstream Secondary,Transport Contracts,Third Party Payments,REVENUE
Wiltshire,http://opendatacommunities.org/id/unitary-authority/wiltshire,16/01/2019,1902271197,3367.42,Adrains Engineering Psv ,100848,SN15,Neighbourhood & Planning,Public Transport,Transport Contracts,Third Party Payments,REVENUE
Wiltshire,http://opendatacommunities.org/id/unitary-authority/wiltshire,17/01/2019,1902272482,376.08,Adrains Engineering Psv ,100848,SN15,Neighbourhood & Planning,Mainstream 16+ Sec,Transport Contracts,Third Party Payments,REVENUE
Wiltshire,http://opendatacommunities.org/id/unitary-authority/wiltshire,17/01/2019,1902272482,2853.92,Adrains Engineering Psv ,100848,SN15,Neighbourhood & Planning,Mainstream Secondary,Transport Contracts,Third Party Payments,REVENUE
Wiltshire,http://opendatacommunities.org/id/unitary-authority/wiltshire,17/01/2019,1902272483,3890.79,Adrains Engineering Psv ,100848,SN15,Neighbourhood & Planning,Mainstream Secondary,Transport Contracts,Third Party Payments,REVENUE
Wiltshire,http://opendatacommunities.org/id/unitary-authority/wiltshire,17/01/2019,1902272484,2866.27,Adrains Engineering Psv ,100848,SN15,Neighbourhood & Planning,Mainstream Secondary,Transport Contracts,Third Party Payments,REVENUE
Wiltshire,http://opendatacommunities.org/id/unitary-authority/wiltshire,17/01/2019,1902272485,262.04,Adrains Engineering Psv ,100848,SN15,Neighbourhood & Planning,Mainstream 16+ Sec,Transport Contracts,Third Party Payments,REVENUE
Wiltshire,http://opendatacommunities.org/id/unitary-authority/wiltshire,17/01/2019,1902272485,2815.64,Adrains Engineering Psv ,100848,SN15,Neighbourhood & Planning,Mainstream Secondary,Transport Contracts,Third Party Payments,REVENUE
Wiltshire,http://opendatacommunities.org/id/unitary-authority/wiltshire,17/01/2019,1902272486,352.35,Adrains Engineering Psv ,100848,SN15,Neighbourhood & Planning,Public Transport,Transport Contracts,Third Party Payments,REVENUE
Wiltshire,http://opendatacommunities.org/id/unitary-authority/wiltshire,17/01/2019,1902272486,3333.33,Adrains Engineering Psv ,100848,SN15,Neighbourhood & Planning,Mainstream Primary,Transport Contracts,Third Party Payments,REVENUE
Wiltshire,http://opendatacommunities.org/id/unitary-authority/wiltshire,17/01/2019,1902272498,3323.42,Adrains Engineering Psv ,100848,SN15,Neighbourhood & Planning,Public Transport,Transport Contracts,Third Party Payments,REVENUE
Wiltshire,http://opendatacommunities.org/id/unitary-authority/wiltshire,17/01/2019,1902272498,3333.33,Adrains Engineering Psv ,100848,SN15,Neighbourhood & Planning,Mainstream Secondary,Transport Contracts,Third Party Payments,REVENUE
Wiltshire,http://opendatacommunities.org/id/unitary-authority/wiltshire,15/01/2019,1902265189,324.39,Adrian's Taxi ,138861,SN10,Neighbourhood & Planning,SEN Primary,Transport Contracts,Third Party Payments,REVENUE
Wiltshire,http://opendatacommunities.org/id/unitary-authority/wiltshire,15/01/2019,1902265189,810.96,Adrian's Taxi ,138861,SN10,Neighbourhood & Planning,SEN Secondary,Transport Contracts,Third Party Payments,REVENUE
Wiltshire,http://opendatacommunities.org/id/unitary-authority/wiltshire,23/01/2019,1902274981,4668.69,Advance Housing  and  Support Ltd ,110060,OX28,Neighbourhood & Planning,PrivateSectorLeasing,Premises Rental,Premises Related,REVENUE
Wiltshire,http://opendatacommunities.org/id/unitary-authority/wiltshire,07/01/2019,1902262048,1390.02,Ady Cars ,136208,SP11,Neighbourhood & Planning,SEN Secondary,Transport Contracts,Third Party Payments,REVENUE
Wiltshire,http://opendatacommunities.org/id/unitary-authority/wiltshire,18/01/2019,5107301569,4293.33,AECOM Ltd ,127871,SW19,Wiltshire Council,Wiltshire Council,Consultants Fees,Supplies and Services,CAPITAL
Wiltshire,http://opendatacommunities.org/id/unitary-authority/wiltshire,10/01/2019,5107303148,3000,AECOM Ltd ,127871,SW19,Wiltshire Council,Wiltshire Council,Consultants Fees,Supplies and Services,CAPITAL
Wiltshire,http://opendatacommunities.org/id/unitary-authority/wiltshire,10/01/2019,5107303149,3500,AECOM Ltd ,127871,SW19,Wiltshire Council,Wiltshire Council,Consultants Fees,Supplies and Services,CAPITAL
Wiltshire,http://opendatacommunities.org/id/unitary-authority/wiltshire,10/01/2019,5107303150,2500,AECOM Ltd ,127871,SW19,Wiltshire Council,Wiltshire Council,Consultants Fees,Supplies and Services,CAPITAL
Wiltshire,http://opendatacommunities.org/id/unitary-authority/wiltshire,10/01/2019,5107303151,2500,AECOM Ltd ,127871,SW19,Wiltshire Council,Wiltshire Council,Consultants Fees,Supplies and Services,CAPITAL
Wiltshire,http://opendatacommunities.org/id/unitary-authority/wiltshire,10/01/2019,5107303159,1500,AECOM Ltd ,127871,SW19,Wiltshire Council,Wiltshire Council,Consultants Fees,Supplies and Services,CAPITAL
Wiltshire,http://opendatacommunities.org/id/unitary-authority/wiltshire,11/01/2019,5107303401,1500,AECOM Ltd ,127871,SW19,Wiltshire Council,Wiltshire Council,Consultants Fees,Supplies and Services,CAPITAL
Wiltshire,http://opendatacommunities.org/id/unitary-authority/wiltshire,17/01/2019,1902264203,38500,Age UK Wiltshire ,100129,SN10,Community Services,ASC Community C&G,Grants Expenditure,Supplies and Services,REVENUE
Wiltshire,http://opendatacommunities.org/id/unitary-authority/wiltshire,23/01/2019,1902274631,1751.32,AginCare Live In Care Services Ltd ,110071,DT5 ,Community Services,North Care Packages,Adult Domiciliary Care Contribution,Income,REVENUE
Wiltshire,http://opendatacommunities.org/id/unitary-authority/wiltshire,23/01/2019,1902274632,1750,AginCare Live In Care Services Ltd ,110071,DT5 ,Community Services,North Care Packages,Adult Domiciliary Care,Third Party Payments,REVENUE
Wiltshire,http://opendatacommunities.org/id/unitary-authority/wiltshire,23/01/2019,1902274633,1657.46,AginCare Live In Care Services Ltd ,110071,DT5 ,Community Services,South Care Packages,Adult Domiciliary Care Contribution,Income,REVENUE
Wiltshire,http://opendatacommunities.org/id/unitary-authority/wiltshire,23/01/2019,1902274634,1546.39,AginCare Live In Care Services Ltd ,110071,DT5 ,Community Services,North Care Packages,Adult Domiciliary Care Contribution,Income,REVENUE
Wiltshire,http://opendatacommunities.org/id/unitary-authority/wiltshire,23/01/2019,1902274635,1577.98,AginCare Live In Care Services Ltd ,110071,DT5 ,Community Services,North Care Packages,Adult Domiciliary Care Contribution,Income,REVENUE
Wiltshire,http://opendatacommunities.org/id/unitary-authority/wiltshire,23/01/2019,1902274650,1751.32,AginCare Live In Care Services Ltd ,110071,DT5 ,Community Services,North Care Packages,Adult Domiciliary Care Contribution,Income,REVENUE
Wiltshire,http://opendatacommunities.org/id/unitary-authority/wiltshire,23/01/2019,1902274651,1750,AginCare Live In Care Services Ltd ,110071,DT5 ,Community Services,North Care Packages,Adult Domiciliary Care,Third Party Payments,REVENUE
Wiltshire,http://opendatacommunities.org/id/unitary-authority/wiltshire,23/01/2019,1902274652,1657.46,AginCare Live In Care Services Ltd ,110071,DT5 ,Community Services,South Care Packages,Adult Domiciliary Care Contribution,Income,REVENUE
Wiltshire,http://opendatacommunities.org/id/unitary-authority/wiltshire,23/01/2019,1902274653,1553.98,AginCare Live In Care Services Ltd ,110071,DT5 ,Community Services,North Care Packages,Adult Domiciliary Care Contribution,Income,REVENUE
Wiltshire,http://opendatacommunities.org/id/unitary-authority/wiltshire,23/01/2019,1902274654,1700.02,AginCare Live In Care Services Ltd ,110071,DT5 ,Community Services,North Care Packages,Adult Domiciliary Care,Third Party Payments,REVENUE
Wiltshire,http://opendatacommunities.org/id/unitary-authority/wiltshire,23/01/2019,1902274655,1577.98,AginCare Live In Care Services Ltd ,110071,DT5 ,Community Services,North Care Packages,Adult Domiciliary Care Contribution,Income,REVENUE
Wiltshire,http://opendatacommunities.org/id/unitary-authority/wiltshire,16/01/2019,1902271887,1045.8,Agincare Ltd ,110069,DT5 ,Community Services,North Care Packages,Adult Domiciliary Care,Third Party Payments,REVENUE
Wiltshire,http://opendatacommunities.org/id/unitary-authority/wiltshire,16/01/2019,1902271888,1300.62,Agincare Ltd ,110069,DT5 ,Community Services,MH AOWA N&E Locality,Adult Domiciliary Care,Third Party Payments,REVENUE
Wiltshire,http://opendatacommunities.org/id/unitary-authority/wiltshire,16/01/2019,1902271889,444.31,Agincare Ltd ,110069,DT5 ,Community Services,North Care Packages,Adult Domiciliary Care Contribution,Income,REVENUE
Wiltshire,http://opendatacommunities.org/id/unitary-authority/wiltshire,16/01/2019,1902271892,660.99,Agincare Ltd ,110069,DT5 ,Community Services,North Care Packages,Adult Domiciliary Care,Third Party Payments,REVENUE
Wiltshire,http://opendatacommunities.org/id/unitary-authority/wiltshire,16/01/2019,1902271893,747.07,Agincare Ltd ,110069,DT5 ,Community Services,North Care Packages,Adult Domiciliary Care,Third Party Payments,REVENUE
Wiltshire,http://opendatacommunities.org/id/unitary-authority/wiltshire,16/01/2019,1902271894,761.96,Agincare Ltd ,110069,DT5 ,Community Services,North Care Packages,Adult Domiciliary Care,Third Party Payments,REVENUE
Wiltshire,http://opendatacommunities.org/id/unitary-authority/wiltshire,16/01/2019,1902271895,767.89,Agincare Ltd ,110069,DT5 ,Community Services,North Care Packages,Adult Domiciliary Care Contribution,Income,REVENUE
Wiltshire,http://opendatacommunities.org/id/unitary-authority/wiltshire,16/01/2019,1902271896,1443.39,Agincare Ltd ,110069,DT5 ,Community Services,North Care Packages,Adult Domiciliary Care Contribution,Income,REVENUE
Wiltshire,http://opendatacommunities.org/id/unitary-authority/wiltshire,16/01/2019,1902271897,836.26,Agincare Ltd ,110069,DT5 ,Community Services,North Care Packages,Adult Domiciliary Care,Third Party Payments,REVENUE
Wiltshire,http://opendatacommunities.org/id/unitary-authority/wiltshire,16/01/2019,1902271898,753.24,Agincare Ltd ,110069,DT5 ,Community Services,MH AOWA N&E Locality,Adult Domiciliary Care,Third Party Payments,REVENUE
Wiltshire,http://opendatacommunities.org/id/unitary-authority/wiltshire,16/01/2019,1902271899,2042.26,Agincare Ltd ,110069,DT5 ,Community Services,North Care Packages,Adult Domiciliary Care,Third Party Payments,REVENUE
Wiltshire,http://opendatacommunities.org/id/unitary-authority/wiltshire,16/01/2019,1902271900,2048.97,Agincare Ltd ,110069,DT5 ,Community Services,North Care Packages,Adult Domiciliary Care Contribution,Income,REVENUE
Wiltshire,http://opendatacommunities.org/id/unitary-authority/wiltshire,16/01/2019,1902271901,765.25,Agincare Ltd ,110069,DT5 ,Community Services,North Care Packages,Adult Domiciliary Care Contribution,Income,REVENUE
Wiltshire,http://opendatacommunities.org/id/unitary-authority/wiltshire,16/01/2019,1902271902,653.39,Agincare Ltd ,110069,DT5 ,Community Services,North Care Packages,Adult Domiciliary Care,Third Party Payments,REVENUE
Wiltshire,http://opendatacommunities.org/id/unitary-authority/wiltshire,16/01/2019,1902271905,388.17,Agincare Ltd ,110069,DT5 ,Community Services,MH AOWA N&E Locality,Adult Domiciliary Care,Third Party Payments,REVENUE
Wiltshire,http://opendatacommunities.org/id/unitary-authority/wiltshire,16/01/2019,1902271906,559.38,Agincare Ltd ,110069,DT5 ,Community Services,North Care Packages,Adult Domiciliary Care Contribution,Income,REVENUE
Wiltshire,http://opendatacommunities.org/id/unitary-authority/wiltshire,16/01/2019,1902271907,495.06,Agincare Ltd ,110069,DT5 ,Community Services,North Care Packages,Adult Domiciliary Care Contribution,Income,REVENUE
Wiltshire,http://opendatacommunities.org/id/unitary-authority/wiltshire,16/01/2019,1902271908,707.44,Agincare Ltd ,110069,DT5 ,Community Services,North Care Packages,Adult Domiciliary Care,Third Party Payments,REVENUE
Wiltshire,http://opendatacommunities.org/id/unitary-authority/wiltshire,16/01/2019,1902271909,294.48,Agincare Ltd ,110069,DT5 ,Community Services,MH OP N&E Locality,Adult Domiciliary Care,Third Party Payments,REVENUE
Wiltshire,http://opendatacommunities.org/id/unitary-authority/wiltshire,16/01/2019,1902271909,854.94,Agincare Ltd ,110069,DT5 ,Community Services,MH AOWA N&E Locality,Adult Domiciliary Care,Third Party Payments,REVENUE
Wiltshire,http://opendatacommunities.org/id/unitary-authority/wiltshire,23/01/2019,1902274659,1023.3,Agincare Ltd ,110069,DT5 ,Community Services,North Care Packages,Adult Domiciliary Care,Third Party Payments,REVENUE
Wiltshire,http://opendatacommunities.org/id/unitary-authority/wiltshire,23/01/2019,1902274660,1669.25,Agincare Ltd ,110069,DT5 ,Community Services,MH AOWA N&E Locality,Adult Domiciliary Care,Third Party Payments,REVENUE
Wiltshire,http://opendatacommunities.org/id/unitary-authority/wiltshire,23/01/2019,1902274661,445.78,Agincare Ltd ,110069,DT5 ,Community Services,North Care Packages,Adult Domiciliary Care Contribution,Income,REVENUE
Wiltshire,http://opendatacommunities.org/id/unitary-authority/wiltshire,23/01/2019,1902274663,477.14,Agincare Ltd ,110069,DT5 ,Community Services,North Care Packages,Adult Domiciliary Care,Third Party Payments,REVENUE
Wiltshire,http://opendatacommunities.org/id/unitary-authority/wiltshire,23/01/2019,1902274664,758,Agincare Ltd ,110069,DT5 ,Community Services,North Care Packages,Adult Domiciliary Care,Third Party Payments,REVENUE
Wiltshire,http://opendatacommunities.org/id/unitary-authority/wiltshire,23/01/2019,1902274665,559.16,Agincare Ltd ,110069,DT5 ,Community Services,North Care Packages,Adult Domiciliary Care,Third Party Payments,REVENUE
Wiltshire,http://opendatacommunities.org/id/unitary-authority/wiltshire,23/01/2019,1902274666,685.08,Agincare Ltd ,110069,DT5 ,Community Services,North Care Packages,Adult Domiciliary Care Contribution,Income,REVENUE
Wiltshire,http://opendatacommunities.org/id/unitary-authority/wiltshire,23/01/2019,1902274667,1420.28,Agincare Ltd ,110069,DT5 ,Community Services,North Care Packages,Adult Domiciliary Care Contribution,Income,REVENUE
Wiltshire,http://opendatacommunities.org/id/unitary-authority/wiltshire,23/01/2019,1902274668,278.08,Agincare Ltd ,110069,DT5 ,Community Services,North Care Packages,Adult Domiciliary Care Contribution,Income,REVENUE
Wiltshire,http://opendatacommunities.org/id/unitary-authority/wiltshire,23/01/2019,1902274669,790,Agincare Ltd ,110069,DT5 ,Community Services,MH AOWA N&E Locality,Adult Domiciliary Care,Third Party Payments,REVENUE
Wiltshire,http://opendatacommunities.org/id/unitary-authority/wiltshire,23/01/2019,1902274670,2127.8,Agincare Ltd ,110069,DT5 ,Community Services,North Care Packages,Adult Domiciliary Care,Third Party Payments,REVENUE
Wiltshire,http://opendatacommunities.org/id/unitary-authority/wiltshire,23/01/2019,1902274671,2040.17,Agincare Ltd ,110069,DT5 ,Community Services,North Care Packages,Adult Domiciliary Care Contribution,Income,REVENUE
Wiltshire,http://opendatacommunities.org/id/unitary-authority/wiltshire,23/01/2019,1902274672,539.32,Agincare Ltd ,110069,DT5 ,Community Services,North Care Packages,Adult Domiciliary Care Contribution,Income,REVENUE
Wiltshire,http://opendatacommunities.org/id/unitary-authority/wiltshire,23/01/2019,1902274673,1416.93,Agincare Ltd ,110069,DT5 ,Community Services,North Care Packages,Adult Domiciliary Care,Third Party Payments,REVENUE
Wiltshire,http://opendatacommunities.org/id/unitary-authority/wiltshire,23/01/2019,1902274674,1067.77,Agincare Ltd ,110069,DT5 ,Community Services,North Care Packages,Adult Domiciliary Care Contribution,Income,REVENUE
Wiltshire,http://opendatacommunities.org/id/unitary-authority/wiltshire,23/01/2019,1902274676,410.4,Agincare Ltd ,110069,DT5 ,Community Services,MH AOWA N&E Locality,Adult Domiciliary Care,Third Party Payments,REVENUE
Wiltshire,http://opendatacommunities.org/id/unitary-authority/wiltshire,23/01/2019,1902274677,584.32,Agincare Ltd ,110069,DT5 ,Community Services,North Care Packages,Adult Domiciliary Care Contribution,Income,REVENUE
Wiltshire,http://opendatacommunities.org/id/unitary-authority/wiltshire,23/01/2019,1902274678,485.42,Agincare Ltd ,110069,DT5 ,Community Services,North Care Packages,Adult Domiciliary Care Contribution,Income,REVENUE
Wiltshire,http://opendatacommunities.org/id/unitary-authority/wiltshire,23/01/2019,1902274679,734,Agincare Ltd ,110069,DT5 ,Community Services,North Care Packages,Adult Domiciliary Care,Third Party Payments,REVENUE
Wiltshire,http://opendatacommunities.org/id/unitary-authority/wiltshire,23/01/2019,1902274680,1200.34,Agincare Ltd ,110069,DT5 ,Community Services,MH AOWA N&E Locality,Adult Domiciliary Care,Third Party Payments,REVENUE
Wiltshire,http://opendatacommunities.org/id/unitary-authority/wiltshire,04/01/2019,1902261948,582.86,Akcess Ltd ,101402,SN2 ,Neighbourhood & Planning,SEN Primary,Transport Contracts,Third Party Payments,REVENUE
Wiltshire,http://opendatacommunities.org/id/unitary-authority/wiltshire,04/01/2019,1902261948,1457.14,Akcess Ltd ,101402,SN2 ,Neighbourhood & Planning,SEN Secondary,Transport Contracts,Third Party Payments,REVENUE
Wiltshire,http://opendatacommunities.org/id/unitary-authority/wiltshire,04/01/2019,1902261958,3000,Akcess Ltd ,101402,SN2 ,Neighbourhood & Planning,SEN 16+ Secondary,Transport Contracts,Third Party Payments,REVENUE
Wiltshire,http://opendatacommunities.org/id/unitary-authority/wiltshire,04/01/2019,1902261959,1512.75,Akcess Ltd ,101402,SN2 ,Neighbourhood & Planning,Mainstream Primary,Transport Contracts,Third Party Payments,REVENUE
Wiltshire,http://opendatacommunities.org/id/unitary-authority/wiltshire,04/01/2019,1902261960,3043.05,Akcess Ltd ,101402,SN2 ,Neighbourhood & Planning,SEN Secondary,Transport Contracts,Third Party Payments,REVENUE
Wiltshire,http://opendatacommunities.org/id/unitary-authority/wiltshire,04/01/2019,1902261961,1590,Akcess Ltd ,101402,SN2 ,Neighbourhood & Planning,Mainstream Secondary,Transport Contracts,Third Party Payments,REVENUE
Wiltshire,http://opendatacommunities.org/id/unitary-authority/wiltshire,04/01/2019,1902261962,382.5,Akcess Ltd ,101402,SN2 ,Neighbourhood & Planning,SEN Rechargable Exp,Transport Contracts,Third Party Payments,REVENUE
Wiltshire,http://opendatacommunities.org/id/unitary-authority/wiltshire,04/01/2019,1902261962,1836,Akcess Ltd ,101402,SN2 ,Neighbourhood & Planning,SEN Primary,Transport Contracts,Third Party Payments,REVENUE
Wiltshire,http://opendatacommunities.org/id/unitary-authority/wiltshire,04/01/2019,1902261963,583.13,Akcess Ltd ,101402,SN2 ,Neighbourhood & Planning,SEN Secondary,Transport Contracts,Third Party Payments,REVENUE
Wiltshire,http://opendatacommunities.org/id/unitary-authority/wiltshire,04/01/2019,1902261963,1749.37,Akcess Ltd ,101402,SN2 ,Neighbourhood & Planning,SEN Primary,Transport Contracts,Third Party Payments,REVENUE
Wiltshire,http://opendatacommunities.org/id/unitary-authority/wiltshire,04/01/2019,1902261964,603.75,Akcess Ltd ,101402,SN2 ,Neighbourhood & Planning,SEN Secondary,Transport Contracts,Third Party Payments,REVENUE
Wiltshire,http://opendatacommunities.org/id/unitary-authority/wiltshire,04/01/2019,1902261964,603.75,Akcess Ltd ,101402,SN2 ,Neighbourhood & Planning,SEN 16+ Secondary,Transport Contracts,Third Party Payments,REVENUE
Wiltshire,http://opendatacommunities.org/id/unitary-authority/wiltshire,04/01/2019,1902261964,1207.5,Akcess Ltd ,101402,SN2 ,Neighbourhood & Planning,SEN Primary,Transport Contracts,Third Party Payments,REVENUE
Wiltshire,http://opendatacommunities.org/id/unitary-authority/wiltshire,04/01/2019,1902261965,1942.98,Akcess Ltd ,101402,SN2 ,Neighbourhood & Planning,SEN Primary,Transport Contracts,Third Party Payments,REVENUE
Wiltshire,http://opendatacommunities.org/id/unitary-authority/wiltshire,04/01/2019,1902261966,1203.12,Akcess Ltd ,101402,SN2 ,Neighbourhood & Planning,Mainstream Primary,Transport Contracts,Third Party Payments,REVENUE
Wiltshire,http://opendatacommunities.org/id/unitary-authority/wiltshire,04/01/2019,1902261967,1342.5,Akcess Ltd ,101402,SN2 ,Neighbourhood & Planning,Mainstream Primary,Transport Contracts,Third Party Payments,REVENUE
Wiltshire,http://opendatacommunities.org/id/unitary-authority/wiltshire,04/01/2019,1902261968,586.67,Akcess Ltd ,101402,SN2 ,Neighbourhood & Planning,Mainstream Secondary,Transport Contracts,Third Party Payments,REVENUE
Wiltshire,http://opendatacommunities.org/id/unitary-authority/wiltshire,04/01/2019,1902261969,890.4,Akcess Ltd ,101402,SN2 ,Neighbourhood & Planning,Mainstream Secondary,Transport Contracts,Third Party Payments,REVENUE
Wiltshire,http://opendatacommunities.org/id/unitary-authority/wiltshire,04/01/2019,1902261969,1017.6,Akcess Ltd ,101402,SN2 ,Neighbourhood & Planning,Mainstream Primary,Transport Contracts,Third Party Payments,REVENUE
Wiltshire,http://opendatacommunities.org/id/unitary-authority/wiltshire,04/01/2019,1902261970,2325,Akcess Ltd ,101402,SN2 ,Neighbourhood & Planning,SEN Secondary,Transport Contracts,Third Party Payments,REVENUE
Wiltshire,http://opendatacommunities.org/id/unitary-authority/wiltshire,04/01/2019,1902261971,1875,Akcess Ltd ,101402,SN2 ,Neighbourhood & Planning,SEN Secondary,Transport Contracts,Third Party Payments,REVENUE
Wiltshire,http://opendatacommunities.org/id/unitary-authority/wiltshire,04/01/2019,1902261972,387,Akcess Ltd ,101402,SN2 ,Neighbourhood & Planning,SEN Secondary,Transport Contracts,Third Party Payments,REVENUE
Wiltshire,http://opendatacommunities.org/id/unitary-authority/wiltshire,04/01/2019,1902261972,1548,Akcess Ltd ,101402,SN2 ,Neighbourhood & Planning,SEN 16+ Secondary,Transport Contracts,Third Party Payments,REVENUE
Wiltshire,http://opendatacommunities.org/id/unitary-authority/wiltshire,04/01/2019,1902261973,1157.13,Akcess Ltd ,101402,SN2 ,Neighbourhood & Planning,SEN Secondary,Transport Contracts,Third Party Payments,REVENUE
Wiltshire,http://opendatacommunities.org/id/unitary-authority/wiltshire,04/01/2019,1902261973,1542.87,Akcess Ltd ,101402,SN2 ,Neighbourhood & Planning,SEN Primary,Transport Contracts,Third Party Payments,REVENUE
Wiltshire,http://opendatacommunities.org/id/unitary-authority/wiltshire,04/01/2019,1902261974,1022.25,Akcess Ltd ,101402,SN2 ,Neighbourhood & Planning,Mainstream Primary,Transport Contracts,Third Party Payments,REVENUE
Wiltshire,http://opendatacommunities.org/id/unitary-authority/wiltshire,04/01/2019,1902261975,1022.25,Akcess Ltd ,101402,SN2 ,Neighbourhood & Planning,Mainstream Primary,Transport Contracts,Third Party Payments,REVENUE
Wiltshire,http://opendatacommunities.org/id/unitary-authority/wiltshire,04/01/2019,1902261976,2052.8,Akcess Ltd ,101402,SN2 ,Neighbourhood & Planning,Mainstream Secondary,Transport Contracts,Third Party Payments,REVENUE
Wiltshire,http://opendatacommunities.org/id/unitary-authority/wiltshire,04/01/2019,1902261977,1849.97,Akcess Ltd ,101402,SN2 ,Neighbourhood & Planning,Mainstream Primary,Transport Contracts,Third Party Payments,REVENUE
Wiltshire,http://opendatacommunities.org/id/unitary-authority/wiltshire,04/01/2019,1902261978,2968.14,Akcess Ltd ,101402,SN2 ,Neighbourhood & Planning,Mainstream Secondary,Transport Contracts,Third Party Payments,REVENUE
Wiltshire,http://opendatacommunities.org/id/unitary-authority/wiltshire,04/01/2019,1902261979,263.78,Akcess Ltd ,101402,SN2 ,Neighbourhood & Planning,SEN Secondary,Transport Contracts,Third Party Payments,REVENUE
Wiltshire,http://opendatacommunities.org/id/unitary-authority/wiltshire,04/01/2019,1902261979,3165.39,Akcess Ltd ,101402,SN2 ,Neighbourhood & Planning,Mainstream Secondary,Transport Contracts,Third Party Payments,REVENUE
Wiltshire,http://opendatacommunities.org/id/unitary-authority/wiltshire,04/01/2019,1902261980,1452.59,Akcess Ltd ,101402,SN2 ,Neighbourhood & Planning,Mainstream Secondary,Transport Contracts,Third Party Payments,REVENUE
Wiltshire,http://opendatacommunities.org/id/unitary-authority/wiltshire,04/01/2019,1902261981,1421.83,Akcess Ltd ,101402,SN2 ,Neighbourhood & Planning,Mainstream Secondary,Transport Contracts,Third Party Payments,REVENUE
Wiltshire,http://opendatacommunities.org/id/unitary-authority/wiltshire,04/01/2019,1902261982,1833.17,Akcess Ltd ,101402,SN2 ,Neighbourhood & Planning,Mainstream Primary,Transport Contracts,Third Party Payments,REVENUE
Wiltshire,http://opendatacommunities.org/id/unitary-authority/wiltshire,04/01/2019,1902261983,933.33,Akcess Ltd ,101402,SN2 ,Neighbourhood & Planning,Mainstream Primary,Transport Contracts,Third Party Payments,REVENUE
Wiltshire,http://opendatacommunities.org/id/unitary-authority/wiltshire,04/01/2019,1902261983,1733.34,Akcess Ltd ,101402,SN2 ,Neighbourhood & Planning,Mainstream Secondary,Transport Contracts,Third Party Payments,REVENUE
Wiltshire,http://opendatacommunities.org/id/unitary-authority/wiltshire,04/01/2019,1902261984,2166.67,Akcess Ltd ,101402,SN2 ,Neighbourhood & Planning,Mainstream Primary,Transport Contracts,Third Party Payments,REVENUE
Wiltshire,http://opendatacommunities.org/id/unitary-authority/wiltshire,04/01/2019,1902261985,1588.08,Akcess Ltd ,101402,SN2 ,Neighbourhood & Planning,Mainstream Primary,Transport Contracts,Third Party Payments,REVENUE
Wiltshire,http://opendatacommunities.org/id/unitary-authority/wiltshire,04/01/2019,1902261986,1472.5,Akcess Ltd ,101402,SN2 ,Neighbourhood & Planning,Mainstream Secondary,Transport Contracts,Third Party Payments,REVENUE
Wiltshire,http://opendatacommunities.org/id/unitary-authority/wiltshire,04/01/2019,1902261987,1682.45,Akcess Ltd ,101402,SN2 ,Neighbourhood & Planning,Mainstream Secondary,Transport Contracts,Third Party Payments,REVENUE
Wiltshire,http://opendatacommunities.org/id/unitary-authority/wiltshire,04/01/2019,1902261988,444,Akcess Ltd ,101402,SN2 ,Neighbourhood & Planning,SEN Rechargable Exp,Transport Contracts,Third Party Payments,REVENUE
Wiltshire,http://opendatacommunities.org/id/unitary-authority/wiltshire,04/01/2019,1902261988,11960.39,Akcess Ltd ,101402,SN2 ,Neighbourhood & Planning,SEN Secondary,Transport Contracts,Third Party Payments,REVENUE
Wiltshire,http://opendatacommunities.org/id/unitary-authority/wiltshire,04/01/2019,1902261988,11960.39,Akcess Ltd ,101402,SN2 ,Neighbourhood & Planning,SEN 16+ Secondary,Transport Contracts,Third Party Payments,REVENUE
Wiltshire,http://opendatacommunities.org/id/unitary-authority/wiltshire,04/01/2019,1902261988,15947.2,Akcess Ltd ,101402,SN2 ,Neighbourhood & Planning,SEN Primary,Transport Contracts,Third Party Payments,REVENUE
Wiltshire,http://opendatacommunities.org/id/unitary-authority/wiltshire,23/01/2019,1902275250,684,Akcess Ltd ,101402,SN2 ,Neighbourhood & Planning,Mainstream Secondary,Transport Contracts,Third Party Payments,REVENUE
Wiltshire,http://opendatacommunities.org/id/unitary-authority/wiltshire,23/01/2019,1902275251,648,Akcess Ltd ,101402,SN2 ,Neighbourhood & Planning,Mainstream Secondary,Transport Contracts,Third Party Payments,REVENUE
Wiltshire,http://opendatacommunities.org/id/unitary-authority/wiltshire,08/01/2019,1902263075,38613.12,Alabare Christian Care Centre ,100837,SP2 ,Neighbourhood & Planning,Hsg Strat & Enabling,Other Contracts,Third Party Payments,REVENUE
Wiltshire,http://opendatacommunities.org/id/unitary-authority/wiltshire,09/01/2019,1902263421,342,Alabare Christian Care Centre ,100837,SP2 ,Community Services,CTPLD Placements,Adult Day Care Contracts,Third Party Payments,REVENUE
Wiltshire,http://opendatacommunities.org/id/unitary-authority/wiltshire,09/01/2019,1902263423,456,Alabare Christian Care Centre ,100837,SP2 ,Community Services,South Care Packages,Adult Day Care Contracts,Third Party Payments,REVENUE
Wiltshire,http://opendatacommunities.org/id/unitary-authority/wiltshire,09/01/2019,1902263424,342,Alabare Christian Care Centre ,100837,SP2 ,Community Services,MH AOWA South Locali,Adult Day Care Contracts,Third Party Payments,REVENUE
Wiltshire,http://opendatacommunities.org/id/unitary-authority/wiltshire,09/01/2019,1902263436,342,Alabare Christian Care Centre ,100837,SP2 ,Community Services,MH AOWA South Locali,Adult Day Care Contracts,Third Party Payments,REVENUE
Wiltshire,http://opendatacommunities.org/id/unitary-authority/wiltshire,09/01/2019,1902263448,264,Alabare Christian Care Centre ,100837,SP2 ,Community Services,MH AOWA South Locali,Adult Domiciliary Care,Third Party Payments,REVENUE
Wiltshire,http://opendatacommunities.org/id/unitary-authority/wiltshire,09/01/2019,1902263449,410.44,Alabare Christian Care Centre ,100837,SP2 ,Community Services,CTPLD Placements,Adult Domiciliary Care Contribution,Income,REVENUE
Wiltshire,http://opendatacommunities.org/id/unitary-authority/wiltshire,16/01/2019,1902271737,475,Alabare Christian Care Centre ,100837,SP2 ,Community Services,CTPLD Placements,Adult Day Care Contracts,Third Party Payments,REVENUE
Wiltshire,http://opendatacommunities.org/id/unitary-authority/wiltshire,16/01/2019,1902271741,361,Alabare Christian Care Centre ,100837,SP2 ,Community Services,CTPLD Placements,Adult Day Care Contracts,Third Party Payments,REVENUE
Wiltshire,http://opendatacommunities.org/id/unitary-authority/wiltshire,16/01/2019,1902271742,475,Alabare Christian Care Centre ,100837,SP2 ,Community Services,South Care Packages,Adult Day Care Contracts,Third Party Payments,REVENUE
Wiltshire,http://opendatacommunities.org/id/unitary-authority/wiltshire,16/01/2019,1902271744,342,Alabare Christian Care Centre ,100837,SP2 ,Community Services,CTPLD Placements,Adult Day Care Contracts,Third Party Payments,REVENUE
Wiltshire,http://opendatacommunities.org/id/unitary-authority/wiltshire,16/01/2019,1902271745,342,Alabare Christian Care Centre ,100837,SP2 ,Community Services,CTPLD Placements,Adult Day Care Contracts,Third Party Payments,REVENUE
Wiltshire,http://opendatacommunities.org/id/unitary-authority/wiltshire,16/01/2019,1902271748,342,Alabare Christian Care Centre ,100837,SP2 ,Community Services,South Care Packages,Adult Day Care Contracts,Third Party Payments,REVENUE
Wiltshire,http://opendatacommunities.org/id/unitary-authority/wiltshire,16/01/2019,1902271755,285,Alabare Christian Care Centre ,100837,SP2 ,Community Services,CTPLD Placements,Adult Day Care Contracts,Third Party Payments,REVENUE
Wiltshire,http://opendatacommunities.org/id/unitary-authority/wiltshire,22/01/2019,1902273864,2352.7,Alabare Christian Care Centre ,100837,SP2 ,Neighbourhood & Planning,Housing Options,Transport - Mileage & Fuel,Transport Related,REVENUE
Wiltshire,http://opendatacommunities.org/id/unitary-authority/wiltshire,30/01/2019,1902277727,264,Alabare Christian Care Centre ,100837,SP2 ,Community Services,MH AOWA South Locali,Adult Domiciliary Care,Third Party Payments,REVENUE
Wiltshire,http://opendatacommunities.org/id/unitary-authority/wiltshire,30/01/2019,1902277729,410.44,Alabare Christian Care Centre ,100837,SP2 ,Community Services,CTPLD Placements,Adult Domiciliary Care Contribution,Income,REVENUE
Wiltshire,http://opendatacommunities.org/id/unitary-authority/wiltshire,31/01/2019,1902278248,6321.17,Alabare Christian Care Centre ,100837,SP2 ,Neighbourhood & Planning,Housing Options,Transport - Mileage & Fuel,Transport Related,REVENUE
Wiltshire,http://opendatacommunities.org/id/unitary-authority/wiltshire,02/01/2019,5107297199,147865.64,Alabare Christian Care Centre ,100837,SP2 ,Neighbourhood & Planning,Hsg Strat & Enabling,Other Contracts,Third Party Payments,REVENUE
Wiltshire,http://opendatacommunities.org/id/unitary-authority/wiltshire,09/01/2019,5107301175,2815.92,Alabare Christian Care Centre ,100837,SP2 ,Community Services,CTPLD Placements,Supported Living,Third Party Payments,REVENUE
Wiltshire,http://opendatacommunities.org/id/unitary-authority/wiltshire,09/01/2019,5107301202,1992.28,Alabare Christian Care Centre ,100837,SP2 ,Community Services,CTPLD Placements,Supported Living,Third Party Payments,REVENUE
Wiltshire,http://opendatacommunities.org/id/unitary-authority/wiltshire,09/01/2019,5107301204,544.4,Alabare Christian Care Centre ,100837,SP2 ,Community Services,CTPLD Placements,Supported Living,Third Party Payments,REVENUE
Wiltshire,http://opendatacommunities.org/id/unitary-authority/wiltshire,09/01/2019,5107301226,1369.48,Alabare Christian Care Centre ,100837,SP2 ,Community Services,CTPLD Placements,Supported Living,Third Party Payments,REVENUE
Wiltshire,http://opendatacommunities.org/id/unitary-authority/wiltshire,09/01/2019,5107301228,1694.28,Alabare Christian Care Centre ,100837,SP2 ,Community Services,South Care Packages,Supported Living,Third Party Payments,REVENUE
Wiltshire,http://opendatacommunities.org/id/unitary-authority/wiltshire,09/01/2019,5107301335,338,Alabare Christian Care Centre ,100837,SP2 ,Community Services,South Care Packages,Supported Living,Third Party Payments,REVENUE
Wiltshire,http://opendatacommunities.org/id/unitary-authority/wiltshire,09/01/2019,5107301927,950.64,Alabare Christian Care Centre ,100837,SP2 ,Community Services,CTPLD Placements,Supported Living,Third Party Payments,REVENUE
Wiltshire,http://opendatacommunities.org/id/unitary-authority/wiltshire,09/01/2019,5107302488,3540.8,Alabare Christian Care Centre ,100837,SP2 ,Community Services,MH OP South Locality,Adult Domiciliary Care,Third Party Payments,REVENUE
Wiltshire,http://opendatacommunities.org/id/unitary-authority/wiltshire,09/01/2019,5107302510,2022.32,Alabare Christian Care Centre ,100837,SP2 ,Community Services,CTPLD Placements,Supported Living,Third Party Payments,REVENUE
Wiltshire,http://opendatacommunities.org/id/unitary-authority/wiltshire,09/01/2019,5107302511,1794.64,Alabare Christian Care Centre ,100837,SP2 ,Community Services,CTPLD Placements,Supported Living,Third Party Payments,REVENUE
Wiltshire,http://opendatacommunities.org/id/unitary-authority/wiltshire,09/01/2019,5107302513,2573.48,Alabare Christian Care Centre ,100837,SP2 ,Community Services,CTPLD Placements,Supported Living,Third Party Payments,REVENUE
Wiltshire,http://opendatacommunities.org/id/unitary-authority/wiltshire,09/01/2019,5107302543,4066.28,Alabare Christian Care Centre ,100837,SP2 ,Community Services,CTPLD Placements,Supported Living,Third Party Payments,REVENUE
Wiltshire,http://opendatacommunities.org/id/unitary-authority/wiltshire,09/01/2019,5107302555,3252.44,Alabare Christian Care Centre ,100837,SP2 ,Community Services,CTPLD Placements,Supported Living,Third Party Payments,REVENUE
Wiltshire,http://opendatacommunities.org/id/unitary-authority/wiltshire,09/01/2019,5107302591,841.8,Alabare Christian Care Centre ,100837,SP2 ,Community Services,CTPLD Placements,Supported Living,Third Party Payments,REVENUE
Wiltshire,http://opendatacommunities.org/id/unitary-authority/wiltshire,09/01/2019,5107302595,504,Alabare Christian Care Centre ,100837,SP2 ,Community Services,South Care Packages,Supported Living,Third Party Payments,REVENUE
Wiltshire,http://opendatacommunities.org/id/unitary-authority/wiltshire,09/01/2019,5107302608,864,Alabare Christian Care Centre ,100837,SP2 ,Community Services,MH AOWA South Locali,Supported Living,Third Party Payments,REVENUE
Wiltshire,http://opendatacommunities.org/id/unitary-authority/wiltshire,09/01/2019,5107302610,399.96,Alabare Christian Care Centre ,100837,SP2 ,Community Services,CTPLD Placements,Supported Living,Third Party Payments,REVENUE
Wiltshire,http://opendatacommunities.org/id/unitary-authority/wiltshire,09/01/2019,5107302614,4123.36,Alabare Christian Care Centre ,100837,SP2 ,Community Services,CTPLD Placements,Supported Living,Third Party Payments,REVENUE
Wiltshire,http://opendatacommunities.org/id/unitary-authority/wiltshire,09/01/2019,5107302620,604.84,Alabare Christian Care Centre ,100837,SP2 ,Community Services,CTPLD Placements,Supported Living,Third Party Payments,REVENUE
Wiltshire,http://opendatacommunities.org/id/unitary-authority/wiltshire,09/01/2019,5107302622,8011.2,Alabare Christian Care Centre ,100837,SP2 ,Community Services,CTPLD Placements,Supported Living,Third Party Payments,REVENUE
Wiltshire,http://opendatacommunities.org/id/unitary-authority/wiltshire,09/01/2019,5107302628,720,Alabare Christian Care Centre ,100837,SP2 ,Community Services,MH AOWA South Locali,Supported Living,Third Party Payments,REVENUE
Wiltshire,http://opendatacommunities.org/id/unitary-authority/wiltshire,09/01/2019,5107302629,504,Alabare Christian Care Centre ,100837,SP2 ,Community Services,MH AOWA South Locali,Supported Living,Third Party Payments,REVENUE
Wiltshire,http://opendatacommunities.org/id/unitary-authority/wiltshire,09/01/2019,5107302633,432,Alabare Christian Care Centre ,100837,SP2 ,Community Services,MH AOWA South Locali,Supported Living,Third Party Payments,REVENUE
Wiltshire,http://opendatacommunities.org/id/unitary-authority/wiltshire,09/01/2019,5107302637,900,Alabare Christian Care Centre ,100837,SP2 ,Community Services,MH AOWA South Locali,Supported Living,Third Party Payments,REVENUE
Wiltshire,http://opendatacommunities.org/id/unitary-authority/wiltshire,09/01/2019,5107302647,360,Alabare Christian Care Centre ,100837,SP2 ,Community Services,MH AOWA South Locali,Supported Living,Third Party Payments,REVENUE
Wiltshire,http://opendatacommunities.org/id/unitary-authority/wiltshire,09/01/2019,5107302653,3607.08,Alabare Christian Care Centre ,100837,SP2 ,Community Services,CTPLD Placements,Supported Living,Third Party Payments,REVENUE
Wiltshire,http://opendatacommunities.org/id/unitary-authority/wiltshire,09/01/2019,5107302662,468,Alabare Christian Care Centre ,100837,SP2 ,Community Services,MH AOWA South Locali,Supported Living,Third Party Payments,REVENUE
Wiltshire,http://opendatacommunities.org/id/unitary-authority/wiltshire,09/01/2019,5107302665,433.72,Alabare Christian Care Centre ,100837,SP2 ,Community Services,CTPLD Placements,Supported Living,Third Party Payments,REVENUE
Wiltshire,http://opendatacommunities.org/id/unitary-authority/wiltshire,09/01/2019,5107302668,1792.76,Alabare Christian Care Centre ,100837,SP2 ,Community Services,CTPLD Placements,Supported Living,Third Party Payments,REVENUE
Wiltshire,http://opendatacommunities.org/id/unitary-authority/wiltshire,09/01/2019,5107302672,1882.08,Alabare Christian Care Centre ,100837,SP2 ,Community Services,CTPLD Placements,Supported Living,Third Party Payments,REVENUE
Wiltshire,http://opendatacommunities.org/id/unitary-authority/wiltshire,09/01/2019,5107302699,1753.08,Alabare Christian Care Centre ,100837,SP2 ,Community Services,CTPLD Placements,Supported Living,Third Party Payments,REVENUE
Wiltshire,http://opendatacommunities.org/id/unitary-authority/wiltshire,09/01/2019,5107302722,3144,Alabare Christian Care Centre ,100837,SP2 ,Community Services,CTPLD Placements,Supported Living,Third Party Payments,REVENUE
Wiltshire,http://opendatacommunities.org/id/unitary-authority/wiltshire,09/01/2019,5107302723,2180.24,Alabare Christian Care Centre ,100837,SP2 ,Community Services,CTPLD Placements,Supported Living,Third Party Payments,REVENUE
Wiltshire,http://opendatacommunities.org/id/unitary-authority/wiltshire,09/01/2019,5107302731,3298.44,Alabare Christian Care Centre ,100837,SP2 ,Community Services,CTPLD Placements,Supported Living,Third Party Payments,REVENUE
Wiltshire,http://opendatacommunities.org/id/unitary-authority/wiltshire,09/01/2019,5107302739,3344.76,Alabare Christian Care Centre ,100837,SP2 ,Community Services,CTPLD Placements,Supported Living,Third Party Payments,REVENUE
Wiltshire,http://opendatacommunities.org/id/unitary-authority/wiltshire,09/01/2019,5107302744,3229.04,Alabare Christian Care Centre ,100837,SP2 ,Community Services,CTPLD Placements,Supported Living,Third Party Payments,REVENUE
Wiltshire,http://opendatacommunities.org/id/unitary-authority/wiltshire,09/01/2019,5107302775,2855.84,Alabare Christian Care Centre ,100837,SP2 ,Community Services,CTPLD Placements,Supported Living,Third Party Payments,REVENUE
Wiltshire,http://opendatacommunities.org/id/unitary-authority/wiltshire,09/01/2019,5107302793,1008,Alabare Christian Care Centre ,100837,SP2 ,Community Services,MH AOWA South Locali,Supported Living,Third Party Payments,REVENUE
Wiltshire,http://opendatacommunities.org/id/unitary-authority/wiltshire,09/01/2019,5107302835,396,Alabare Christian Care Centre ,100837,SP2 ,Community Services,South Care Packages,Supported Living,Third Party Payments,REVENUE
Wiltshire,http://opendatacommunities.org/id/unitary-authority/wiltshire,09/01/2019,5107302867,1180.6,Alabare Christian Care Centre ,100837,SP2 ,Community Services,CTPLD Placements,Supported Living,Third Party Payments,REVENUE
Wiltshire,http://opendatacommunities.org/id/unitary-authority/wiltshire,09/01/2019,5107299298,3000,Aldbourne Nursing Home ,110090,SN8 ,Community Services,Home Loans,Adult Care Loans,Capital charges and Expenditure,REVENUE
Wiltshire,http://opendatacommunities.org/id/unitary-authority/wiltshire,09/01/2019,5107299421,3052,Aldbourne Nursing Home ,110090,SN8 ,Community Services,North Care Packages,Adult Care Nursing Placements - Spot,Third Party Payments,REVENUE
Wiltshire,http://opendatacommunities.org/id/unitary-authority/wiltshire,17/01/2019,1902272136,1500,Alder King ,100899,BS8 ,Neighbourhood & Planning,Master Planning,Castledown Phase 2,Balance Sheet Accounts,REVENUE
Wiltshire,http://opendatacommunities.org/id/unitary-authority/wiltshire,09/01/2019,5107300888,3400,Alexandra Care Centre ,147242,BH8 ,Community Services,MH AOWA N&E Locality,Adult Residential Placements - Spot Purchase,Third Party Payments,REVENUE
Wiltshire,http://opendatacommunities.org/id/unitary-authority/wiltshire,09/01/2019,5107300911,3600,Alexandra Care Centre ,147242,BH8 ,Community Services,MH OP N&E Locality,Adult Residential Placements - Spot Purchase,Third Party Payments,REVENUE
Wiltshire,http://opendatacommunities.org/id/unitary-authority/wiltshire,09/01/2019,5107300593,6237.48,Alexandra Homes (Bristol) Ltd ,131787,BS15,Community Services,MH AOWA West Localit,Adult Residential Placements - Spot Purchase,Third Party Payments,REVENUE
Wiltshire,http://opendatacommunities.org/id/unitary-authority/wiltshire,04/01/2019,5107297949,12749.25,Aligned Assets Ltd ,144669,GU21,Resources,Applications SuppLOB,ICT Apps - Experian,Supplies and Services,REVENUE
Wiltshire,http://opendatacommunities.org/id/unitary-authority/wiltshire,04/01/2019,5107299884,6258.64,Alina Homecare - Disabilty Support ,139903,BH12,Community Services,CTPLD Placements,Supported Living,Third Party Payments,REVENUE
Wiltshire,http://opendatacommunities.org/id/unitary-authority/wiltshire,04/01/2019,5107299885,6258.64,Alina Homecare - Disabilty Support ,139903,BH12,Community Services,CTPLD Placements,Supported Living,Third Party Payments,REVENUE
Wiltshire,http://opendatacommunities.org/id/unitary-authority/wiltshire,04/01/2019,5107300077,10101.53,Alina Homecare - Disabilty Support ,139903,BH12,Community Services,CTPLD Placements,Supported Living Contribution,Income,REVENUE
Wiltshire,http://opendatacommunities.org/id/unitary-authority/wiltshire,04/01/2019,5107300082,954.76,Alina Homecare - Disabilty Support ,139903,BH12,Community Services,CTPLD Placements,Supported Living Contribution,Income,REVENUE
Wiltshire,http://opendatacommunities.org/id/unitary-authority/wiltshire,09/01/2019,5107299183,3728.52,Alliance Home Care ,110986,SN15,Community Services,MH AOWA N&E Locality,Adult Residential Placements - Spot Purchase,Third Party Payments,REVENUE
Wiltshire,http://opendatacommunities.org/id/unitary-authority/wiltshire,09/01/2019,5107299353,3599.72,Alliance Home Care ,110986,SN15,Community Services,MH OP N&E Locality,Adult Residential Placements - Spot Purchase,Third Party Payments,REVENUE
Wiltshire,http://opendatacommunities.org/id/unitary-authority/wiltshire,09/01/2019,5107300307,2108.92,Alliance Home Care ,110986,SN15,Community Services,MH OP N&E Locality,Adult Residential Placements - Spot Purchase,Third Party Payments,REVENUE
Wiltshire,http://opendatacommunities.org/id/unitary-authority/wiltshire,09/01/2019,5107300341,3676.04,Alliance Home Care ,110986,SN15,Community Services,MH AOWA N&E Locality,Adult Residential Placements - Spot Purchase,Third Party Payments,REVENUE
Wiltshire,http://opendatacommunities.org/id/unitary-authority/wiltshire,09/01/2019,5107300356,3139.8,Alliance Home Care ,110986,SN15,Community Services,MH AOWA N&E Locality,Adult Residential Placements - Spot Purchase,Third Party Payments,REVENUE
Wiltshire,http://opendatacommunities.org/id/unitary-authority/wiltshire,09/01/2019,5107300366,3267.84,Alliance Home Care ,110986,SN15,Community Services,MH AOWA N&E Locality,Adult Residential Placements - Spot Purchase,Third Party Payments,REVENUE
Wiltshire,http://opendatacommunities.org/id/unitary-authority/wiltshire,09/01/2019,5107302329,3601.96,Alliance Home Care ,110986,SN15,Community Services,Adult Care Gross Loa,Adult Residential Placements - Spot Purchase,Third Party Payments,REVENUE
Wiltshire,http://opendatacommunities.org/id/unitary-authority/wiltshire,15/01/2019,1902265574,7595.36,Allsorts Pre-school Nursery ,113437,SN4 ,Children & Education,Free Enttlmnt 3 & 4y,Childcare Free Entitlement Early Years,Supplies and Services,REVENUE
Wiltshire,http://opendatacommunities.org/id/unitary-authority/wiltshire,15/01/2019,1902265575,1638.56,Allsorts Pre-school Nursery ,113437,SN4 ,Children & Education,Free Entitlement 2 Y,Childcare Free Entitlement Early Years,Supplies and Services,REVENUE
Wiltshire,http://opendatacommunities.org/id/unitary-authority/wiltshire,30/01/2019,1902278036,319.2,Allsorts Pre-school Nursery ,113437,SN4 ,Children & Education,Free Entitlement 2 Y,Childcare Free Entitlement Early Years,Supplies and Services,REVENUE
Wiltshire,http://opendatacommunities.org/id/unitary-authority/wiltshire,24/01/2019,5107301493,365.95,Alpha Chemicals ,138904,SO31,Neighbourhood & Planning,Five Rivers,Cleaning Materials - Buildings,Premises Related,REVENUE
Wiltshire,http://opendatacommunities.org/id/unitary-authority/wiltshire,14/01/2019,5107301494,662.1,Alpha Chemicals ,138904,SO31,Neighbourhood & Planning,Five Rivers,Cleaning Materials - Buildings,Premises Related,REVENUE
Wiltshire,http://opendatacommunities.org/id/unitary-authority/wiltshire,03/01/2019,5107297950,304.75,Alpha Plus Training  and  Translati Ltd,110120,TA4 ,Children & Education,UASC Under 18 Years,Professional Fees,Supplies and Services,REVENUE
Wiltshire,http://opendatacommunities.org/id/unitary-authority/wiltshire,03/01/2019,5107297953,255.15,Alpha Plus Training  and  Translati Ltd,110120,TA4 ,Children & Education,UASC Under 18 Years,Professional Fees,Supplies and Services,REVENUE
Wiltshire,http://opendatacommunities.org/id/unitary-authority/wiltshire,03/01/2019,5107297956,289.55,Alpha Plus Training  and  Translati Ltd,110120,TA4 ,Children & Education,UASC Under 18 Years,Professional Fees,Supplies and Services,REVENUE
Wiltshire,http://opendatacommunities.org/id/unitary-authority/wiltshire,08/01/2019,5107301415,300.75,Alpha Plus Training  and  Translati Ltd,110120,TA4 ,Children & Education,UASC Under 18 Years,Professional Fees,Supplies and Services,REVENUE
Wiltshire,http://opendatacommunities.org/id/unitary-authority/wiltshire,10/01/2019,5107301421,699,Alpha Plus Training  and  Translati Ltd,110120,TA4 ,Resources,Refugee Programme,Publications / periodicals,Supplies and Services,REVENUE
Wiltshire,http://opendatacommunities.org/id/unitary-authority/wiltshire,08/01/2019,5107301439,270.13,Alpha Plus Training  and  Translati Ltd,110120,TA4 ,Children & Education,UASC Under 18 Years,Professional Fees,Supplies and Services,REVENUE
Wiltshire,http://opendatacommunities.org/id/unitary-authority/wiltshire,08/01/2019,5107301440,293,Alpha Plus Training  and  Translati Ltd,110120,TA4 ,Children & Education,UASC Under 18 Years,Professional Fees,Supplies and Services,REVENUE
Wiltshire,http://opendatacommunities.org/id/unitary-authority/wiltshire,08/01/2019,5107301452,314.7,Alpha Plus Training  and  Translati Ltd,110120,TA4 ,Children & Education,UASC Under 18 Years,Professional Fees,Supplies and Services,REVENUE
Wiltshire,http://opendatacommunities.org/id/unitary-authority/wiltshire,08/01/2019,5107301454,282.75,Alpha Plus Training  and  Translati Ltd,110120,TA4 ,Children & Education,UASC Under 18 Years,Professional Fees,Supplies and Services,REVENUE
Wiltshire,http://opendatacommunities.org/id/unitary-authority/wiltshire,08/01/2019,5107301455,282.75,Alpha Plus Training  and  Translati Ltd,110120,TA4 ,Children & Education,UASC Under 18 Years,Professional Fees,Supplies and Services,REVENUE
Wiltshire,http://opendatacommunities.org/id/unitary-authority/wiltshire,08/01/2019,5107301456,316.7,Alpha Plus Training  and  Translati Ltd,110120,TA4 ,Children & Education,UASC Under 18 Years,Professional Fees,Supplies and Services,REVENUE
Wiltshire,http://opendatacommunities.org/id/unitary-authority/wiltshire,08/01/2019,5107301458,291.75,Alpha Plus Training  and  Translati Ltd,110120,TA4 ,Children & Education,UASC Under 18 Years,Professional Fees,Supplies and Services,REVENUE
Wiltshire,http://opendatacommunities.org/id/unitary-authority/wiltshire,08/01/2019,5107301509,333.45,Alpha Plus Training  and  Translati Ltd,110120,TA4 ,Children & Education,UASC Under 18 Years,Professional Fees,Supplies and Services,REVENUE
Wiltshire,http://opendatacommunities.org/id/unitary-authority/wiltshire,08/01/2019,5107301521,388.95,Alpha Plus Training  and  Translati Ltd,110120,TA4 ,Children & Education,UASC Under 18 Years,Professional Fees,Supplies and Services,REVENUE
Wiltshire,http://opendatacommunities.org/id/unitary-authority/wiltshire,08/01/2019,5107301522,282.75,Alpha Plus Training  and  Translati Ltd,110120,TA4 ,Children & Education,UASC Under 18 Years,Professional Fees,Supplies and Services,REVENUE
Wiltshire,http://opendatacommunities.org/id/unitary-authority/wiltshire,08/01/2019,5107301527,260.25,Alpha Plus Training  and  Translati Ltd,110120,TA4 ,Children & Education,UASC Under 18 Years,Professional Fees,Supplies and Services,REVENUE
Wiltshire,http://opendatacommunities.org/id/unitary-authority/wiltshire,08/01/2019,5107301528,286.8,Alpha Plus Training  and  Translati Ltd,110120,TA4 ,Children & Education,UASC Under 18 Years,Professional Fees,Supplies and Services,REVENUE
Wiltshire,http://opendatacommunities.org/id/unitary-authority/wiltshire,08/01/2019,5107301531,250.8,Alpha Plus Training  and  Translati Ltd,110120,TA4 ,Children & Education,UASC Under 18 Years,Professional Fees,Supplies and Services,REVENUE
Wiltshire,http://opendatacommunities.org/id/unitary-authority/wiltshire,08/01/2019,5107301535,256.08,Alpha Plus Training  and  Translati Ltd,110120,TA4 ,Children & Education,UASC Under 18 Years,Professional Fees,Supplies and Services,REVENUE
Wiltshire,http://opendatacommunities.org/id/unitary-authority/wiltshire,08/01/2019,5107301536,258.6,Alpha Plus Training  and  Translati Ltd,110120,TA4 ,Children & Education,UASC Under 18 Years,Professional Fees,Supplies and Services,REVENUE
Wiltshire,http://opendatacommunities.org/id/unitary-authority/wiltshire,08/01/2019,5107301537,255.25,Alpha Plus Training  and  Translati Ltd,110120,TA4 ,Children & Education,UASC Under 18 Years,Professional Fees,Supplies and Services,REVENUE
Wiltshire,http://opendatacommunities.org/id/unitary-authority/wiltshire,08/01/2019,5107301538,263.35,Alpha Plus Training  and  Translati Ltd,110120,TA4 ,Children & Education,UASC Under 18 Years,Professional Fees,Supplies and Services,REVENUE
Wiltshire,http://opendatacommunities.org/id/unitary-authority/wiltshire,08/01/2019,5107301539,407.65,Alpha Plus Training  and  Translati Ltd,110120,TA4 ,Children & Education,UASC Under 18 Years,Professional Fees,Supplies and Services,REVENUE
Wiltshire,http://opendatacommunities.org/id/unitary-authority/wiltshire,08/01/2019,5107301540,281.4,Alpha Plus Training  and  Translati Ltd,110120,TA4 ,Children & Education,UASC Under 18 Years,Professional Fees,Supplies and Services,REVENUE
Wiltshire,http://opendatacommunities.org/id/unitary-authority/wiltshire,08/01/2019,5107301542,276.5,Alpha Plus Training  and  Translati Ltd,110120,TA4 ,Children & Education,UASC Under 18 Years,Professional Fees,Supplies and Services,REVENUE
Wiltshire,http://opendatacommunities.org/id/unitary-authority/wiltshire,08/01/2019,5107301543,292.65,Alpha Plus Training  and  Translati Ltd,110120,TA4 ,Children & Education,UASC Under 18 Years,Professional Fees,Supplies and Services,REVENUE
Wiltshire,http://opendatacommunities.org/id/unitary-authority/wiltshire,08/01/2019,5107301544,259.6,Alpha Plus Training  and  Translati Ltd,110120,TA4 ,Children & Education,UASC Under 18 Years,Professional Fees,Supplies and Services,REVENUE
Wiltshire,http://opendatacommunities.org/id/unitary-authority/wiltshire,08/01/2019,5107301558,282.75,Alpha Plus Training  and  Translati Ltd,110120,TA4 ,Children & Education,UASC Under 18 Years,Professional Fees,Supplies and Services,REVENUE
Wiltshire,http://opendatacommunities.org/id/unitary-authority/wiltshire,15/01/2019,1902265269,277.53,Alpha Taxis ,100124,BA14,Neighbourhood & Planning,Mainstream Primary,Transport Contracts,Third Party Payments,REVENUE
Wiltshire,http://opendatacommunities.org/id/unitary-authority/wiltshire,15/01/2019,1902265270,341.2,Alpha Taxis ,100124,BA14,Community Services,CTPLD Placements,Transport Contracts,Third Party Payments,REVENUE
Wiltshire,http://opendatacommunities.org/id/unitary-authority/wiltshire,15/01/2019,1902265280,622.08,Alpha Taxis ,100124,BA14,Neighbourhood & Planning,SEN Secondary,Transport Contracts,Third Party Payments,REVENUE
Wiltshire,http://opendatacommunities.org/id/unitary-authority/wiltshire,15/01/2019,1902265282,702,Alpha Taxis ,100124,BA14,Neighbourhood & Planning,SEN 16+ Secondary,Transport Contracts,Third Party Payments,REVENUE
Wiltshire,http://opendatacommunities.org/id/unitary-authority/wiltshire,15/01/2019,1902265284,498.8,Alpha Taxis ,100124,BA14,Neighbourhood & Planning,Mainstream Secondary,Transport Contracts,Third Party Payments,REVENUE
Wiltshire,http://opendatacommunities.org/id/unitary-authority/wiltshire,15/01/2019,1902265286,1404,Alpha Taxis ,100124,BA14,Neighbourhood & Planning,SEN Primary,Transport Contracts,Third Party Payments,REVENUE
Wiltshire,http://opendatacommunities.org/id/unitary-authority/wiltshire,15/01/2019,1902265290,2106,Alpha Taxis ,100124,BA14,Neighbourhood & Planning,SEN Primary,Transport Contracts,Third Party Payments,REVENUE
Wiltshire,http://opendatacommunities.org/id/unitary-authority/wiltshire,15/01/2019,1902265291,947.6,Alpha Taxis ,100124,BA14,Neighbourhood & Planning,SEN 16+ Secondary,Transport Contracts,Third Party Payments,REVENUE
Wiltshire,http://opendatacommunities.org/id/unitary-authority/wiltshire,15/01/2019,1902265292,1064,Alpha Taxis ,100124,BA14,Neighbourhood & Planning,SEN Primary,Transport Contracts,Third Party Payments,REVENUE
Wiltshire,http://opendatacommunities.org/id/unitary-authority/wiltshire,15/01/2019,1902265293,864,Alpha Taxis ,100124,BA14,Neighbourhood & Planning,SEN Primary,Transport Contracts,Third Party Payments,REVENUE
Wiltshire,http://opendatacommunities.org/id/unitary-authority/wiltshire,15/01/2019,1902265294,1134,Alpha Taxis ,100124,BA14,Neighbourhood & Planning,SEN Primary,Transport Contracts,Third Party Payments,REVENUE
Wiltshire,http://opendatacommunities.org/id/unitary-authority/wiltshire,15/01/2019,1902265295,870,Alpha Taxis ,100124,BA14,Neighbourhood & Planning,SEN Primary,Transport Contracts,Third Party Payments,REVENUE
Wiltshire,http://opendatacommunities.org/id/unitary-authority/wiltshire,15/01/2019,1902265296,754,Alpha Taxis ,100124,BA14,Neighbourhood & Planning,SEN Primary,Transport Contracts,Third Party Payments,REVENUE
Wiltshire,http://opendatacommunities.org/id/unitary-authority/wiltshire,17/01/2019,1902272506,371.5,Alpha Taxis ,100124,BA14,Children & Education,Supp & Safe East,Transport Contracts,Third Party Payments,REVENUE
Wiltshire,http://opendatacommunities.org/id/unitary-authority/wiltshire,17/01/2019,1902272506,371.5,Alpha Taxis ,100124,BA14,Children & Education,In house fostering t,Transport Contracts,Third Party Payments,REVENUE
Wiltshire,http://opendatacommunities.org/id/unitary-authority/wiltshire,17/01/2019,1902272509,475,Alpha Taxis ,100124,BA14,Neighbourhood & Planning,SEN Primary,Transport Contracts,Third Party Payments,REVENUE
Wiltshire,http://opendatacommunities.org/id/unitary-authority/wiltshire,24/01/2019,1902275724,390,Alpha Taxis ,100124,BA14,Children & Education,Supp & Safe West 2,Transport Contracts,Third Party Payments,REVENUE
Wiltshire,http://opendatacommunities.org/id/unitary-authority/wiltshire,24/01/2019,1902275724,726.6,Alpha Taxis ,100124,BA14,Neighbourhood & Planning,SEN Secondary,Transport Contracts,Third Party Payments,REVENUE
Wiltshire,http://opendatacommunities.org/id/unitary-authority/wiltshire,24/01/2019,1902275724,1645.04,Alpha Taxis ,100124,BA14,Children & Education,BehaviourSuppService,Transport Contracts,Third Party Payments,REVENUE
Wiltshire,http://opendatacommunities.org/id/unitary-authority/wiltshire,23/01/2019,1902275258,250,Alpha Taxis (Tidworth) ,137541,SP9 ,Neighbourhood & Planning,SEN Secondary,Transport Contracts,Third Party Payments,REVENUE
Wiltshire,http://opendatacommunities.org/id/unitary-authority/wiltshire,23/01/2019,1902275261,2016,Alpha Taxis (Tidworth) ,137541,SP9 ,Neighbourhood & Planning,SEN Primary,Transport Contracts,Third Party Payments,REVENUE
Wiltshire,http://opendatacommunities.org/id/unitary-authority/wiltshire,23/01/2019,1902275262,762.87,Alpha Taxis (Tidworth) ,137541,SP9 ,Neighbourhood & Planning,SEN Primary,Transport Contracts,Third Party Payments,REVENUE
Wiltshire,http://opendatacommunities.org/id/unitary-authority/wiltshire,23/01/2019,1902275262,1365.13,Alpha Taxis (Tidworth) ,137541,SP9 ,Neighbourhood & Planning,SEN Secondary,Transport Contracts,Third Party Payments,REVENUE
Wiltshire,http://opendatacommunities.org/id/unitary-authority/wiltshire,23/01/2019,1902275263,522.67,Alpha Taxis (Tidworth) ,137541,SP9 ,Neighbourhood & Planning,SEN Primary,Transport Contracts,Third Party Payments,REVENUE
Wiltshire,http://opendatacommunities.org/id/unitary-authority/wiltshire,23/01/2019,1902275263,1045.33,Alpha Taxis (Tidworth) ,137541,SP9 ,Neighbourhood & Planning,SEN Secondary,Transport Contracts,Third Party Payments,REVENUE
Wiltshire,http://opendatacommunities.org/id/unitary-authority/wiltshire,23/01/2019,1902263653,172887.89,Alun Griffiths Contractors Ltd ,110123,NP7 ,Wiltshire Council,Wiltshire Council,Materials,Supplies and Services,CAPITAL
Wiltshire,http://opendatacommunities.org/id/unitary-authority/wiltshire,02/01/2019,5107297645,990,Alzheimers Support ,110127,BA14,Resources,HR Central Training,Staff Training - General,Employee Related,REVENUE
Wiltshire,http://opendatacommunities.org/id/unitary-authority/wiltshire,11/01/2019,5107303352,22318.33,Alzheimers Support ,110127,BA14,Community Services,ASC Community C&G,Grants Expenditure,Supplies and Services,REVENUE
Wiltshire,http://opendatacommunities.org/id/unitary-authority/wiltshire,11/01/2019,5107303353,10042.25,Alzheimers Support ,110127,BA14,Community Services,MH Commissioned Cont,Grants Expenditure,Supplies and Services,REVENUE
Wiltshire,http://opendatacommunities.org/id/unitary-authority/wiltshire,11/01/2019,5107303354,22318.33,Alzheimers Support ,110127,BA14,Community Services,ASC Community C&G,Grants Expenditure,Supplies and Services,REVENUE
Wiltshire,http://opendatacommunities.org/id/unitary-authority/wiltshire,11/01/2019,5107303355,10042.25,Alzheimers Support ,110127,BA14,Community Services,MH Commissioned Cont,Grants Expenditure,Supplies and Services,REVENUE
Wiltshire,http://opendatacommunities.org/id/unitary-authority/wiltshire,30/01/2019,1902277759,288,Alzheimers Support ,113451,BA14,Community Services,West Care Packages,Adult Domiciliary Care,Third Party Payments,REVENUE
Wiltshire,http://opendatacommunities.org/id/unitary-authority/wiltshire,30/01/2019,1902277765,432,Alzheimers Support ,113451,BA14,Community Services,West Care Packages,Adult Domiciliary Care,Third Party Payments,REVENUE
Wiltshire,http://opendatacommunities.org/id/unitary-authority/wiltshire,30/01/2019,1902277770,288,Alzheimers Support ,113451,BA14,Community Services,West Care Packages,Adult Domiciliary Care,Third Party Payments,REVENUE
Wiltshire,http://opendatacommunities.org/id/unitary-authority/wiltshire,30/01/2019,1902277771,370.65,Alzheimers Support ,113451,BA14,Community Services,West Care Packages,Adult Domiciliary Care,Third Party Payments,REVENUE
Wiltshire,http://opendatacommunities.org/id/unitary-authority/wiltshire,30/01/2019,1902277776,288,Alzheimers Support ,113451,BA14,Community Services,West Care Packages,Adult Domiciliary Care,Third Party Payments,REVENUE
Wiltshire,http://opendatacommunities.org/id/unitary-authority/wiltshire,30/01/2019,1902277779,288,Alzheimers Support ,113451,BA14,Community Services,West Care Packages,Adult Domiciliary Care,Third Party Payments,REVENUE
Wiltshire,http://opendatacommunities.org/id/unitary-authority/wiltshire,30/01/2019,1902277801,288,Alzheimers Support ,113451,BA14,Community Services,West Care Packages,Adult Domiciliary Care,Third Party Payments,REVENUE
Wiltshire,http://opendatacommunities.org/id/unitary-authority/wiltshire,30/01/2019,1902277809,288,Alzheimers Support ,113451,BA14,Community Services,West Care Packages,Adult Domiciliary Care,Third Party Payments,REVENUE
Wiltshire,http://opendatacommunities.org/id/unitary-authority/wiltshire,30/01/2019,1902277811,285.6,Alzheimers Support ,113451,BA14,Community Services,West Care Packages,Adult Domiciliary Care,Third Party Payments,REVENUE
Wiltshire,http://opendatacommunities.org/id/unitary-authority/wiltshire,30/01/2019,1902277815,288,Alzheimers Support ,113451,BA14,Community Services,North Care Packages,Adult Domiciliary Care,Third Party Payments,REVENUE
Wiltshire,http://opendatacommunities.org/id/unitary-authority/wiltshire,30/01/2019,1902277817,360,Alzheimers Support ,113451,BA14,Community Services,North Care Packages,Adult Domiciliary Care,Third Party Payments,REVENUE
Wiltshire,http://opendatacommunities.org/id/unitary-authority/wiltshire,30/01/2019,1902277819,288,Alzheimers Support ,113451,BA14,Community Services,North Care Packages,Adult Domiciliary Care,Third Party Payments,REVENUE
Wiltshire,http://opendatacommunities.org/id/unitary-authority/wiltshire,30/01/2019,1902277820,576,Alzheimers Support ,113451,BA14,Community Services,North Care Packages,Adult Domiciliary Care,Third Party Payments,REVENUE
Wiltshire,http://opendatacommunities.org/id/unitary-authority/wiltshire,30/01/2019,1902277823,333,Alzheimers Support ,113451,BA14,Community Services,North Care Packages,Adult Domiciliary Care,Third Party Payments,REVENUE
Wiltshire,http://opendatacommunities.org/id/unitary-authority/wiltshire,30/01/2019,1902277824,252,Alzheimers Support ,113451,BA14,Community Services,North Care Packages,Adult Domiciliary Care,Third Party Payments,REVENUE
Wiltshire,http://opendatacommunities.org/id/unitary-authority/wiltshire,30/01/2019,1902277827,648,Alzheimers Support ,113451,BA14,Community Services,North Care Packages,Adult Domiciliary Care,Third Party Payments,REVENUE
Wiltshire,http://opendatacommunities.org/id/unitary-authority/wiltshire,30/01/2019,1902277829,432,Alzheimers Support ,113451,BA14,Community Services,North Care Packages,Adult Domiciliary Care,Third Party Payments,REVENUE
Wiltshire,http://opendatacommunities.org/id/unitary-authority/wiltshire,30/01/2019,1902277839,288,Alzheimers Support ,113451,BA14,Community Services,South Care Packages,Adult Domiciliary Care,Third Party Payments,REVENUE
Wiltshire,http://opendatacommunities.org/id/unitary-authority/wiltshire,30/01/2019,1902277849,288,Alzheimers Support ,113451,BA14,Community Services,South Care Packages,Adult Domiciliary Care,Third Party Payments,REVENUE
Wiltshire,http://opendatacommunities.org/id/unitary-authority/wiltshire,30/01/2019,1902277867,324,Alzheimers Support ,113451,BA14,Community Services,West Care Packages,Adult Domiciliary Care,Third Party Payments,REVENUE
Wiltshire,http://opendatacommunities.org/id/unitary-authority/wiltshire,03/01/2019,1902261669,1875,Ameo Professional Services LLP ,137429,B80 ,Resources,Corporate Directors,Consultants Fees,Supplies and Services,REVENUE
Wiltshire,http://opendatacommunities.org/id/unitary-authority/wiltshire,02/01/2019,5107297802,539.71,Amicus Foster Care Limited ,126050,BS2 ,Children & Education,CIC Team South,Childrens Agency Placement,Third Party Payments,REVENUE
Wiltshire,http://opendatacommunities.org/id/unitary-authority/wiltshire,16/01/2019,1902271674,844.78,Amicus Homecare Limited ,144149,BA2 ,Community Services,West Care Packages,Adult Domiciliary Care Contribution,Income,REVENUE
Wiltshire,http://opendatacommunities.org/id/unitary-authority/wiltshire,16/01/2019,1902271676,922.22,Amicus Homecare Limited ,144149,BA2 ,Community Services,West Care Packages,Adult Domiciliary Care Contribution,Income,REVENUE
Wiltshire,http://opendatacommunities.org/id/unitary-authority/wiltshire,16/01/2019,1902271677,471.84,Amicus Homecare Limited ,144149,BA2 ,Community Services,MH OP West Locality,Adult Domiciliary Care Contribution,Income,REVENUE
Wiltshire,http://opendatacommunities.org/id/unitary-authority/wiltshire,23/01/2019,1902274458,471.84,Amicus Homecare Limited ,144149,BA2 ,Community Services,MH OP West Locality,Adult Domiciliary Care Contribution,Income,REVENUE
Wiltshire,http://opendatacommunities.org/id/unitary-authority/wiltshire,30/01/2019,1902277202,1076.28,Amicus Homecare Limited ,144149,BA2 ,Community Services,West Care Packages,Adult Domiciliary Care Contribution,Income,REVENUE
Wiltshire,http://opendatacommunities.org/id/unitary-authority/wiltshire,30/01/2019,1902277203,1088.84,Amicus Homecare Limited ,144149,BA2 ,Community Services,West Care Packages,Adult Domiciliary Care Contribution,Income,REVENUE
Wiltshire,http://opendatacommunities.org/id/unitary-authority/wiltshire,30/01/2019,1902277204,499.34,Amicus Homecare Limited ,144149,BA2 ,Community Services,West Care Packages,Adult Domiciliary Care Contribution,Income,REVENUE
Wiltshire,http://opendatacommunities.org/id/unitary-authority/wiltshire,30/01/2019,1902277206,1009.22,Amicus Homecare Limited ,144149,BA2 ,Community Services,West Care Packages,Adult Domiciliary Care Contribution,Income,REVENUE
Wiltshire,http://opendatacommunities.org/id/unitary-authority/wiltshire,30/01/2019,1902277207,531.84,Amicus Homecare Limited ,144149,BA2 ,Community Services,West Care Packages,Adult Domiciliary Care Contribution,Income,REVENUE
Wiltshire,http://opendatacommunities.org/id/unitary-authority/wiltshire,30/01/2019,1902277209,937.28,Amicus Homecare Limited ,144149,BA2 ,Community Services,West Care Packages,Adult Domiciliary Care Contribution,Income,REVENUE
Wiltshire,http://opendatacommunities.org/id/unitary-authority/wiltshire,16/01/2019,1902266067,1779.81,AMP Clean Energy ,144036,EX20,Neighbourhood & Planning,Biomass Prog Schools,Other Fuels,Premises Related,REVENUE
Wiltshire,http://opendatacommunities.org/id/unitary-authority/wiltshire,23/01/2019,1902274388,1552.5,AMP Clean Energy ,144036,EX20,Neighbourhood & Planning,Biomass Prog Schools,Other Fuels,Premises Related,REVENUE
Wiltshire,http://opendatacommunities.org/id/unitary-authority/wiltshire,23/01/2019,1902274389,2759.4,AMP Clean Energy ,144036,EX20,Neighbourhood & Planning,Biomass Prog Schools,Other Fuels,Premises Related,REVENUE
Wiltshire,http://opendatacommunities.org/id/unitary-authority/wiltshire,23/01/2019,1902274390,1020.98,AMP Clean Energy ,144036,EX20,Neighbourhood & Planning,Biomass Prog Schools,Other Fuels,Premises Related,REVENUE
Wiltshire,http://opendatacommunities.org/id/unitary-authority/wiltshire,23/01/2019,1902274391,748.98,AMP Clean Energy ,144036,EX20,Neighbourhood & Planning,Biomass Prog Schools,Other Fuels,Premises Related,REVENUE
Wiltshire,http://opendatacommunities.org/id/unitary-authority/wiltshire,23/01/2019,1902274392,1013.09,AMP Clean Energy ,144036,EX20,Neighbourhood & Planning,Biomass Prog Schools,Other Fuels,Premises Related,REVENUE
Wiltshire,http://opendatacommunities.org/id/unitary-authority/wiltshire,23/01/2019,1902274393,1188.51,AMP Clean Energy ,144036,EX20,Neighbourhood & Planning,Biomass Prog Schools,Other Fuels,Premises Related,REVENUE
Wiltshire,http://opendatacommunities.org/id/unitary-authority/wiltshire,23/01/2019,1902274394,1440.8,AMP Clean Energy ,144036,EX20,Neighbourhood & Planning,Biomass Prog Schools,Other Fuels,Premises Related,REVENUE
Wiltshire,http://opendatacommunities.org/id/unitary-authority/wiltshire,23/01/2019,1902274395,1541.32,AMP Clean Energy ,144036,EX20,Neighbourhood & Planning,Biomass Prog Schools,Other Fuels,Premises Related,REVENUE
Wiltshire,http://opendatacommunities.org/id/unitary-authority/wiltshire,23/01/2019,1902274396,1576.8,AMP Clean Energy ,144036,EX20,Neighbourhood & Planning,Biomass Prog Schools,Other Fuels,Premises Related,REVENUE
Wiltshire,http://opendatacommunities.org/id/unitary-authority/wiltshire,23/01/2019,1902274397,1801.49,AMP Clean Energy ,144036,EX20,Neighbourhood & Planning,Biomass Prog Schools,Other Fuels,Premises Related,REVENUE
Wiltshire,http://opendatacommunities.org/id/unitary-authority/wiltshire,23/01/2019,1902274398,268.06,AMP Clean Energy ,144036,EX20,Neighbourhood & Planning,Biomass Prog Schools,Other Fuels,Premises Related,REVENUE
Wiltshire,http://opendatacommunities.org/id/unitary-authority/wiltshire,23/01/2019,1902274400,2365.2,AMP Clean Energy ,144036,EX20,Neighbourhood & Planning,Biomass Prog Schools,Other Fuels,Premises Related,REVENUE
Wiltshire,http://opendatacommunities.org/id/unitary-authority/wiltshire,23/01/2019,1902274401,808.11,AMP Clean Energy ,144036,EX20,Neighbourhood & Planning,Biomass Prog Schools,Other Fuels,Premises Related,REVENUE
Wiltshire,http://opendatacommunities.org/id/unitary-authority/wiltshire,23/01/2019,1902274402,985.5,AMP Clean Energy ,144036,EX20,Neighbourhood & Planning,Biomass Prog Schools,Other Fuels,Premises Related,REVENUE
Wiltshire,http://opendatacommunities.org/id/unitary-authority/wiltshire,23/01/2019,1902274403,2365.2,AMP Clean Energy ,144036,EX20,Neighbourhood & Planning,Biomass Prog Schools,Other Fuels,Premises Related,REVENUE
Wiltshire,http://opendatacommunities.org/id/unitary-authority/wiltshire,23/01/2019,1902274404,670.14,AMP Clean Energy ,144036,EX20,Neighbourhood & Planning,Biomass Prog Schools,Other Fuels,Premises Related,REVENUE
Wiltshire,http://opendatacommunities.org/id/unitary-authority/wiltshire,23/01/2019,1902274405,579.47,AMP Clean Energy ,144036,EX20,Neighbourhood & Planning,Biomass Prog Schools,Other Fuels,Premises Related,REVENUE
Wiltshire,http://opendatacommunities.org/id/unitary-authority/wiltshire,08/01/2019,1902263092,14498.58,AMS Care Wiltshire ,130764,SN4 ,Community Services,BCF-Intermediate Cr,Adult Care Nursing Placements- Block Contract,Third Party Payments,REVENUE
Wiltshire,http://opendatacommunities.org/id/unitary-authority/wiltshire,23/01/2019,1902274997,11940,AMS Care Wiltshire ,130764,SN4 ,Community Services,BCF-Intermediate Cr,Adult Care Nursing Placements- Block Contract,Third Party Payments,REVENUE
Wiltshire,http://opendatacommunities.org/id/unitary-authority/wiltshire,09/01/2019,5107299219,2466.12,AMS Care Wiltshire ,130764,SN4 ,Community Services,Placement Block Cont,Adult Care Nursing Placements- Block Contract,Third Party Payments,REVENUE
Wiltshire,http://opendatacommunities.org/id/unitary-authority/wiltshire,09/01/2019,5107299260,2680.32,AMS Care Wiltshire ,130764,SN4 ,Community Services,Placement Block Cont,Adult Care Nursing Placements- Block Contract,Third Party Payments,REVENUE
Wiltshire,http://opendatacommunities.org/id/unitary-authority/wiltshire,09/01/2019,5107299289,2680.32,AMS Care Wiltshire ,130764,SN4 ,Community Services,Placement Block Cont,Adult Care Nursing Placements- Block Contract,Third Party Payments,REVENUE
Wiltshire,http://opendatacommunities.org/id/unitary-authority/wiltshire,09/01/2019,5107299308,2680.32,AMS Care Wiltshire ,130764,SN4 ,Community Services,Placement Block Cont,Adult Care Nursing Placements- Block Contract,Third Party Payments,REVENUE
Wiltshire,http://opendatacommunities.org/id/unitary-authority/wiltshire,09/01/2019,5107299310,2680.32,AMS Care Wiltshire ,130764,SN4 ,Community Services,Placement Block Cont,Adult Care Nursing Placements- Block Contract,Third Party Payments,REVENUE
Wiltshire,http://opendatacommunities.org/id/unitary-authority/wiltshire,09/01/2019,5107299371,2680.32,AMS Care Wiltshire ,130764,SN4 ,Community Services,Placement Block Cont,Adult Care Nursing Placements- Block Contract,Third Party Payments,REVENUE
Wiltshire,http://opendatacommunities.org/id/unitary-authority/wiltshire,09/01/2019,5107299459,2603,AMS Care Wiltshire ,130764,SN4 ,Community Services,Adult Care Gross Loa,Adult Care Loans,Capital charges and Expenditure,REVENUE
Wiltshire,http://opendatacommunities.org/id/unitary-authority/wiltshire,09/01/2019,5107299796,2466.12,AMS Care Wiltshire ,130764,SN4 ,Community Services,Placement Block Cont,Adult Care Nursing Placements- Block Contract,Third Party Payments,REVENUE
Wiltshire,http://opendatacommunities.org/id/unitary-authority/wiltshire,09/01/2019,5107299800,2466.12,AMS Care Wiltshire ,130764,SN4 ,Community Services,Placement Block Cont,Adult Care Nursing Placements- Block Contract,Third Party Payments,REVENUE
Wiltshire,http://opendatacommunities.org/id/unitary-authority/wiltshire,09/01/2019,5107299847,2680.32,AMS Care Wiltshire ,130764,SN4 ,Community Services,Placement Block Cont,Adult Care Nursing Placements- Block Contract,Third Party Payments,REVENUE
Wiltshire,http://opendatacommunities.org/id/unitary-authority/wiltshire,09/01/2019,5107300153,17499.6,AMS Care Wiltshire ,130764,SN4 ,Community Services,BCF-Intermediate Cr,Adult Care Nursing Placements- Block Contract,Third Party Payments,REVENUE
Wiltshire,http://opendatacommunities.org/id/unitary-authority/wiltshire,09/01/2019,5107300228,2680.32,AMS Care Wiltshire ,130764,SN4 ,Community Services,Placement Block Cont,Adult Care Nursing Placements- Block Contract,Third Party Payments,REVENUE
Wiltshire,http://opendatacommunities.org/id/unitary-authority/wiltshire,09/01/2019,5107300241,2680.32,AMS Care Wiltshire ,130764,SN4 ,Community Services,Placement Block Cont,Adult Care Nursing Placements- Block Contract,Third Party Payments,REVENUE
Wiltshire,http://opendatacommunities.org/id/unitary-authority/wiltshire,09/01/2019,5107300268,2680.32,AMS Care Wiltshire ,130764,SN4 ,Community Services,Placement Block Cont,Adult Care Nursing Placements- Block Contract,Third Party Payments,REVENUE
Wiltshire,http://opendatacommunities.org/id/unitary-authority/wiltshire,09/01/2019,5107300369,2680.32,AMS Care Wiltshire ,130764,SN4 ,Community Services,Placement Block Cont,Adult Care Nursing Placements- Block Contract,Third Party Payments,REVENUE
Wiltshire,http://opendatacommunities.org/id/unitary-authority/wiltshire,09/01/2019,5107300461,2466.12,AMS Care Wiltshire ,130764,SN4 ,Community Services,Placement Block Cont,Adult Care Nursing Placements- Block Contract,Third Party Payments,REVENUE
Wiltshire,http://opendatacommunities.org/id/unitary-authority/wiltshire,09/01/2019,5107300877,2680.32,AMS Care Wiltshire ,130764,SN4 ,Community Services,Placement Block Cont,Adult Care Nursing Placements- Block Contract,Third Party Payments,REVENUE
Wiltshire,http://opendatacommunities.org/id/unitary-authority/wiltshire,09/01/2019,5107300983,3312.96,AMS Care Wiltshire ,130764,SN4 ,Community Services,CTPLD Placements,Adult Residential Placements - Spot Purchase,Third Party Payments,REVENUE
Wiltshire,http://opendatacommunities.org/id/unitary-authority/wiltshire,09/01/2019,5107301015,2680.32,AMS Care Wiltshire ,130764,SN4 ,Community Services,Placement Block Cont,Adult Care Nursing Placements- Block Contract,Third Party Payments,REVENUE
Wiltshire,http://opendatacommunities.org/id/unitary-authority/wiltshire,09/01/2019,5107301018,2466.12,AMS Care Wiltshire ,130764,SN4 ,Community Services,Placement Block Cont,Adult Care Nursing Placements- Block Contract,Third Party Payments,REVENUE
Wiltshire,http://opendatacommunities.org/id/unitary-authority/wiltshire,09/01/2019,5107301033,2466.12,AMS Care Wiltshire ,130764,SN4 ,Community Services,Placement Block Cont,Adult Care Nursing Placements- Block Contract,Third Party Payments,REVENUE
Wiltshire,http://opendatacommunities.org/id/unitary-authority/wiltshire,09/01/2019,5107301044,2466.12,AMS Care Wiltshire ,130764,SN4 ,Community Services,Placement Block Cont,Adult Care Nursing Placements- Block Contract,Third Party Payments,REVENUE
Wiltshire,http://opendatacommunities.org/id/unitary-authority/wiltshire,09/01/2019,5107301054,2680.32,AMS Care Wiltshire ,130764,SN4 ,Community Services,Placement Block Cont,Adult Care Nursing Placements- Block Contract,Third Party Payments,REVENUE
Wiltshire,http://opendatacommunities.org/id/unitary-authority/wiltshire,09/01/2019,5107301133,2680.32,AMS Care Wiltshire ,130764,SN4 ,Community Services,Placement Block Cont,Adult Care Nursing Placements- Block Contract,Third Party Payments,REVENUE
Wiltshire,http://opendatacommunities.org/id/unitary-authority/wiltshire,09/01/2019,5107301797,2680.32,AMS Care Wiltshire ,130764,SN4 ,Community Services,Placement Block Cont,Adult Care Nursing Placements- Block Contract,Third Party Payments,REVENUE
Wiltshire,http://opendatacommunities.org/id/unitary-authority/wiltshire,09/01/2019,5107301801,9744,AMS Care Wiltshire ,130764,SN4 ,Community Services,North Care Packages,Adult Domiciliary Care,Third Party Payments,REVENUE
Wiltshire,http://opendatacommunities.org/id/unitary-authority/wiltshire,09/01/2019,5107301834,2680.32,AMS Care Wiltshire ,130764,SN4 ,Community Services,Placement Block Cont,Adult Care Nursing Placements- Block Contract,Third Party Payments,REVENUE
Wiltshire,http://opendatacommunities.org/id/unitary-authority/wiltshire,09/01/2019,5107302049,2466.12,AMS Care Wiltshire ,130764,SN4 ,Community Services,Placement Block Cont,Adult Care Nursing Placements- Block Contract,Third Party Payments,REVENUE
Wiltshire,http://opendatacommunities.org/id/unitary-authority/wiltshire,09/01/2019,5107302098,2680.32,AMS Care Wiltshire ,130764,SN4 ,Community Services,Placement Block Cont,Adult Care Nursing Placements- Block Contract,Third Party Payments,REVENUE
Wiltshire,http://opendatacommunities.org/id/unitary-authority/wiltshire,09/01/2019,5107302136,765.84,AMS Care Wiltshire ,130764,SN4 ,Community Services,Placement Block Cont,Adult Care Nursing Placements- Block Contract,Third Party Payments,REVENUE
Wiltshire,http://opendatacommunities.org/id/unitary-authority/wiltshire,09/01/2019,5107302273,591.6,AMS Care Wiltshire ,130764,SN4 ,Community Services,North Care Packages,Adult Care Nursing Placements - Spot,Third Party Payments,REVENUE
Wiltshire,http://opendatacommunities.org/id/unitary-authority/wiltshire,09/01/2019,5107302275,473.28,AMS Care Wiltshire ,130764,SN4 ,Community Services,North Care Packages,Adult Care Nursing Placements - Spot,Third Party Payments,REVENUE
Wiltshire,http://opendatacommunities.org/id/unitary-authority/wiltshire,09/01/2019,5107302313,2680.32,AMS Care Wiltshire ,130764,SN4 ,Community Services,Placement Block Cont,Adult Care Nursing Placements- Block Contract,Third Party Payments,REVENUE
Wiltshire,http://opendatacommunities.org/id/unitary-authority/wiltshire,09/01/2019,5107302320,2680.32,AMS Care Wiltshire ,130764,SN4 ,Community Services,Placement Block Cont,Adult Care Nursing Placements- Block Contract,Third Party Payments,REVENUE
Wiltshire,http://opendatacommunities.org/id/unitary-authority/wiltshire,09/01/2019,5107302958,3312.96,AMS Care Wiltshire ,130764,SN4 ,Community Services,North Care Packages,Adult Residential Placements - Spot Purchase,Third Party Payments,REVENUE
Wiltshire,http://opendatacommunities.org/id/unitary-authority/wiltshire,09/01/2019,5107302116,2800,Anchor Mayfield Court Care Home ,146869,SO17,Community Services,South Care Packages,Adult Residential Placements - Spot Purchase,Third Party Payments,REVENUE
Wiltshire,http://opendatacommunities.org/id/unitary-authority/wiltshire,09/01/2019,5107302110,6000,Andover Nursing Home ,110142,SP10,Community Services,MH AOWA South Locali,Adult Care Nursing Placements - Spot,Third Party Payments,REVENUE
Wiltshire,http://opendatacommunities.org/id/unitary-authority/wiltshire,11/01/2019,1902264339,375,Andy Taxis Limited ,100874,SP4 ,Neighbourhood & Planning,Mainstream Primary,Transport Contracts,Third Party Payments,REVENUE
Wiltshire,http://opendatacommunities.org/id/unitary-authority/wiltshire,11/01/2019,1902264339,1125,Andy Taxis Limited ,100874,SP4 ,Neighbourhood & Planning,Mainstream Secondary,Transport Contracts,Third Party Payments,REVENUE
Wiltshire,http://opendatacommunities.org/id/unitary-authority/wiltshire,14/01/2019,1902264570,1111.11,Andybus  and  Coach Ltd ,100132,SN16,Neighbourhood & Planning,Mainstream Primary,Transport Contracts,Third Party Payments,REVENUE
Wiltshire,http://opendatacommunities.org/id/unitary-authority/wiltshire,14/01/2019,1902264570,17253.34,Andybus  and  Coach Ltd ,100132,SN16,Neighbourhood & Planning,Mainstream Secondary,Transport Contracts,Third Party Payments,REVENUE
Wiltshire,http://opendatacommunities.org/id/unitary-authority/wiltshire,14/01/2019,1902264571,2965.76,Andybus  and  Coach Ltd ,100132,SN16,Neighbourhood & Planning,Mainstream Secondary,Transport Contracts,Third Party Payments,REVENUE
Wiltshire,http://opendatacommunities.org/id/unitary-authority/wiltshire,14/01/2019,1902264572,3246.25,Andybus  and  Coach Ltd ,100132,SN16,Neighbourhood & Planning,Mainstream Secondary,Transport Contracts,Third Party Payments,REVENUE
Wiltshire,http://opendatacommunities.org/id/unitary-authority/wiltshire,14/01/2019,1902264573,3286.68,Andybus  and  Coach Ltd ,100132,SN16,Neighbourhood & Planning,Mainstream Secondary,Transport Contracts,Third Party Payments,REVENUE
Wiltshire,http://opendatacommunities.org/id/unitary-authority/wiltshire,09/01/2019,5107302449,22500,APAM Ltd re Nexus Properties ,147980,M17 ,Resources,FM Leisure Centres,Premises Rental,Premises Related,REVENUE
Wiltshire,http://opendatacommunities.org/id/unitary-authority/wiltshire,09/01/2019,5107303000,7140,APAM Ltd re Nexus Properties ,147980,M17 ,Resources,FM Leisure Centres,Premises Rental,Premises Related,REVENUE
Wiltshire,http://opendatacommunities.org/id/unitary-authority/wiltshire,15/01/2019,1902265635,16367.23,Appletree Nursery 1026 ,110163,SN11,Children & Education,Free Enttlmnt 3 & 4y,Childcare Free Entitlement Early Years,Supplies and Services,REVENUE
Wiltshire,http://opendatacommunities.org/id/unitary-authority/wiltshire,15/01/2019,1902265636,3803.8,Appletree Nursery 1026 ,110163,SN11,Children & Education,Free Entitlement 2 Y,Childcare Free Entitlement Early Years,Supplies and Services,REVENUE
Wiltshire,http://opendatacommunities.org/id/unitary-authority/wiltshire,11/01/2019,5107303169,470,APT SECURITY SYSTEMS LTD ,147147,HP2 ,Neighbourhood & Planning,Traffic Manmt-Rchgbl,Materials,Supplies and Services,REVENUE
Wiltshire,http://opendatacommunities.org/id/unitary-authority/wiltshire,23/01/2019,1902274696,311.78,Aquaid South Coast ,110167,SO50,Resources,FM Highway Depots,Catering,Supplies and Services,REVENUE
Wiltshire,http://opendatacommunities.org/id/unitary-authority/wiltshire,09/01/2019,5107300311,3600,Arbory Residential Home ,113587,SP11,Community Services,MH OP South Locality,Adult Residential Placements - Spot Purchase,Third Party Payments,REVENUE
Wiltshire,http://opendatacommunities.org/id/unitary-authority/wiltshire,09/01/2019,5107300373,2626,Arbory Residential Home ,113587,SP11,Community Services,MH OP N&E Locality,Adult Residential Placements - Spot Purchase,Third Party Payments,REVENUE
Wiltshire,http://opendatacommunities.org/id/unitary-authority/wiltshire,09/01/2019,5107301877,3472.08,Arbory Residential Home ,113587,SP11,Community Services,MH AOWA South Locali,Adult Residential Placements - Spot Purchase,Third Party Payments,REVENUE
Wiltshire,http://opendatacommunities.org/id/unitary-authority/wiltshire,09/01/2019,5107302331,3920,Arbory Residential Home ,113587,SP11,Community Services,South Care Packages,Adult Residential Placements - Spot Purchase,Third Party Payments,REVENUE
Wiltshire,http://opendatacommunities.org/id/unitary-authority/wiltshire,09/01/2019,5107302755,1900,Arch Care Services Ltd ,110169,BS21,Community Services,MH AOWA West Localit,Supported Living,Third Party Payments,REVENUE
Wiltshire,http://opendatacommunities.org/id/unitary-authority/wiltshire,09/01/2019,5107300470,2859.36,Arliemoor Care Homes ,110174,EX22,Community Services,MH AOWA South Locali,Adult Residential Placements - Spot Purchase,Third Party Payments,REVENUE
Wiltshire,http://opendatacommunities.org/id/unitary-authority/wiltshire,09/01/2019,5107300580,2810.36,Arliemoor Care Homes ,110174,EX22,Community Services,MH AOWA South Locali,Adult Residential Placements - Spot Purchase,Third Party Payments,REVENUE
Wiltshire,http://opendatacommunities.org/id/unitary-authority/wiltshire,09/01/2019,5107300659,2272,Arliemoor Care Homes ,110174,EX22,Community Services,MH AOWA West Localit,Adult Residential Placements - Spot Purchase,Third Party Payments,REVENUE
Wiltshire,http://opendatacommunities.org/id/unitary-authority/wiltshire,09/01/2019,5107302071,2175,Arliemoor Care Homes ,110174,EX22,Community Services,MH AOWA West Localit,Adult Residential Placements - Spot Purchase,Third Party Payments,REVENUE
Wiltshire,http://opendatacommunities.org/id/unitary-authority/wiltshire,08/01/2019,5107301468,809.87,Arqiva Services Limited ,137139,SO21,Neighbourhood & Planning,Fleet,Radio Communications,Supplies and Services,REVENUE
Wiltshire,http://opendatacommunities.org/id/unitary-authority/wiltshire,09/01/2019,1902263479,491,Arrow Care Services Ltd ,146643,SN12,Community Services,West Care Packages,Adult Domiciliary Care,Third Party Payments,REVENUE
Wiltshire,http://opendatacommunities.org/id/unitary-authority/wiltshire,09/01/2019,1902263480,324.73,Arrow Care Services Ltd ,146643,SN12,Community Services,MH AOWA West Localit,Adult Domiciliary Care,Third Party Payments,REVENUE
Wiltshire,http://opendatacommunities.org/id/unitary-authority/wiltshire,09/01/2019,1902263481,271.4,Arrow Care Services Ltd ,146643,SN12,Community Services,West Care Packages,Adult Domiciliary Care,Third Party Payments,REVENUE
Wiltshire,http://opendatacommunities.org/id/unitary-authority/wiltshire,09/01/2019,1902263483,410.7,Arrow Care Services Ltd ,146643,SN12,Community Services,MH AOWA West Localit,Adult Domiciliary Care,Third Party Payments,REVENUE
Wiltshire,http://opendatacommunities.org/id/unitary-authority/wiltshire,09/01/2019,1902263485,604.58,Arrow Care Services Ltd ,146643,SN12,Community Services,MH OP West Locality,Adult Domiciliary Care,Third Party Payments,REVENUE
Wiltshire,http://opendatacommunities.org/id/unitary-authority/wiltshire,09/01/2019,1902263489,371.92,Arrow Care Services Ltd ,146643,SN12,Community Services,CTPLD Placements,Adult Domiciliary Care Contribution,Income,REVENUE
Wiltshire,http://opendatacommunities.org/id/unitary-authority/wiltshire,09/01/2019,1902263490,474.04,Arrow Care Services Ltd ,146643,SN12,Community Services,CTPLD Placements,Adult Domiciliary Care Contribution,Income,REVENUE
Wiltshire,http://opendatacommunities.org/id/unitary-authority/wiltshire,09/01/2019,1902263492,539.3,Arrow Care Services Ltd ,146643,SN12,Community Services,West Care Packages,Adult Domiciliary Care,Third Party Payments,REVENUE
Wiltshire,http://opendatacommunities.org/id/unitary-authority/wiltshire,09/01/2019,1902263493,335.2,Arrow Care Services Ltd ,146643,SN12,Community Services,MH AOWA West Localit,Adult Domiciliary Care,Third Party Payments,REVENUE
Wiltshire,http://opendatacommunities.org/id/unitary-authority/wiltshire,09/01/2019,1902263494,329.3,Arrow Care Services Ltd ,146643,SN12,Community Services,West Care Packages,Adult Domiciliary Care,Third Party Payments,REVENUE
Wiltshire,http://opendatacommunities.org/id/unitary-authority/wiltshire,09/01/2019,1902263496,434.48,Arrow Care Services Ltd ,146643,SN12,Community Services,MH AOWA West Localit,Adult Domiciliary Care,Third Party Payments,REVENUE
Wiltshire,http://opendatacommunities.org/id/unitary-authority/wiltshire,09/01/2019,1902263497,685.65,Arrow Care Services Ltd ,146643,SN12,Community Services,MH OP West Locality,Adult Domiciliary Care,Third Party Payments,REVENUE
Wiltshire,http://opendatacommunities.org/id/unitary-authority/wiltshire,16/01/2019,1902271812,382.6,Arrow Care Services Ltd ,146643,SN12,Community Services,MH AOWA West Localit,Adult Domiciliary Care,Third Party Payments,REVENUE
Wiltshire,http://opendatacommunities.org/id/unitary-authority/wiltshire,16/01/2019,1902271813,300.35,Arrow Care Services Ltd ,146643,SN12,Community Services,West Care Packages,Adult Domiciliary Care,Third Party Payments,REVENUE
Wiltshire,http://opendatacommunities.org/id/unitary-authority/wiltshire,16/01/2019,1902271815,452.8,Arrow Care Services Ltd ,146643,SN12,Community Services,MH AOWA West Localit,Adult Domiciliary Care,Third Party Payments,REVENUE
Wiltshire,http://opendatacommunities.org/id/unitary-authority/wiltshire,16/01/2019,1902271817,733.85,Arrow Care Services Ltd ,146643,SN12,Community Services,MH OP West Locality,Adult Domiciliary Care,Third Party Payments,REVENUE
Wiltshire,http://opendatacommunities.org/id/unitary-authority/wiltshire,16/01/2019,1902271821,411.37,Arrow Care Services Ltd ,146643,SN12,Community Services,CTPLD Placements,Adult Domiciliary Care Contribution,Income,REVENUE
Wiltshire,http://opendatacommunities.org/id/unitary-authority/wiltshire,23/01/2019,1902274529,371.92,Arrow Care Services Ltd ,146643,SN12,Community Services,CTPLD Placements,Adult Domiciliary Care Contribution,Income,REVENUE
Wiltshire,http://opendatacommunities.org/id/unitary-authority/wiltshire,23/01/2019,1902274531,383.5,Arrow Care Services Ltd ,146643,SN12,Community Services,West Care Packages,Adult Domiciliary Care,Third Party Payments,REVENUE
Wiltshire,http://opendatacommunities.org/id/unitary-authority/wiltshire,23/01/2019,1902274532,335.2,Arrow Care Services Ltd ,146643,SN12,Community Services,MH AOWA West Localit,Adult Domiciliary Care,Third Party Payments,REVENUE
Wiltshire,http://opendatacommunities.org/id/unitary-authority/wiltshire,23/01/2019,1902274533,271.4,Arrow Care Services Ltd ,146643,SN12,Community Services,West Care Packages,Adult Domiciliary Care,Third Party Payments,REVENUE
Wiltshire,http://opendatacommunities.org/id/unitary-authority/wiltshire,23/01/2019,1902274535,410.7,Arrow Care Services Ltd ,146643,SN12,Community Services,MH AOWA West Localit,Adult Domiciliary Care,Third Party Payments,REVENUE
Wiltshire,http://opendatacommunities.org/id/unitary-authority/wiltshire,30/01/2019,1902277744,371.92,Arrow Care Services Ltd ,146643,SN12,Community Services,CTPLD Placements,Adult Domiciliary Care Contribution,Income,REVENUE
Wiltshire,http://opendatacommunities.org/id/unitary-authority/wiltshire,30/01/2019,1902277747,491,Arrow Care Services Ltd ,146643,SN12,Community Services,West Care Packages,Adult Domiciliary Care,Third Party Payments,REVENUE
Wiltshire,http://opendatacommunities.org/id/unitary-authority/wiltshire,30/01/2019,1902277748,335.2,Arrow Care Services Ltd ,146643,SN12,Community Services,MH AOWA West Localit,Adult Domiciliary Care,Third Party Payments,REVENUE
Wiltshire,http://opendatacommunities.org/id/unitary-authority/wiltshire,30/01/2019,1902277749,271.4,Arrow Care Services Ltd ,146643,SN12,Community Services,West Care Packages,Adult Domiciliary Care,Third Party Payments,REVENUE
Wiltshire,http://opendatacommunities.org/id/unitary-authority/wiltshire,30/01/2019,1902277751,404.93,Arrow Care Services Ltd ,146643,SN12,Community Services,MH AOWA West Localit,Adult Domiciliary Care,Third Party Payments,REVENUE
Wiltshire,http://opendatacommunities.org/id/unitary-authority/wiltshire,31/01/2019,1902278557,254.3,Arrow Care Services Ltd ,146643,SN12,Community Services,HTLAH - Neighbourhoo,Interim Support Plan - HTLAH,Third Party Payments,REVENUE
Wiltshire,http://opendatacommunities.org/id/unitary-authority/wiltshire,31/01/2019,1902278559,254.3,Arrow Care Services Ltd ,146643,SN12,Community Services,HTLAH - Neighbourhoo,Interim Support Plan - HTLAH,Third Party Payments,REVENUE
Wiltshire,http://opendatacommunities.org/id/unitary-authority/wiltshire,11/01/2019,5107301413,523,ASCEL ,113625,DE3 ,Children & Education,WiltsLearnResources,Conference Fees,Supplies and Services,REVENUE
Wiltshire,http://opendatacommunities.org/id/unitary-authority/wiltshire,23/01/2019,1902274950,432,Asda Pharmacy ,137247,SN12,Community Services,Subs Misuse Contract,Public Health Commissioning,Supplies and Services,REVENUE
Wiltshire,http://opendatacommunities.org/id/unitary-authority/wiltshire,23/01/2019,1902275038,432,Asda Pharmacy ,137247,SN12,Community Services,Subs Misuse Contract,Public Health Commissioning,Supplies and Services,REVENUE
Wiltshire,http://opendatacommunities.org/id/unitary-authority/wiltshire,23/01/2019,1902274423,463.6,Ash Care Services ,140706,SP2 ,Community Services,South Care Packages,Adult Domiciliary Care Contribution,Income,REVENUE
Wiltshire,http://opendatacommunities.org/id/unitary-authority/wiltshire,23/01/2019,1902274424,417,Ash Care Services ,140706,SP2 ,Community Services,South Care Packages,Adult Domiciliary Care,Third Party Payments,REVENUE
Wiltshire,http://opendatacommunities.org/id/unitary-authority/wiltshire,23/01/2019,1902274425,1123.84,Ash Care Services ,140706,SP2 ,Community Services,South Care Packages,Adult Domiciliary Care Contribution,Income,REVENUE
Wiltshire,http://opendatacommunities.org/id/unitary-authority/wiltshire,23/01/2019,1902274426,554.2,Ash Care Services ,140706,SP2 ,Community Services,South Care Packages,Adult Domiciliary Care Contribution,Income,REVENUE
Wiltshire,http://opendatacommunities.org/id/unitary-authority/wiltshire,23/01/2019,1902274428,505.16,Ash Care Services ,140706,SP2 ,Community Services,South Care Packages,Adult Domiciliary Care Contribution,Income,REVENUE
Wiltshire,http://opendatacommunities.org/id/unitary-authority/wiltshire,31/01/2019,1902278578,756,Ash Care Services ,140706,SP2 ,Community Services,HTLAH - Neighbourhoo,Interim Support Plan - HTLAH,Third Party Payments,REVENUE
Wiltshire,http://opendatacommunities.org/id/unitary-authority/wiltshire,31/01/2019,1902278579,283.5,Ash Care Services ,140706,SP2 ,Community Services,HTLAH - Neighbourhoo,Interim Support Plan - HTLAH,Third Party Payments,REVENUE
Wiltshire,http://opendatacommunities.org/id/unitary-authority/wiltshire,09/01/2019,5107299668,2841.2,Ashbourne Court Care Home ,133906,SP10,Community Services,South Care Packages,Adult Care Nursing Placements - Spot,Third Party Payments,REVENUE
Wiltshire,http://opendatacommunities.org/id/unitary-authority/wiltshire,09/01/2019,5107301672,3896.88,Ashness Care ,143773,N15 ,Community Services,MH AOWA N&E Locality,Adult Residential Placements - Spot Purchase,Third Party Payments,REVENUE
Wiltshire,http://opendatacommunities.org/id/unitary-authority/wiltshire,15/01/2019,1902265537,507.52,Ashton Keynes Playgroup 249 ,110188,SN6 ,Children & Education,Free Enttlmnt 3 & 4y,Childcare Free Entitlement Early Years,Supplies and Services,REVENUE
Wiltshire,http://opendatacommunities.org/id/unitary-authority/wiltshire,09/01/2019,5107299792,1841.76,Ashton Manor Nursing Home ,139060,GU10,Community Services,South Care Packages,Adult Care Nursing Placements - Spot,Third Party Payments,REVENUE
Wiltshire,http://opendatacommunities.org/id/unitary-authority/wiltshire,08/01/2019,1902262930,325,Ashwell Engineering Services Limite ,125458,LE4 ,Neighbourhood & Planning,Biomass Prog Schools,Property Maintenance,Premises Related,REVENUE
Wiltshire,http://opendatacommunities.org/id/unitary-authority/wiltshire,14/01/2019,1902262917,270.37,Askews & Holts Library Services Ltd ,101034,PR1 ,Community Services,Erlestoke Library,Books & Publications,Supplies and Services,REVENUE
Wiltshire,http://opendatacommunities.org/id/unitary-authority/wiltshire,14/01/2019,1902262917,2883.6,Askews & Holts Library Services Ltd ,101034,PR1 ,Community Services,Libraries,Books & Publications,Supplies and Services,REVENUE
Wiltshire,http://opendatacommunities.org/id/unitary-authority/wiltshire,28/01/2019,1902263546,487.83,Askews & Holts Library Services Ltd ,101034,PR1 ,Community Services,Libraries,Books & Publications,Supplies and Services,REVENUE
Wiltshire,http://opendatacommunities.org/id/unitary-authority/wiltshire,11/01/2019,1902264310,601.8,Aspire Taxis ,101274,SP2 ,Neighbourhood & Planning,Mainstream Primary,Transport Contracts,Third Party Payments,REVENUE
Wiltshire,http://opendatacommunities.org/id/unitary-authority/wiltshire,11/01/2019,1902264312,1638,Aspire Taxis ,101274,SP2 ,Neighbourhood & Planning,SEN Secondary,Transport Contracts,Third Party Payments,REVENUE
Wiltshire,http://opendatacommunities.org/id/unitary-authority/wiltshire,11/01/2019,1902264313,906,Aspire Taxis ,101274,SP2 ,Neighbourhood & Planning,SEN Secondary,Transport Contracts,Third Party Payments,REVENUE
Wiltshire,http://opendatacommunities.org/id/unitary-authority/wiltshire,11/01/2019,1902264314,384.3,Aspire Taxis ,101274,SP2 ,Neighbourhood & Planning,Mainstream Secondary,Transport Contracts,Third Party Payments,REVENUE
Wiltshire,http://opendatacommunities.org/id/unitary-authority/wiltshire,11/01/2019,1902264314,384.3,Aspire Taxis ,101274,SP2 ,Neighbourhood & Planning,SEN Secondary,Transport Contracts,Third Party Payments,REVENUE
Wiltshire,http://opendatacommunities.org/id/unitary-authority/wiltshire,11/01/2019,1902264315,2505.68,Aspire Taxis ,101274,SP2 ,Neighbourhood & Planning,Mainstream Primary,Transport Contracts,Third Party Payments,REVENUE
Wiltshire,http://opendatacommunities.org/id/unitary-authority/wiltshire,11/01/2019,1902264316,1275,Aspire Taxis ,101274,SP2 ,Neighbourhood & Planning,SEN Primary,Transport Contracts,Third Party Payments,REVENUE
Wiltshire,http://opendatacommunities.org/id/unitary-authority/wiltshire,11/01/2019,1902264317,525,Aspire Taxis ,101274,SP2 ,Neighbourhood & Planning,Mainstream Primary,Transport Contracts,Third Party Payments,REVENUE
Wiltshire,http://opendatacommunities.org/id/unitary-authority/wiltshire,11/01/2019,1902264318,1485,Aspire Taxis ,101274,SP2 ,Neighbourhood & Planning,SEN 16+ Secondary,Transport Contracts,Third Party Payments,REVENUE
Wiltshire,http://opendatacommunities.org/id/unitary-authority/wiltshire,11/01/2019,1902264319,673.5,Aspire Taxis ,101274,SP2 ,Neighbourhood & Planning,Mainstream Primary,Transport Contracts,Third Party Payments,REVENUE
Wiltshire,http://opendatacommunities.org/id/unitary-authority/wiltshire,11/01/2019,1902264321,675,Aspire Taxis ,101274,SP2 ,Neighbourhood & Planning,SEN Primary,Transport Contracts,Third Party Payments,REVENUE
Wiltshire,http://opendatacommunities.org/id/unitary-authority/wiltshire,11/01/2019,1902264322,1110,Aspire Taxis ,101274,SP2 ,Neighbourhood & Planning,SEN Primary,Transport Contracts,Third Party Payments,REVENUE
Wiltshire,http://opendatacommunities.org/id/unitary-authority/wiltshire,11/01/2019,1902264323,1615,Aspire Taxis ,101274,SP2 ,Neighbourhood & Planning,SEN 16+ Secondary,Transport Contracts,Third Party Payments,REVENUE
Wiltshire,http://opendatacommunities.org/id/unitary-authority/wiltshire,11/01/2019,1902264325,1875,Aspire Taxis ,101274,SP2 ,Neighbourhood & Planning,SEN Primary,Transport Contracts,Third Party Payments,REVENUE
Wiltshire,http://opendatacommunities.org/id/unitary-authority/wiltshire,11/01/2019,1902264326,800,Aspire Taxis ,101274,SP2 ,Neighbourhood & Planning,SEN 16+ Secondary,Transport Contracts,Third Party Payments,REVENUE
Wiltshire,http://opendatacommunities.org/id/unitary-authority/wiltshire,11/01/2019,1902264327,375,Aspire Taxis ,101274,SP2 ,Neighbourhood & Planning,SEN Primary,Transport Contracts,Third Party Payments,REVENUE
Wiltshire,http://opendatacommunities.org/id/unitary-authority/wiltshire,11/01/2019,1902264327,750,Aspire Taxis ,101274,SP2 ,Neighbourhood & Planning,Mainstream Primary,Transport Contracts,Third Party Payments,REVENUE
Wiltshire,http://opendatacommunities.org/id/unitary-authority/wiltshire,11/01/2019,1902264328,675,Aspire Taxis ,101274,SP2 ,Neighbourhood & Planning,Mainstream Primary,Transport Contracts,Third Party Payments,REVENUE
Wiltshire,http://opendatacommunities.org/id/unitary-authority/wiltshire,11/01/2019,1902264329,900,Aspire Taxis ,101274,SP2 ,Neighbourhood & Planning,Mainstream Primary,Transport Contracts,Third Party Payments,REVENUE
Wiltshire,http://opendatacommunities.org/id/unitary-authority/wiltshire,11/01/2019,1902264330,600,Aspire Taxis ,101274,SP2 ,Community Services,CTPLD Placements,Transport Contracts,Third Party Payments,REVENUE
Wiltshire,http://opendatacommunities.org/id/unitary-authority/wiltshire,11/01/2019,1902264331,400,Aspire Taxis ,101274,SP2 ,Neighbourhood & Planning,SEN Secondary,Transport Contracts,Third Party Payments,REVENUE
Wiltshire,http://opendatacommunities.org/id/unitary-authority/wiltshire,11/01/2019,1902264331,800,Aspire Taxis ,101274,SP2 ,Neighbourhood & Planning,Mainstream Secondary,Transport Contracts,Third Party Payments,REVENUE
Wiltshire,http://opendatacommunities.org/id/unitary-authority/wiltshire,11/01/2019,1902264332,1200,Aspire Taxis ,101274,SP2 ,Community Services,CTPLD Placements,Transport Contracts,Third Party Payments,REVENUE
Wiltshire,http://opendatacommunities.org/id/unitary-authority/wiltshire,11/01/2019,1902264333,1275,Aspire Taxis ,101274,SP2 ,Neighbourhood & Planning,Mainstream Primary,Transport Contracts,Third Party Payments,REVENUE
Wiltshire,http://opendatacommunities.org/id/unitary-authority/wiltshire,11/01/2019,1902264334,600,Aspire Taxis ,101274,SP2 ,Neighbourhood & Planning,Mainstream Secondary,Transport Contracts,Third Party Payments,REVENUE
Wiltshire,http://opendatacommunities.org/id/unitary-authority/wiltshire,11/01/2019,1902264335,337.5,Aspire Taxis ,101274,SP2 ,Community Services,CTPLD Placements,Transport Contracts,Third Party Payments,REVENUE
